Workbook

Sheet شهادة ساتشى 2013 (hidden)
A1: شهادة مجمعة بالمبالغ المخصومة و الموردة لمصلحة الخصم و الاضافة عن عام 2015
A2: التاريخ :- | B2: =NOW() -> 2020-02-04T17:16:18.060
A3: السادة / شركة ---------- - فيما يلى بيان بالمبالغ المخصومة و الموردة لمصلحة الخصم و الاضافة عن عام 2013
A4: رقم الفاتورة | B4: قيمة الفاتورة | C4: نسبة الخصم | D4: قيمة الضريبة المخصومة | E4: الفترة | F4: قيمة شيك الفترة | G4: رقم الشيك
A5: 3661 | B5: 59682 | C5: 0.02 | D5: 1193.65 | E5: الاولى 2013 | F5: 64846 | G5: 104308621
A6: 3663 | B6: 648419.2 | C6: 0.02 | D6: 11776.3 | E6: الاولى 2013 | F6: 64846 | G6: 104308621
A7: 3665 | B7: 562103 | C7: 0.02 | D7: 11242 | E7: الاولى 2013 | F7: 64846 | G7: 104308621
A8: 3666 | B8: 72500 | C8: 0.02 | D8: 1450 | E8: الاولى 2013 | F8: 64846 | G8: 104308621
A9: 3698 | B9: 1798.5 | C9: 0.02 | D9: 32.7 | E9: الثانية 2013 | F9: 61894 | G9: 106387736
A10: 3717 | B10: 873015 | C10: 0.02 | D10: 15873 | E10: الثالثة 2013 | F10: 44609 | G10: 106387737
A11: 3770 | B11: 64674.5 | C11: 0.02 | D11: 1176 | E11: الثالثة 2013 | F11: 44609 | G11: 106387737
A12: 3781 | B12: 55253 | C12: 0.005 | D12: 251 | E12: الثالثة 2013 | F12: 44609 | G12: 106387737
A13: 3787 | B13: 436507.5 | C13: 0.02 | D13: 7937 | E13: الثالثة 2013 | F13: 44609 | G13: 106387737
A14: 3790 | B14: 378125 | C14: 0.005 | D14: 1719 | E14: الثالثة 2013 | F14: 44609 | G14: 106387737
A15: 3791 | B15: 167200 | C15: 0.02 | D15: 3040 | E15: الثالثة 2013 | F15: 44609 | G15: 106387737
A16: 3808 | B16: 88990 | C16: 0.005 | D16: 404.5 | E16: الثالثة 2013 | F16: 44609 | G16: 106387737
A17: 3807 | B17: 436507.5 | C17: 0.02 | D17: 7936.5 | E17: الثالثة 2013 | F17: 44609 | G17: 106387737
A18: 3810 | B18: 345.4 | C18: 0.005 | D18: 1.6 | E18: الثالثة 2013 | F18: 44609 | G18: 106387737
A19: 3856 | B19: 34485 | C19: 0.02 | D19: 627 | E19: الرابعة 2013
A20: الاجمالى | B20: =SUM(B5:B19) -> 3879605.6 | D20: =SUM(D5:D19) -> 64660.25 | E20: =tafket(D20,"جنيه"," قرش") -> فقط أربعة و ستون ألف و ستمائة ستون جنيه و 25 قرش لاغير
D22: خاتم الشركة
B23: إعداد ،،، | F23: يعتمد ،،،
F24: المدير المالى
B26: -------------------------- | F26: --------------------------

Sheet الفترة الاولى 2015 (hidden)
A2: رقم الايصال | B2: كود المورد | C2: التاريخ | D2: رقم الملف | E2: بطاقة ضريبية | F2: إسم الممول | G2: العنوان | H2: المامورية | I2: رقم الفاتورة | J2: قيمة الفاتورة | K2: النسبة | L2: الضريبة
A3: 1 | B3: 1 | C3: 2015-01-02 | D3: =VLOOKUP($B3+0,'Vendor Data'!$A$4:$H$1036,2,FALSE) -> 5/0177/191/03/24 | E3: =VLOOKUP($B3+0,'Vendor Data'!$A$4:$H$1036,3,FALSE) -> 327/964/103 | F3: =VLOOKUP($B3+0,'Vendor Data'!$A$4:$H$1036,5,FALSE) -> شركة ديكوم تريد | G3: =VLOOKUP($B3+0,'Vendor Data'!$A$4:$H$1036,6,FALSE) -> 53 شارع حافظ بدوى - مدينة نصر - القاهرة | H3: =VLOOKUP($B3+0,'Vendor Data'!$A$4:$H$1036,7,FALSE) -> 0 | I3: 6205-6206 | J3: =93841+44195.8 -> 138036.8 | K3: 0.005 | L3: =426.55+200.9 -> 627.45
A4: 2 | B4: 2 | C4: 2015-01-03 | D4: =VLOOKUP($B4+0,'Vendor Data'!$A$4:$H$1036,2,FALSE) -> 5/318/280 | E4: =VLOOKUP($B4+0,'Vendor Data'!$A$4:$H$1036,3,FALSE) -> 0 | F4: =VLOOKUP($B4+0,'Vendor Data'!$A$4:$H$1036,5,FALSE) -> لايت واى إيجيبت | G4: =VLOOKUP($B4+0,'Vendor Data'!$A$4:$H$1036,6,FALSE) -> قطعة أ . ب - بلوك 13025 - المنطقة الصناعية - مدينة العبور | H4: =VLOOKUP($B4+0,'Vendor Data'!$A$4:$H$1036,7,FALSE) -> 0 | I4: 2427-2408 | J4: =16376.8+3696 -> 20072.8 | L4: 128.97
A5: 3 | B5: 3 | C5: 2015-01-09 | D5: =VLOOKUP($B5+0,'Vendor Data'!$A$4:$H$1036,2,FALSE) -> 030/5/01717/192/00/26 | E5: =VLOOKUP($B5+0,'Vendor Data'!$A$4:$H$1036,3,FALSE) -> 376-459-817 | F5: =VLOOKUP($B5+0,'Vendor Data'!$A$4:$H$1036,5,FALSE) -> نات ايجيبت | G5: =VLOOKUP($B5+0,'Vendor Data'!$A$4:$H$1036,6,FALSE) -> 2 ب مشروع إمتداد الاخاء كورنيش النيل - المعادى | H5: =VLOOKUP($B5+0,'Vendor Data'!$A$4:$H$1036,7,FALSE) -> توصية بسيطة | I5: 96 | J5: 20022.5 | K5: 0.005 | L5: 100
A6: 4 | B6: 4 | C6: 2015-01-10 | D6: =VLOOKUP($B6+0,'Vendor Data'!$A$4:$H$1036,2,FALSE) -> 001/5/03830/191/00/00 | E6: =VLOOKUP($B6+0,'Vendor Data'!$A$4:$H$1036,3,FALSE) -> 261/966/367 | F6: =VLOOKUP($B6+0,'Vendor Data'!$A$4:$H$1036,5,FALSE) -> المستقبل هوسبيتاليتى سوليوشنز إف إتش إس | G6: =VLOOKUP($B6+0,'Vendor Data'!$A$4:$H$1036,6,FALSE) -> 40 أ شارع ترسا الهرم - الجيزة | H6: =VLOOKUP($B6+0,'Vendor Data'!$A$4:$H$1036,7,FALSE) -> 0 | I6: 28738 | J6: 5091.75 | K6: 0.005 | L6: 23.25
A7: 5 | B7: 5 | C7: 2015-01-10 | D7: =VLOOKUP($B7+0,'Vendor Data'!$A$4:$H$1036,2,FALSE) -> 5/230/110/00/00 | E7: =VLOOKUP($B7+0,'Vendor Data'!$A$4:$H$1036,3,FALSE) -> 999/364/295 | F7: =VLOOKUP($B7+0,'Vendor Data'!$A$4:$H$1036,5,FALSE) -> أوان الورد | G7: =VLOOKUP($B7+0,'Vendor Data'!$A$4:$H$1036,6,FALSE) -> 0 | H7: =VLOOKUP($B7+0,'Vendor Data'!$A$4:$H$1036,7,FALSE) -> 0 | I7: 1366 | J7: 625 | K7: 0.005 | L7: 3
A8: 6 | B8: 6 | C8: 2015-01-06 | D8: =VLOOKUP($B8+0,'Vendor Data'!$A$4:$H$1036,2,FALSE) -> 5/00293/192/00/20 | E8: =VLOOKUP($B8+0,'Vendor Data'!$A$4:$H$1036,3,FALSE) -> 0 | F8: =VLOOKUP($B8+0,'Vendor Data'!$A$4:$H$1036,5,FALSE) -> الرائد لتجارة و توزيع الادوات المكتبية | G8: =VLOOKUP($B8+0,'Vendor Data'!$A$4:$H$1036,6,FALSE) -> 0 | H8: =VLOOKUP($B8+0,'Vendor Data'!$A$4:$H$1036,7,FALSE) -> مصر القديمة | I8: 332 | J8: 5467.5 | L8: 32.5
A9: 7 | B9: 7 | C9: 2015-01-02 | D9: =VLOOKUP($B9+0,'Vendor Data'!$A$4:$H$1036,2,FALSE) -> 5/1707/192/04/07 | E9: =VLOOKUP($B9+0,'Vendor Data'!$A$4:$H$1036,3,FALSE) -> 0 | F9: =VLOOKUP($B9+0,'Vendor Data'!$A$4:$H$1036,5,FALSE) -> الحلبى جروب للتوريدات و الاستيراد | G9: =VLOOKUP($B9+0,'Vendor Data'!$A$4:$H$1036,6,FALSE) -> منيل شيحة - الجيزة - طريق مصر أسيوط | H9: =VLOOKUP($B9+0,'Vendor Data'!$A$4:$H$1036,7,FALSE) -> 0 | I9: 244-245 | J9: =1990+450 -> 2440 | K9: 0.005 | L9: 12.25
A10: 8 | B10: 9 | C10: 2015-01-13 | D10: =VLOOKUP($B10+0,'Vendor Data'!$A$4:$H$1036,2,FALSE) -> 0 | E10: =VLOOKUP($B10+0,'Vendor Data'!$A$4:$H$1036,3,FALSE) -> 0 | F10: =VLOOKUP($B10+0,'Vendor Data'!$A$4:$H$1036,5,FALSE) -> بريميير للتوريدات و الاستيراد | G10: =VLOOKUP($B10+0,'Vendor Data'!$A$4:$H$1036,6,FALSE) -> 13 ط شارع الاديب على أدهم - هليوبوليس | H10: =VLOOKUP($B10+0,'Vendor Data'!$A$4:$H$1036,7,FALSE) -> 0 | I10: 116598 | J10: 1014.11 | K10: 0.005 | L10: 4.61
A11: 9 | B11: 10 | C11: 2015-01-12 | D11: =VLOOKUP($B11+0,'Vendor Data'!$A$4:$H$1036,2,FALSE) -> 0 | E11: =VLOOKUP($B11+0,'Vendor Data'!$A$4:$H$1036,3,FALSE) -> 0 | F11: =VLOOKUP($B11+0,'Vendor Data'!$A$4:$H$1036,5,FALSE) -> تى سى إل تكنيكال كيميكالز لابروتورز | G11: =VLOOKUP($B11+0,'Vendor Data'!$A$4:$H$1036,6,FALSE) -> 55 حدائق الاهرام | H11: =VLOOKUP($B11+0,'Vendor Data'!$A$4:$H$1036,7,FALSE) -> 0 | J11: 1210 | K11: 0.005 | L11: 5.25
A12: 10 | B12: 7 | C12: 2015-01-12 | D12: =VLOOKUP($B12+0,'Vendor Data'!$A$4:$H$1036,2,FALSE) -> 5/1707/192/04/07 | E12: =VLOOKUP($B12+0,'Vendor Data'!$A$4:$H$1036,3,FALSE) -> 0 | F12: =VLOOKUP($B12+0,'Vendor Data'!$A$4:$H$1036,5,FALSE) -> الحلبى جروب للتوريدات و الاستيراد | G12: =VLOOKUP($B12+0,'Vendor Data'!$A$4:$H$1036,6,FALSE) -> منيل شيحة - الجيزة - طريق مصر أسيوط | H12: =VLOOKUP($B12+0,'Vendor Data'!$A$4:$H$1036,7,FALSE) -> 0 | I12: 270 | J12: 1327 | K12: 0.005 | L12: 7
A13: 11 | B13: 11 | C13: 2015-01-14 | D13: =VLOOKUP($B13+0,'Vendor Data'!$A$4:$H$1036,2,FALSE) -> 510425/191 | E13: =VLOOKUP($B13+0,'Vendor Data'!$A$4:$H$1036,3,FALSE) -> 545/427/934 | F13: =VLOOKUP($B13+0,'Vendor Data'!$A$4:$H$1036,5,FALSE) -> سى آر سى للتجارة | G13: =VLOOKUP($B13+0,'Vendor Data'!$A$4:$H$1036,6,FALSE) -> 9ش مختار المصري - ارض الجولف - القاهرة | H13: =VLOOKUP($B13+0,'Vendor Data'!$A$4:$H$1036,7,FALSE) -> المساهمة | J13: =1550+155 -> 1705 | K13: 0.005 | L13: 7.75
A14: 12 | B14: 2 | C14: 2015-01-16 | D14: =VLOOKUP($B14+0,'Vendor Data'!$A$4:$H$1036,2,FALSE) -> 5/318/280 | E14: =VLOOKUP($B14+0,'Vendor Data'!$A$4:$H$1036,3,FALSE) -> 0 | F14: =VLOOKUP($B14+0,'Vendor Data'!$A$4:$H$1036,5,FALSE) -> لايت واى إيجيبت | G14: =VLOOKUP($B14+0,'Vendor Data'!$A$4:$H$1036,6,FALSE) -> قطعة أ . ب - بلوك 13025 - المنطقة الصناعية - مدينة العبور | H14: =VLOOKUP($B14+0,'Vendor Data'!$A$4:$H$1036,7,FALSE) -> 0 | I14: 2456 | J14: 45122 | L14: 224.6
A15: 13 | B15: 8 | C15: 2015-01-17 | D15: =VLOOKUP($B15+0,'Vendor Data'!$A$4:$H$1036,2,FALSE) -> 0 | E15: =VLOOKUP($B15+0,'Vendor Data'!$A$4:$H$1036,3,FALSE) -> 11623 | F15: =VLOOKUP($B15+0,'Vendor Data'!$A$4:$H$1036,5,FALSE) -> شركة فوود إستف للتوريدات | G15: =VLOOKUP($B15+0,'Vendor Data'!$A$4:$H$1036,6,FALSE) -> شارع مصعب بن عمير - الاسكندرية | H15: =VLOOKUP($B15+0,'Vendor Data'!$A$4:$H$1036,7,FALSE) -> الاسكندرية | I15: 7551 | J15: 15353.25 | L15: 84.78
A16: 14 | B16: 8 | C16: 2015-01-19 | D16: =VLOOKUP($B16+0,'Vendor Data'!$A$4:$H$1036,2,FALSE) -> 0 | E16: =VLOOKUP($B16+0,'Vendor Data'!$A$4:$H$1036,3,FALSE) -> 11623 | F16: =VLOOKUP($B16+0,'Vendor Data'!$A$4:$H$1036,5,FALSE) -> شركة فوود إستف للتوريدات | G16: =VLOOKUP($B16+0,'Vendor Data'!$A$4:$H$1036,6,FALSE) -> شارع مصعب بن عمير - الاسكندرية | H16: =VLOOKUP($B16+0,'Vendor Data'!$A$4:$H$1036,7,FALSE) -> الاسكندرية | I16: 7582 | J16: 1567.5 | L16: 12.37
A17: 15 | B17: 2 | C17: 2015-01-28 | D17: =VLOOKUP($B17+0,'Vendor Data'!$A$4:$H$1036,2,FALSE) -> 5/318/280 | E17: =VLOOKUP($B17+0,'Vendor Data'!$A$4:$H$1036,3,FALSE) -> 0 | F17: =VLOOKUP($B17+0,'Vendor Data'!$A$4:$H$1036,5,FALSE) -> لايت واى إيجيبت | G17: =VLOOKUP($B17+0,'Vendor Data'!$A$4:$H$1036,6,FALSE) -> قطعة أ . ب - بلوك 13025 - المنطقة الصناعية - مدينة العبور | H17: =VLOOKUP($B17+0,'Vendor Data'!$A$4:$H$1036,7,FALSE) -> 0 | I17: 2493 | J17: 7722 | L17: 76.35
A18: 16 | B18: 8 | C18: 2015-01-28 | D18: =VLOOKUP($B18+0,'Vendor Data'!$A$4:$H$1036,2,FALSE) -> 0 | E18: =VLOOKUP($B18+0,'Vendor Data'!$A$4:$H$1036,3,FALSE) -> 11623 | F18: =VLOOKUP($B18+0,'Vendor Data'!$A$4:$H$1036,5,FALSE) -> شركة فوود إستف للتوريدات | G18: =VLOOKUP($B18+0,'Vendor Data'!$A$4:$H$1036,6,FALSE) -> شارع مصعب بن عمير - الاسكندرية | H18: =VLOOKUP($B18+0,'Vendor Data'!$A$4:$H$1036,7,FALSE) -> الاسكندرية | I18: 7592 | J18: 445.5 | L18: 5.77
A19: 17 | B19: 8 | C19: 2015-01-28 | D19: =VLOOKUP($B19+0,'Vendor Data'!$A$4:$H$1036,2,FALSE) -> 0 | E19: =VLOOKUP($B19+0,'Vendor Data'!$A$4:$H$1036,3,FALSE) -> 11623 | F19: =VLOOKUP($B19+0,'Vendor Data'!$A$4:$H$1036,5,FALSE) -> شركة فوود إستف للتوريدات | G19: =VLOOKUP($B19+0,'Vendor Data'!$A$4:$H$1036,6,FALSE) -> شارع مصعب بن عمير - الاسكندرية | H19: =VLOOKUP($B19+0,'Vendor Data'!$A$4:$H$1036,7,FALSE) -> الاسكندرية | I19: 561 | J19: 561 | L19: 4.5
A20: 18 | B20: 4 | C20: 2015-02-03 | D20: =VLOOKUP($B20+0,'Vendor Data'!$A$4:$H$1036,2,FALSE) -> 001/5/03830/191/00/00 | E20: =VLOOKUP($B20+0,'Vendor Data'!$A$4:$H$1036,3,FALSE) -> 261/966/367 | F20: =VLOOKUP($B20+0,'Vendor Data'!$A$4:$H$1036,5,FALSE) -> المستقبل هوسبيتاليتى سوليوشنز إف إتش إس | G20: =VLOOKUP($B20+0,'Vendor Data'!$A$4:$H$1036,6,FALSE) -> 40 أ شارع ترسا الهرم - الجيزة | H20: =VLOOKUP($B20+0,'Vendor Data'!$A$4:$H$1036,7,FALSE) -> 0 | I20: 344 | J20: 605 | K20: 0.005 | L20: 2.75
A21: 19 | B21: 7 | C21: 2015-02-01 | D21: =VLOOKUP($B21+0,'Vendor Data'!$A$4:$H$1036,2,FALSE) -> 5/1707/192/04/07 | E21: =VLOOKUP($B21+0,'Vendor Data'!$A$4:$H$1036,3,FALSE) -> 0 | F21: =VLOOKUP($B21+0,'Vendor Data'!$A$4:$H$1036,5,FALSE) -> الحلبى جروب للتوريدات و الاستيراد | G21: =VLOOKUP($B21+0,'Vendor Data'!$A$4:$H$1036,6,FALSE) -> منيل شيحة - الجيزة - طريق مصر أسيوط | H21: =VLOOKUP($B21+0,'Vendor Data'!$A$4:$H$1036,7,FALSE) -> 0 | I21: 285 | J21: 770 | K21: 0.005 | L21: 3.75
A22: 20 | B22: 2 | C22: 2015-02-04 | D22: =VLOOKUP($B22+0,'Vendor Data'!$A$4:$H$1036,2,FALSE) -> 5/318/280 | E22: =VLOOKUP($B22+0,'Vendor Data'!$A$4:$H$1036,3,FALSE) -> 0 | F22: =VLOOKUP($B22+0,'Vendor Data'!$A$4:$H$1036,5,FALSE) -> لايت واى إيجيبت | G22: =VLOOKUP($B22+0,'Vendor Data'!$A$4:$H$1036,6,FALSE) -> قطعة أ . ب - بلوك 13025 - المنطقة الصناعية - مدينة العبور | H22: =VLOOKUP($B22+0,'Vendor Data'!$A$4:$H$1036,7,FALSE) -> 0 | I22: 2515 | J22: =5580+558 -> 6138 | L22: 27.9
A23: 21 | B23: 2 | C23: 2015-02-05 | D23: =VLOOKUP($B23+0,'Vendor Data'!$A$4:$H$1036,2,FALSE) -> 5/318/280 | E23: =VLOOKUP($B23+0,'Vendor Data'!$A$4:$H$1036,3,FALSE) -> 0 | F23: =VLOOKUP($B23+0,'Vendor Data'!$A$4:$H$1036,5,FALSE) -> لايت واى إيجيبت | G23: =VLOOKUP($B23+0,'Vendor Data'!$A$4:$H$1036,6,FALSE) -> قطعة أ . ب - بلوك 13025 - المنطقة الصناعية - مدينة العبور | H23: =VLOOKUP($B23+0,'Vendor Data'!$A$4:$H$1036,7,FALSE) -> 0 | I23: 2523 | J23: =4971.85+17.85+19.7 -> 5009.4 | L23: =19.7+17.85 -> 37.55
A24: 22 | B24: 8 | C24: 2015-02-08 | D24: =VLOOKUP($B24+0,'Vendor Data'!$A$4:$H$1036,2,FALSE) -> 0 | E24: =VLOOKUP($B24+0,'Vendor Data'!$A$4:$H$1036,3,FALSE) -> 11623 | F24: =VLOOKUP($B24+0,'Vendor Data'!$A$4:$H$1036,5,FALSE) -> شركة فوود إستف للتوريدات | G24: =VLOOKUP($B24+0,'Vendor Data'!$A$4:$H$1036,6,FALSE) -> شارع مصعب بن عمير - الاسكندرية | H24: =VLOOKUP($B24+0,'Vendor Data'!$A$4:$H$1036,7,FALSE) -> الاسكندرية | I24: 7630 | J24: 423.5 | L24: 7.17
A25: 23 | B25: 7 | C25: 2015-02-04 | D25: =VLOOKUP($B25+0,'Vendor Data'!$A$4:$H$1036,2,FALSE) -> 5/1707/192/04/07 | E25: =VLOOKUP($B25+0,'Vendor Data'!$A$4:$H$1036,3,FALSE) -> 0 | F25: =VLOOKUP($B25+0,'Vendor Data'!$A$4:$H$1036,5,FALSE) -> الحلبى جروب للتوريدات و الاستيراد | G25: =VLOOKUP($B25+0,'Vendor Data'!$A$4:$H$1036,6,FALSE) -> منيل شيحة - الجيزة - طريق مصر أسيوط | H25: =VLOOKUP($B25+0,'Vendor Data'!$A$4:$H$1036,7,FALSE) -> 0 | I25: 292 | J25: 1350 | K25: 0.005 | L25: 6.75
A26: 24 | B26: 7 | C26: 2015-02-03 | D26: =VLOOKUP($B26+0,'Vendor Data'!$A$4:$H$1036,2,FALSE) -> 5/1707/192/04/07 | E26: =VLOOKUP($B26+0,'Vendor Data'!$A$4:$H$1036,3,FALSE) -> 0 | F26: =VLOOKUP($B26+0,'Vendor Data'!$A$4:$H$1036,5,FALSE) -> الحلبى جروب للتوريدات و الاستيراد | G26: =VLOOKUP($B26+0,'Vendor Data'!$A$4:$H$1036,6,FALSE) -> منيل شيحة - الجيزة - طريق مصر أسيوط | H26: =VLOOKUP($B26+0,'Vendor Data'!$A$4:$H$1036,7,FALSE) -> 0 | I26: 286 | J26: 1390 | K26: 0.005 | L26: 7
A27: 25 | B27: 7 | C27: 2015-02-07 | D27: =VLOOKUP($B27+0,'Vendor Data'!$A$4:$H$1036,2,FALSE) -> 5/1707/192/04/07 | E27: =VLOOKUP($B27+0,'Vendor Data'!$A$4:$H$1036,3,FALSE) -> 0 | F27: =VLOOKUP($B27+0,'Vendor Data'!$A$4:$H$1036,5,FALSE) -> الحلبى جروب للتوريدات و الاستيراد | G27: =VLOOKUP($B27+0,'Vendor Data'!$A$4:$H$1036,6,FALSE) -> منيل شيحة - الجيزة - طريق مصر أسيوط | H27: =VLOOKUP($B27+0,'Vendor Data'!$A$4:$H$1036,7,FALSE) -> 0 | I27: 291 | J27: 724 | K27: 0.005 | L27: 4
A28: 26 | B28: 7 | C28: 2015-02-06 | D28: =VLOOKUP($B28+0,'Vendor Data'!$A$4:$H$1036,2,FALSE) -> 5/1707/192/04/07 | E28: =VLOOKUP($B28+0,'Vendor Data'!$A$4:$H$1036,3,FALSE) -> 0 | F28: =VLOOKUP($B28+0,'Vendor Data'!$A$4:$H$1036,5,FALSE) -> الحلبى جروب للتوريدات و الاستيراد | G28: =VLOOKUP($B28+0,'Vendor Data'!$A$4:$H$1036,6,FALSE) -> منيل شيحة - الجيزة - طريق مصر أسيوط | H28: =VLOOKUP($B28+0,'Vendor Data'!$A$4:$H$1036,7,FALSE) -> 0 | I28: 295 | J28: 1770 | K28: 0.005 | L28: 4
A29: 27 | B29: 7 | C29: 2015-02-05 | D29: =VLOOKUP($B29+0,'Vendor Data'!$A$4:$H$1036,2,FALSE) -> 5/1707/192/04/07 | E29: =VLOOKUP($B29+0,'Vendor Data'!$A$4:$H$1036,3,FALSE) -> 0 | F29: =VLOOKUP($B29+0,'Vendor Data'!$A$4:$H$1036,5,FALSE) -> الحلبى جروب للتوريدات و الاستيراد | G29: =VLOOKUP($B29+0,'Vendor Data'!$A$4:$H$1036,6,FALSE) -> منيل شيحة - الجيزة - طريق مصر أسيوط | H29: =VLOOKUP($B29+0,'Vendor Data'!$A$4:$H$1036,7,FALSE) -> 0 | I29: 196 | J29: 805 | K29: 0.005 | L29: 4
A30: 28 | B30: 7 | C30: 2015-02-07 | D30: =VLOOKUP($B30+0,'Vendor Data'!$A$4:$H$1036,2,FALSE) -> 5/1707/192/04/07 | E30: =VLOOKUP($B30+0,'Vendor Data'!$A$4:$H$1036,3,FALSE) -> 0 | F30: =VLOOKUP($B30+0,'Vendor Data'!$A$4:$H$1036,5,FALSE) -> الحلبى جروب للتوريدات و الاستيراد | G30: =VLOOKUP($B30+0,'Vendor Data'!$A$4:$H$1036,6,FALSE) -> منيل شيحة - الجيزة - طريق مصر أسيوط | H30: =VLOOKUP($B30+0,'Vendor Data'!$A$4:$H$1036,7,FALSE) -> 0 | I30: 298 | J30: 2750 | K30: 0.005 | L30: 13.75
A31: 29 | B31: 2 | C31: 2015-02-12 | D31: =VLOOKUP($B31+0,'Vendor Data'!$A$4:$H$1036,2,FALSE) -> 5/318/280 | E31: =VLOOKUP($B31+0,'Vendor Data'!$A$4:$H$1036,3,FALSE) -> 0 | F31: =VLOOKUP($B31+0,'Vendor Data'!$A$4:$H$1036,5,FALSE) -> لايت واى إيجيبت | G31: =VLOOKUP($B31+0,'Vendor Data'!$A$4:$H$1036,6,FALSE) -> قطعة أ . ب - بلوك 13025 - المنطقة الصناعية - مدينة العبور | H31: =VLOOKUP($B31+0,'Vendor Data'!$A$4:$H$1036,7,FALSE) -> 0 | I31: 2569 | J31: =4470.8+16.2+16.4 -> 4503.4 | L31: 32.6
A32: 30 | B32: 2 | C32: 2015-02-12 | D32: =VLOOKUP($B32+0,'Vendor Data'!$A$4:$H$1036,2,FALSE) -> 5/318/280 | E32: =VLOOKUP($B32+0,'Vendor Data'!$A$4:$H$1036,3,FALSE) -> 0 | F32: =VLOOKUP($B32+0,'Vendor Data'!$A$4:$H$1036,5,FALSE) -> لايت واى إيجيبت | G32: =VLOOKUP($B32+0,'Vendor Data'!$A$4:$H$1036,6,FALSE) -> قطعة أ . ب - بلوك 13025 - المنطقة الصناعية - مدينة العبور | H32: =VLOOKUP($B32+0,'Vendor Data'!$A$4:$H$1036,7,FALSE) -> 0 | I32: 2570 | J32: 6891.5 | L32: =18.2+26.7 -> 44.9
A33: 31 | B33: 2 | C33: 2015-02-12 | D33: =VLOOKUP($B33+0,'Vendor Data'!$A$4:$H$1036,2,FALSE) -> 5/318/280 | E33: =VLOOKUP($B33+0,'Vendor Data'!$A$4:$H$1036,3,FALSE) -> 0 | F33: =VLOOKUP($B33+0,'Vendor Data'!$A$4:$H$1036,5,FALSE) -> لايت واى إيجيبت | G33: =VLOOKUP($B33+0,'Vendor Data'!$A$4:$H$1036,6,FALSE) -> قطعة أ . ب - بلوك 13025 - المنطقة الصناعية - مدينة العبور | H33: =VLOOKUP($B33+0,'Vendor Data'!$A$4:$H$1036,7,FALSE) -> 0 | I33: 2572 | J33: 15863.1 | L33: =17.5+67.73 -> 85.23
A34: 32 | B34: 4 | C34: 2015-02-12 | D34: =VLOOKUP($B34+0,'Vendor Data'!$A$4:$H$1036,2,FALSE) -> 001/5/03830/191/00/00 | E34: =VLOOKUP($B34+0,'Vendor Data'!$A$4:$H$1036,3,FALSE) -> 261/966/367 | F34: =VLOOKUP($B34+0,'Vendor Data'!$A$4:$H$1036,5,FALSE) -> المستقبل هوسبيتاليتى سوليوشنز إف إتش إس | G34: =VLOOKUP($B34+0,'Vendor Data'!$A$4:$H$1036,6,FALSE) -> 40 أ شارع ترسا الهرم - الجيزة | H34: =VLOOKUP($B34+0,'Vendor Data'!$A$4:$H$1036,7,FALSE) -> 0 | I34: 463 | J34: 2042.5 | L34: 10.02
A35: 33 | B35: 4 | C35: 2015-02-14 | D35: =VLOOKUP($B35+0,'Vendor Data'!$A$4:$H$1036,2,FALSE) -> 001/5/03830/191/00/00 | E35: =VLOOKUP($B35+0,'Vendor Data'!$A$4:$H$1036,3,FALSE) -> 261/966/367 | F35: =VLOOKUP($B35+0,'Vendor Data'!$A$4:$H$1036,5,FALSE) -> المستقبل هوسبيتاليتى سوليوشنز إف إتش إس | G35: =VLOOKUP($B35+0,'Vendor Data'!$A$4:$H$1036,6,FALSE) -> 40 أ شارع ترسا الهرم - الجيزة | H35: =VLOOKUP($B35+0,'Vendor Data'!$A$4:$H$1036,7,FALSE) -> 0 | I35: 482 | J35: 2207.5 | L35: 10.77
A36: 34 | B36: 7 | C36: 2015-02-12 | D36: =VLOOKUP($B36+0,'Vendor Data'!$A$4:$H$1036,2,FALSE) -> 5/1707/192/04/07 | E36: =VLOOKUP($B36+0,'Vendor Data'!$A$4:$H$1036,3,FALSE) -> 0 | F36: =VLOOKUP($B36+0,'Vendor Data'!$A$4:$H$1036,5,FALSE) -> الحلبى جروب للتوريدات و الاستيراد | G36: =VLOOKUP($B36+0,'Vendor Data'!$A$4:$H$1036,6,FALSE) -> منيل شيحة - الجيزة - طريق مصر أسيوط | H36: =VLOOKUP($B36+0,'Vendor Data'!$A$4:$H$1036,7,FALSE) -> 0 | I36: 306 | J36: 725 | K36: 0.005 | L36: 3.5
A37: 35 | B37: 7 | C37: 2015-02-12 | D37: =VLOOKUP($B37+0,'Vendor Data'!$A$4:$H$1036,2,FALSE) -> 5/1707/192/04/07 | E37: =VLOOKUP($B37+0,'Vendor Data'!$A$4:$H$1036,3,FALSE) -> 0 | F37: =VLOOKUP($B37+0,'Vendor Data'!$A$4:$H$1036,5,FALSE) -> الحلبى جروب للتوريدات و الاستيراد | G37: =VLOOKUP($B37+0,'Vendor Data'!$A$4:$H$1036,6,FALSE) -> منيل شيحة - الجيزة - طريق مصر أسيوط | H37: =VLOOKUP($B37+0,'Vendor Data'!$A$4:$H$1036,7,FALSE) -> 0 | I37: 305 | J37: 1760 | K37: 0.005 | L37: 8.5
A38: 36 | B38: 7 | C38: 2015-02-23 | D38: =VLOOKUP($B38+0,'Vendor Data'!$A$4:$H$1036,2,FALSE) -> 5/1707/192/04/07 | E38: =VLOOKUP($B38+0,'Vendor Data'!$A$4:$H$1036,3,FALSE) -> 0 | F38: =VLOOKUP($B38+0,'Vendor Data'!$A$4:$H$1036,5,FALSE) -> الحلبى جروب للتوريدات و الاستيراد | G38: =VLOOKUP($B38+0,'Vendor Data'!$A$4:$H$1036,6,FALSE) -> منيل شيحة - الجيزة - طريق مصر أسيوط | H38: =VLOOKUP($B38+0,'Vendor Data'!$A$4:$H$1036,7,FALSE) -> 0 | I38: 320 | J38: 645 | L38: 3.5
A39: 37 | B39: 7 | C39: 2015-03-23 | D39: =VLOOKUP($B39+0,'Vendor Data'!$A$4:$H$1036,2,FALSE) -> 5/1707/192/04/07 | E39: =VLOOKUP($B39+0,'Vendor Data'!$A$4:$H$1036,3,FALSE) -> 0 | F39: =VLOOKUP($B39+0,'Vendor Data'!$A$4:$H$1036,5,FALSE) -> الحلبى جروب للتوريدات و الاستيراد | G39: =VLOOKUP($B39+0,'Vendor Data'!$A$4:$H$1036,6,FALSE) -> منيل شيحة - الجيزة - طريق مصر أسيوط | H39: =VLOOKUP($B39+0,'Vendor Data'!$A$4:$H$1036,7,FALSE) -> 0 | I39: 318 | J39: 1600 | L39: 8
A40: 38 | B40: 12 | C40: 2015-02-01 | D40: =VLOOKUP($B40+0,'Vendor Data'!$A$4:$H$1036,2,FALSE) -> 5/828/192/28 | E40: =VLOOKUP($B40+0,'Vendor Data'!$A$4:$H$1036,3,FALSE) -> 0 | F40: =VLOOKUP($B40+0,'Vendor Data'!$A$4:$H$1036,5,FALSE) -> هولند كاب | G40: =VLOOKUP($B40+0,'Vendor Data'!$A$4:$H$1036,6,FALSE) -> 0 | H40: =VLOOKUP($B40+0,'Vendor Data'!$A$4:$H$1036,7,FALSE) -> 0 | I40: 4661 | J40: 750 | K40: 0.02 | L40: 13.75
A41: 39 | B41: 1 | C41: 2015-02-20 | D41: =VLOOKUP($B41+0,'Vendor Data'!$A$4:$H$1036,2,FALSE) -> 5/0177/191/03/24 | E41: =VLOOKUP($B41+0,'Vendor Data'!$A$4:$H$1036,3,FALSE) -> 327/964/103 | F41: =VLOOKUP($B41+0,'Vendor Data'!$A$4:$H$1036,5,FALSE) -> شركة ديكوم تريد | G41: =VLOOKUP($B41+0,'Vendor Data'!$A$4:$H$1036,6,FALSE) -> 53 شارع حافظ بدوى - مدينة نصر - القاهرة | H41: =VLOOKUP($B41+0,'Vendor Data'!$A$4:$H$1036,7,FALSE) -> 0 | I41: 6353 | J41: 122238.6 | L41: 555.6
A42: 40 | B42: 2 | C42: 2015-03-03 | D42: =VLOOKUP($B42+0,'Vendor Data'!$A$4:$H$1036,2,FALSE) -> 5/318/280 | E42: =VLOOKUP($B42+0,'Vendor Data'!$A$4:$H$1036,3,FALSE) -> 0 | F42: =VLOOKUP($B42+0,'Vendor Data'!$A$4:$H$1036,5,FALSE) -> لايت واى إيجيبت | G42: =VLOOKUP($B42+0,'Vendor Data'!$A$4:$H$1036,6,FALSE) -> قطعة أ . ب - بلوك 13025 - المنطقة الصناعية - مدينة العبور | H42: =VLOOKUP($B42+0,'Vendor Data'!$A$4:$H$1036,7,FALSE) -> 0 | I42: 2625 | J42: 3102 | L42: 14.1
A43: 41 | B43: 8 | C43: 2015-03-03 | D43: =VLOOKUP($B43+0,'Vendor Data'!$A$4:$H$1036,2,FALSE) -> 0 | E43: =VLOOKUP($B43+0,'Vendor Data'!$A$4:$H$1036,3,FALSE) -> 11623 | F43: =VLOOKUP($B43+0,'Vendor Data'!$A$4:$H$1036,5,FALSE) -> شركة فوود إستف للتوريدات | G43: =VLOOKUP($B43+0,'Vendor Data'!$A$4:$H$1036,6,FALSE) -> شارع مصعب بن عمير - الاسكندرية | H43: =VLOOKUP($B43+0,'Vendor Data'!$A$4:$H$1036,7,FALSE) -> الاسكندرية | I43: 7707 | J43: 469.7 | L43: 7.38
A44: 42 | B44: 13 | C44: 2015-02-26 | D44: =VLOOKUP($B44+0,'Vendor Data'!$A$4:$H$1036,2,FALSE) -> 500135-191-00-00 | E44: =VLOOKUP($B44+0,'Vendor Data'!$A$4:$H$1036,3,FALSE) -> 200-079-328 | F44: =VLOOKUP($B44+0,'Vendor Data'!$A$4:$H$1036,5,FALSE) -> شركة ميدو للتجارة العالمية | G44: =VLOOKUP($B44+0,'Vendor Data'!$A$4:$H$1036,6,FALSE) -> مدينة العبور - المنطقة الصناعية - قطعة 2 بلوك 13018 | H44: =VLOOKUP($B44+0,'Vendor Data'!$A$4:$H$1036,7,FALSE) -> مركز كبار الممولين | J44: 10780 | K44: 0.005 | L44: 49
A45: 43 | B45: 7 | C45: 2015-03-04 | D45: =VLOOKUP($B45+0,'Vendor Data'!$A$4:$H$1036,2,FALSE) -> 5/1707/192/04/07 | E45: =VLOOKUP($B45+0,'Vendor Data'!$A$4:$H$1036,3,FALSE) -> 0 | F45: =VLOOKUP($B45+0,'Vendor Data'!$A$4:$H$1036,5,FALSE) -> الحلبى جروب للتوريدات و الاستيراد | G45: =VLOOKUP($B45+0,'Vendor Data'!$A$4:$H$1036,6,FALSE) -> منيل شيحة - الجيزة - طريق مصر أسيوط | H45: =VLOOKUP($B45+0,'Vendor Data'!$A$4:$H$1036,7,FALSE) -> 0 | I45: 334 | J45: 750 | K45: 0.005 | L45: 3.5
A46: 44 | B46: 7 | C46: 2015-03-10 | D46: =VLOOKUP($B46+0,'Vendor Data'!$A$4:$H$1036,2,FALSE) -> 5/1707/192/04/07 | E46: =VLOOKUP($B46+0,'Vendor Data'!$A$4:$H$1036,3,FALSE) -> 0 | F46: =VLOOKUP($B46+0,'Vendor Data'!$A$4:$H$1036,5,FALSE) -> الحلبى جروب للتوريدات و الاستيراد | G46: =VLOOKUP($B46+0,'Vendor Data'!$A$4:$H$1036,6,FALSE) -> منيل شيحة - الجيزة - طريق مصر أسيوط | H46: =VLOOKUP($B46+0,'Vendor Data'!$A$4:$H$1036,7,FALSE) -> 0 | I46: 1 | J46: 1680 | K46: 0.005 | L46: 8.5
A47: 45 | B47: 11 | C47: 2015-03-12 | D47: =VLOOKUP($B47+0,'Vendor Data'!$A$4:$H$1036,2,FALSE) -> 510425/191 | E47: =VLOOKUP($B47+0,'Vendor Data'!$A$4:$H$1036,3,FALSE) -> 545/427/934 | F47: =VLOOKUP($B47+0,'Vendor Data'!$A$4:$H$1036,5,FALSE) -> سى آر سى للتجارة | G47: =VLOOKUP($B47+0,'Vendor Data'!$A$4:$H$1036,6,FALSE) -> 9ش مختار المصري - ارض الجولف - القاهرة | H47: =VLOOKUP($B47+0,'Vendor Data'!$A$4:$H$1036,7,FALSE) -> المساهمة | J47: 10731 | K47: 0.005 | L47: 49
A48: 46 | B48: 11 | C48: 2015-03-12 | D48: =VLOOKUP($B48+0,'Vendor Data'!$A$4:$H$1036,2,FALSE) -> 510425/191 | E48: =VLOOKUP($B48+0,'Vendor Data'!$A$4:$H$1036,3,FALSE) -> 545/427/934 | F48: =VLOOKUP($B48+0,'Vendor Data'!$A$4:$H$1036,5,FALSE) -> سى آر سى للتجارة | G48: =VLOOKUP($B48+0,'Vendor Data'!$A$4:$H$1036,6,FALSE) -> 9ش مختار المصري - ارض الجولف - القاهرة | H48: =VLOOKUP($B48+0,'Vendor Data'!$A$4:$H$1036,7,FALSE) -> المساهمة | J48: 6798 | K48: 0.005 | L48: 42.25
A49: 47 | B49: 7 | C49: 2015-03-17 | D49: =VLOOKUP($B49+0,'Vendor Data'!$A$4:$H$1036,2,FALSE) -> 5/1707/192/04/07 | E49: =VLOOKUP($B49+0,'Vendor Data'!$A$4:$H$1036,3,FALSE) -> 0 | F49: =VLOOKUP($B49+0,'Vendor Data'!$A$4:$H$1036,5,FALSE) -> الحلبى جروب للتوريدات و الاستيراد | G49: =VLOOKUP($B49+0,'Vendor Data'!$A$4:$H$1036,6,FALSE) -> منيل شيحة - الجيزة - طريق مصر أسيوط | H49: =VLOOKUP($B49+0,'Vendor Data'!$A$4:$H$1036,7,FALSE) -> 0 | I49: 554 | J49: 900 | K49: 0.005 | L49: 11
A50: 48 | B50: 11 | C50: 2015-03-14 | D50: =VLOOKUP($B50+0,'Vendor Data'!$A$4:$H$1036,2,FALSE) -> 510425/191 | E50: =VLOOKUP($B50+0,'Vendor Data'!$A$4:$H$1036,3,FALSE) -> 545/427/934 | F50: =VLOOKUP($B50+0,'Vendor Data'!$A$4:$H$1036,5,FALSE) -> سى آر سى للتجارة | G50: =VLOOKUP($B50+0,'Vendor Data'!$A$4:$H$1036,6,FALSE) -> 9ش مختار المصري - ارض الجولف - القاهرة | H50: =VLOOKUP($B50+0,'Vendor Data'!$A$4:$H$1036,7,FALSE) -> المساهمة | J50: 6380 | L50: 40.25
A51: 49 | B51: 8 | C51: 2015-03-22 | D51: =VLOOKUP($B51+0,'Vendor Data'!$A$4:$H$1036,2,FALSE) -> 0 | E51: =VLOOKUP($B51+0,'Vendor Data'!$A$4:$H$1036,3,FALSE) -> 11623 | F51: =VLOOKUP($B51+0,'Vendor Data'!$A$4:$H$1036,5,FALSE) -> شركة فوود إستف للتوريدات | G51: =VLOOKUP($B51+0,'Vendor Data'!$A$4:$H$1036,6,FALSE) -> شارع مصعب بن عمير - الاسكندرية | H51: =VLOOKUP($B51+0,'Vendor Data'!$A$4:$H$1036,7,FALSE) -> الاسكندرية | I51: 7756 | J51: 1353 | L51: 14.85
A52: 50 | B52: 13 | C52: 2015-03-21 | D52: =VLOOKUP($B52+0,'Vendor Data'!$A$4:$H$1036,2,FALSE) -> 500135-191-00-00 | E52: =VLOOKUP($B52+0,'Vendor Data'!$A$4:$H$1036,3,FALSE) -> 200-079-328 | F52: =VLOOKUP($B52+0,'Vendor Data'!$A$4:$H$1036,5,FALSE) -> شركة ميدو للتجارة العالمية | G52: =VLOOKUP($B52+0,'Vendor Data'!$A$4:$H$1036,6,FALSE) -> مدينة العبور - المنطقة الصناعية - قطعة 2 بلوك 13018 | H52: =VLOOKUP($B52+0,'Vendor Data'!$A$4:$H$1036,7,FALSE) -> مركز كبار الممولين | J52: 2750 | K52: 0.005 | L52: 12.5
A53: 51 | B53: 2 | C53: 2015-03-23 | D53: =VLOOKUP($B53+0,'Vendor Data'!$A$4:$H$1036,2,FALSE) -> 5/318/280 | E53: =VLOOKUP($B53+0,'Vendor Data'!$A$4:$H$1036,3,FALSE) -> 0 | F53: =VLOOKUP($B53+0,'Vendor Data'!$A$4:$H$1036,5,FALSE) -> لايت واى إيجيبت | G53: =VLOOKUP($B53+0,'Vendor Data'!$A$4:$H$1036,6,FALSE) -> قطعة أ . ب - بلوك 13025 - المنطقة الصناعية - مدينة العبور | H53: =VLOOKUP($B53+0,'Vendor Data'!$A$4:$H$1036,7,FALSE) -> 0 | I53: 2703 | J53: 6204 | L53: 28.2
A54: 52 | B54: 4 | C54: 2015-03-24 | D54: =VLOOKUP($B54+0,'Vendor Data'!$A$4:$H$1036,2,FALSE) -> 001/5/03830/191/00/00 | E54: =VLOOKUP($B54+0,'Vendor Data'!$A$4:$H$1036,3,FALSE) -> 261/966/367 | F54: =VLOOKUP($B54+0,'Vendor Data'!$A$4:$H$1036,5,FALSE) -> المستقبل هوسبيتاليتى سوليوشنز إف إتش إس | G54: =VLOOKUP($B54+0,'Vendor Data'!$A$4:$H$1036,6,FALSE) -> 40 أ شارع ترسا الهرم - الجيزة | H54: =VLOOKUP($B54+0,'Vendor Data'!$A$4:$H$1036,7,FALSE) -> 0 | I54: 1018 | J54: 3045.7 | L54: 14.58
A55: 53 | B55: 8 | C55: 2015-03-25 | D55: =VLOOKUP($B55+0,'Vendor Data'!$A$4:$H$1036,2,FALSE) -> 0 | E55: =VLOOKUP($B55+0,'Vendor Data'!$A$4:$H$1036,3,FALSE) -> 11623 | F55: =VLOOKUP($B55+0,'Vendor Data'!$A$4:$H$1036,5,FALSE) -> شركة فوود إستف للتوريدات | G55: =VLOOKUP($B55+0,'Vendor Data'!$A$4:$H$1036,6,FALSE) -> شارع مصعب بن عمير - الاسكندرية | H55: =VLOOKUP($B55+0,'Vendor Data'!$A$4:$H$1036,7,FALSE) -> الاسكندرية | I55: 7767 | J55: 645.15 | L55: 7.13
A56: 54 | B56: 7 | C56: 2015-03-23 | D56: =VLOOKUP($B56+0,'Vendor Data'!$A$4:$H$1036,2,FALSE) -> 5/1707/192/04/07 | E56: =VLOOKUP($B56+0,'Vendor Data'!$A$4:$H$1036,3,FALSE) -> 0 | F56: =VLOOKUP($B56+0,'Vendor Data'!$A$4:$H$1036,5,FALSE) -> الحلبى جروب للتوريدات و الاستيراد | G56: =VLOOKUP($B56+0,'Vendor Data'!$A$4:$H$1036,6,FALSE) -> منيل شيحة - الجيزة - طريق مصر أسيوط | H56: =VLOOKUP($B56+0,'Vendor Data'!$A$4:$H$1036,7,FALSE) -> 0 | I56: 337 | J56: 1770 | K56: 0.005 | L56: 8.5
A57: 55 | B57: 11 | C57: 2015-03-19 | D57: =VLOOKUP($B57+0,'Vendor Data'!$A$4:$H$1036,2,FALSE) -> 510425/191 | E57: =VLOOKUP($B57+0,'Vendor Data'!$A$4:$H$1036,3,FALSE) -> 545/427/934 | F57: =VLOOKUP($B57+0,'Vendor Data'!$A$4:$H$1036,5,FALSE) -> سى آر سى للتجارة | G57: =VLOOKUP($B57+0,'Vendor Data'!$A$4:$H$1036,6,FALSE) -> 9ش مختار المصري - ارض الجولف - القاهرة | H57: =VLOOKUP($B57+0,'Vendor Data'!$A$4:$H$1036,7,FALSE) -> المساهمة | J57: 9872.5 | L57: 56.25
A58: 56 | B58: 7 | C58: 2015-03-31 | D58: =VLOOKUP($B58+0,'Vendor Data'!$A$4:$H$1036,2,FALSE) -> 5/1707/192/04/07 | E58: =VLOOKUP($B58+0,'Vendor Data'!$A$4:$H$1036,3,FALSE) -> 0 | F58: =VLOOKUP($B58+0,'Vendor Data'!$A$4:$H$1036,5,FALSE) -> الحلبى جروب للتوريدات و الاستيراد | G58: =VLOOKUP($B58+0,'Vendor Data'!$A$4:$H$1036,6,FALSE) -> منيل شيحة - الجيزة - طريق مصر أسيوط | H58: =VLOOKUP($B58+0,'Vendor Data'!$A$4:$H$1036,7,FALSE) -> 0 | I58: 342 | J58: 1670 | K58: 0.005 | L58: 8.25
A59: 57 | B59: 14 | C59: 2015-03-31 | D59: =VLOOKUP($B59+0,'Vendor Data'!$A$4:$H$1036,2,FALSE) -> 0 | E59: =VLOOKUP($B59+0,'Vendor Data'!$A$4:$H$1036,3,FALSE) -> 518/767/124 | F59: =VLOOKUP($B59+0,'Vendor Data'!$A$4:$H$1036,5,FALSE) -> بصمة | G59: =VLOOKUP($B59+0,'Vendor Data'!$A$4:$H$1036,6,FALSE) -> 14 شارع عبد الحى حجازى متفرع من عباس العقاد - مدينة نصر - القاهرة | H59: =VLOOKUP($B59+0,'Vendor Data'!$A$4:$H$1036,7,FALSE) -> 0 | I59: 119 | J59: 630 | K59: 0.005 | L59: 3.25
A60: 58 | D60: =VLOOKUP($B60+0,'Vendor Data'!$A$4:$H$1036,2,FALSE) ->  | E60: =VLOOKUP($B60+0,'Vendor Data'!$A$4:$H$1036,3,FALSE) ->  | F60: =VLOOKUP($B60+0,'Vendor Data'!$A$4:$H$1036,5,FALSE) ->  | G60: =VLOOKUP($B60+0,'Vendor Data'!$A$4:$H$1036,6,FALSE) ->  | H60: =VLOOKUP($B60+0,'Vendor Data'!$A$4:$H$1036,7,FALSE) -> 
A61: 59 | D61: =VLOOKUP($B61+0,'Vendor Data'!$A$4:$H$1036,2,FALSE) ->  | E61: =VLOOKUP($B61+0,'Vendor Data'!$A$4:$H$1036,3,FALSE) ->  | F61: =VLOOKUP($B61+0,'Vendor Data'!$A$4:$H$1036,5,FALSE) ->  | G61: =VLOOKUP($B61+0,'Vendor Data'!$A$4:$H$1036,6,FALSE) ->  | H61: =VLOOKUP($B61+0,'Vendor Data'!$A$4:$H$1036,7,FALSE) -> 
A62: 60 | D62: =VLOOKUP($B62+0,'Vendor Data'!$A$4:$H$1036,2,FALSE) ->  | E62: =VLOOKUP($B62+0,'Vendor Data'!$A$4:$H$1036,3,FALSE) ->  | F62: =VLOOKUP($B62+0,'Vendor Data'!$A$4:$H$1036,5,FALSE) ->  | G62: =VLOOKUP($B62+0,'Vendor Data'!$A$4:$H$1036,6,FALSE) ->  | H62: =VLOOKUP($B62+0,'Vendor Data'!$A$4:$H$1036,7,FALSE) -> 
A63: 61 | D63: =VLOOKUP($B63+0,'Vendor Data'!$A$4:$H$1036,2,FALSE) ->  | E63: =VLOOKUP($B63+0,'Vendor Data'!$A$4:$H$1036,3,FALSE) ->  | F63: =VLOOKUP($B63+0,'Vendor Data'!$A$4:$H$1036,5,FALSE) ->  | G63: =VLOOKUP($B63+0,'Vendor Data'!$A$4:$H$1036,6,FALSE) ->  | H63: =VLOOKUP($B63+0,'Vendor Data'!$A$4:$H$1036,7,FALSE) -> 
A64: 62 | D64: =VLOOKUP($B64+0,'Vendor Data'!$A$4:$H$1036,2,FALSE) ->  | E64: =VLOOKUP($B64+0,'Vendor Data'!$A$4:$H$1036,3,FALSE) ->  | F64: =VLOOKUP($B64+0,'Vendor Data'!$A$4:$H$1036,5,FALSE) ->  | G64: =VLOOKUP($B64+0,'Vendor Data'!$A$4:$H$1036,6,FALSE) ->  | H64: =VLOOKUP($B64+0,'Vendor Data'!$A$4:$H$1036,7,FALSE) -> 
A65: 63 | D65: =VLOOKUP($B65+0,'Vendor Data'!$A$4:$H$1036,2,FALSE) ->  | E65: =VLOOKUP($B65+0,'Vendor Data'!$A$4:$H$1036,3,FALSE) ->  | F65: =VLOOKUP($B65+0,'Vendor Data'!$A$4:$H$1036,5,FALSE) ->  | G65: =VLOOKUP($B65+0,'Vendor Data'!$A$4:$H$1036,6,FALSE) ->  | H65: =VLOOKUP($B65+0,'Vendor Data'!$A$4:$H$1036,7,FALSE) -> 
A66: 64 | D66: =VLOOKUP($B66+0,'Vendor Data'!$A$4:$H$1036,2,FALSE) ->  | E66: =VLOOKUP($B66+0,'Vendor Data'!$A$4:$H$1036,3,FALSE) ->  | F66: =VLOOKUP($B66+0,'Vendor Data'!$A$4:$H$1036,5,FALSE) ->  | G66: =VLOOKUP($B66+0,'Vendor Data'!$A$4:$H$1036,6,FALSE) ->  | H66: =VLOOKUP($B66+0,'Vendor Data'!$A$4:$H$1036,7,FALSE) -> 
A67: 65 | D67: =VLOOKUP($B67+0,'Vendor Data'!$A$4:$H$1036,2,FALSE) ->  | E67: =VLOOKUP($B67+0,'Vendor Data'!$A$4:$H$1036,3,FALSE) ->  | F67: =VLOOKUP($B67+0,'Vendor Data'!$A$4:$H$1036,5,FALSE) ->  | G67: =VLOOKUP($B67+0,'Vendor Data'!$A$4:$H$1036,6,FALSE) ->  | H67: =VLOOKUP($B67+0,'Vendor Data'!$A$4:$H$1036,7,FALSE) -> 
A68: 66 | D68: =VLOOKUP($B68+0,'Vendor Data'!$A$4:$H$1036,2,FALSE) ->  | E68: =VLOOKUP($B68+0,'Vendor Data'!$A$4:$H$1036,3,FALSE) ->  | F68: =VLOOKUP($B68+0,'Vendor Data'!$A$4:$H$1036,5,FALSE) ->  | G68: =VLOOKUP($B68+0,'Vendor Data'!$A$4:$H$1036,6,FALSE) ->  | H68: =VLOOKUP($B68+0,'Vendor Data'!$A$4:$H$1036,7,FALSE) -> 
A69: 67 | D69: =VLOOKUP($B69+0,'Vendor Data'!$A$4:$H$1036,2,FALSE) ->  | E69: =VLOOKUP($B69+0,'Vendor Data'!$A$4:$H$1036,3,FALSE) ->  | F69: =VLOOKUP($B69+0,'Vendor Data'!$A$4:$H$1036,5,FALSE) ->  | G69: =VLOOKUP($B69+0,'Vendor Data'!$A$4:$H$1036,6,FALSE) ->  | H69: =VLOOKUP($B69+0,'Vendor Data'!$A$4:$H$1036,7,FALSE) -> 
A70: 68 | D70: =VLOOKUP($B70+0,'Vendor Data'!$A$4:$H$1036,2,FALSE) ->  | E70: =VLOOKUP($B70+0,'Vendor Data'!$A$4:$H$1036,3,FALSE) ->  | F70: =VLOOKUP($B70+0,'Vendor Data'!$A$4:$H$1036,5,FALSE) ->  | G70: =VLOOKUP($B70+0,'Vendor Data'!$A$4:$H$1036,6,FALSE) ->  | H70: =VLOOKUP($B70+0,'Vendor Data'!$A$4:$H$1036,7,FALSE) -> 
A71: 69 | D71: =VLOOKUP($B71+0,'Vendor Data'!$A$4:$H$1036,2,FALSE) ->  | E71: =VLOOKUP($B71+0,'Vendor Data'!$A$4:$H$1036,3,FALSE) ->  | F71: =VLOOKUP($B71+0,'Vendor Data'!$A$4:$H$1036,5,FALSE) ->  | G71: =VLOOKUP($B71+0,'Vendor Data'!$A$4:$H$1036,6,FALSE) ->  | H71: =VLOOKUP($B71+0,'Vendor Data'!$A$4:$H$1036,7,FALSE) -> 
A72: 70 | D72: =VLOOKUP($B72+0,'Vendor Data'!$A$4:$H$1036,2,FALSE) ->  | E72: =VLOOKUP($B72+0,'Vendor Data'!$A$4:$H$1036,3,FALSE) ->  | F72: =VLOOKUP($B72+0,'Vendor Data'!$A$4:$H$1036,5,FALSE) ->  | G72: =VLOOKUP($B72+0,'Vendor Data'!$A$4:$H$1036,6,FALSE) ->  | H72: =VLOOKUP($B72+0,'Vendor Data'!$A$4:$H$1036,7,FALSE) -> 
A73: 71 | D73: =VLOOKUP($B73+0,'Vendor Data'!$A$4:$H$1036,2,FALSE) ->  | E73: =VLOOKUP($B73+0,'Vendor Data'!$A$4:$H$1036,3,FALSE) ->  | F73: =VLOOKUP($B73+0,'Vendor Data'!$A$4:$H$1036,5,FALSE) ->  | G73: =VLOOKUP($B73+0,'Vendor Data'!$A$4:$H$1036,6,FALSE) ->  | H73: =VLOOKUP($B73+0,'Vendor Data'!$A$4:$H$1036,7,FALSE) -> 
A74: 72 | D74: =VLOOKUP($B74+0,'Vendor Data'!$A$4:$H$1036,2,FALSE) ->  | E74: =VLOOKUP($B74+0,'Vendor Data'!$A$4:$H$1036,3,FALSE) ->  | F74: =VLOOKUP($B74+0,'Vendor Data'!$A$4:$H$1036,5,FALSE) ->  | G74: =VLOOKUP($B74+0,'Vendor Data'!$A$4:$H$1036,6,FALSE) ->  | H74: =VLOOKUP($B74+0,'Vendor Data'!$A$4:$H$1036,7,FALSE) -> 
A75: 73 | D75: =VLOOKUP($B75+0,'Vendor Data'!$A$4:$H$1036,2,FALSE) ->  | E75: =VLOOKUP($B75+0,'Vendor Data'!$A$4:$H$1036,3,FALSE) ->  | F75: =VLOOKUP($B75+0,'Vendor Data'!$A$4:$H$1036,5,FALSE) ->  | G75: =VLOOKUP($B75+0,'Vendor Data'!$A$4:$H$1036,6,FALSE) ->  | H75: =VLOOKUP($B75+0,'Vendor Data'!$A$4:$H$1036,7,FALSE) -> 
A76: 74 | D76: =VLOOKUP($B76+0,'Vendor Data'!$A$4:$H$1036,2,FALSE) ->  | E76: =VLOOKUP($B76+0,'Vendor Data'!$A$4:$H$1036,3,FALSE) ->  | F76: =VLOOKUP($B76+0,'Vendor Data'!$A$4:$H$1036,5,FALSE) ->  | G76: =VLOOKUP($B76+0,'Vendor Data'!$A$4:$H$1036,6,FALSE) ->  | H76: =VLOOKUP($B76+0,'Vendor Data'!$A$4:$H$1036,7,FALSE) -> 
A77: 75 | D77: =VLOOKUP($B77+0,'Vendor Data'!$A$4:$H$1036,2,FALSE) ->  | E77: =VLOOKUP($B77+0,'Vendor Data'!$A$4:$H$1036,3,FALSE) ->  | F77: =VLOOKUP($B77+0,'Vendor Data'!$A$4:$H$1036,5,FALSE) ->  | G77: =VLOOKUP($B77+0,'Vendor Data'!$A$4:$H$1036,6,FALSE) ->  | H77: =VLOOKUP($B77+0,'Vendor Data'!$A$4:$H$1036,7,FALSE) -> 
A78: 76 | D78: =VLOOKUP($B78+0,'Vendor Data'!$A$4:$H$1036,2,FALSE) ->  | E78: =VLOOKUP($B78+0,'Vendor Data'!$A$4:$H$1036,3,FALSE) ->  | F78: =VLOOKUP($B78+0,'Vendor Data'!$A$4:$H$1036,5,FALSE) ->  | G78: =VLOOKUP($B78+0,'Vendor Data'!$A$4:$H$1036,6,FALSE) ->  | H78: =VLOOKUP($B78+0,'Vendor Data'!$A$4:$H$1036,7,FALSE) -> 
A79: 77 | D79: =VLOOKUP($B79+0,'Vendor Data'!$A$4:$H$1036,2,FALSE) ->  | E79: =VLOOKUP($B79+0,'Vendor Data'!$A$4:$H$1036,3,FALSE) ->  | F79: =VLOOKUP($B79+0,'Vendor Data'!$A$4:$H$1036,5,FALSE) ->  | G79: =VLOOKUP($B79+0,'Vendor Data'!$A$4:$H$1036,6,FALSE) ->  | H79: =VLOOKUP($B79+0,'Vendor Data'!$A$4:$H$1036,7,FALSE) -> 
A80: 78 | D80: =VLOOKUP($B80+0,'Vendor Data'!$A$4:$H$1036,2,FALSE) ->  | E80: =VLOOKUP($B80+0,'Vendor Data'!$A$4:$H$1036,3,FALSE) ->  | F80: =VLOOKUP($B80+0,'Vendor Data'!$A$4:$H$1036,5,FALSE) ->  | G80: =VLOOKUP($B80+0,'Vendor Data'!$A$4:$H$1036,6,FALSE) ->  | H80: =VLOOKUP($B80+0,'Vendor Data'!$A$4:$H$1036,7,FALSE) -> 
A81: 79 | D81: =VLOOKUP($B81+0,'Vendor Data'!$A$4:$H$1036,2,FALSE) ->  | E81: =VLOOKUP($B81+0,'Vendor Data'!$A$4:$H$1036,3,FALSE) ->  | F81: =VLOOKUP($B81+0,'Vendor Data'!$A$4:$H$1036,5,FALSE) ->  | G81: =VLOOKUP($B81+0,'Vendor Data'!$A$4:$H$1036,6,FALSE) ->  | H81: =VLOOKUP($B81+0,'Vendor Data'!$A$4:$H$1036,7,FALSE) -> 
A82: 80 | D82: =VLOOKUP($B82+0,'Vendor Data'!$A$4:$H$1036,2,FALSE) ->  | E82: =VLOOKUP($B82+0,'Vendor Data'!$A$4:$H$1036,3,FALSE) ->  | F82: =VLOOKUP($B82+0,'Vendor Data'!$A$4:$H$1036,5,FALSE) ->  | G82: =VLOOKUP($B82+0,'Vendor Data'!$A$4:$H$1036,6,FALSE) ->  | H82: =VLOOKUP($B82+0,'Vendor Data'!$A$4:$H$1036,7,FALSE) -> 
A83: 81 | D83: =VLOOKUP($B83+0,'Vendor Data'!$A$4:$H$1036,2,FALSE) ->  | E83: =VLOOKUP($B83+0,'Vendor Data'!$A$4:$H$1036,3,FALSE) ->  | F83: =VLOOKUP($B83+0,'Vendor Data'!$A$4:$H$1036,5,FALSE) ->  | G83: =VLOOKUP($B83+0,'Vendor Data'!$A$4:$H$1036,6,FALSE) ->  | H83: =VLOOKUP($B83+0,'Vendor Data'!$A$4:$H$1036,7,FALSE) -> 
A84: 82 | D84: =VLOOKUP($B84+0,'Vendor Data'!$A$4:$H$1036,2,FALSE) ->  | E84: =VLOOKUP($B84+0,'Vendor Data'!$A$4:$H$1036,3,FALSE) ->  | F84: =VLOOKUP($B84+0,'Vendor Data'!$A$4:$H$1036,5,FALSE) ->  | G84: =VLOOKUP($B84+0,'Vendor Data'!$A$4:$H$1036,6,FALSE) ->  | H84: =VLOOKUP($B84+0,'Vendor Data'!$A$4:$H$1036,7,FALSE) -> 
A85: 83 | D85: =VLOOKUP($B85+0,'Vendor Data'!$A$4:$H$1036,2,FALSE) ->  | E85: =VLOOKUP($B85+0,'Vendor Data'!$A$4:$H$1036,3,FALSE) ->  | F85: =VLOOKUP($B85+0,'Vendor Data'!$A$4:$H$1036,5,FALSE) ->  | G85: =VLOOKUP($B85+0,'Vendor Data'!$A$4:$H$1036,6,FALSE) ->  | H85: =VLOOKUP($B85+0,'Vendor Data'!$A$4:$H$1036,7,FALSE) -> 
A86: 84 | D86: =VLOOKUP($B86+0,'Vendor Data'!$A$4:$H$1036,2,FALSE) ->  | E86: =VLOOKUP($B86+0,'Vendor Data'!$A$4:$H$1036,3,FALSE) ->  | F86: =VLOOKUP($B86+0,'Vendor Data'!$A$4:$H$1036,5,FALSE) ->  | G86: =VLOOKUP($B86+0,'Vendor Data'!$A$4:$H$1036,6,FALSE) ->  | H86: =VLOOKUP($B86+0,'Vendor Data'!$A$4:$H$1036,7,FALSE) -> 
A87: 85 | D87: =VLOOKUP($B87+0,'Vendor Data'!$A$4:$H$1036,2,FALSE) ->  | E87: =VLOOKUP($B87+0,'Vendor Data'!$A$4:$H$1036,3,FALSE) ->  | F87: =VLOOKUP($B87+0,'Vendor Data'!$A$4:$H$1036,5,FALSE) ->  | G87: =VLOOKUP($B87+0,'Vendor Data'!$A$4:$H$1036,6,FALSE) ->  | H87: =VLOOKUP($B87+0,'Vendor Data'!$A$4:$H$1036,7,FALSE) -> 
A88: 86 | D88: =VLOOKUP($B88+0,'Vendor Data'!$A$4:$H$1036,2,FALSE) ->  | E88: =VLOOKUP($B88+0,'Vendor Data'!$A$4:$H$1036,3,FALSE) ->  | F88: =VLOOKUP($B88+0,'Vendor Data'!$A$4:$H$1036,5,FALSE) ->  | G88: =VLOOKUP($B88+0,'Vendor Data'!$A$4:$H$1036,6,FALSE) ->  | H88: =VLOOKUP($B88+0,'Vendor Data'!$A$4:$H$1036,7,FALSE) -> 
A89: 87 | D89: =VLOOKUP($B89+0,'Vendor Data'!$A$4:$H$1036,2,FALSE) ->  | E89: =VLOOKUP($B89+0,'Vendor Data'!$A$4:$H$1036,3,FALSE) ->  | F89: =VLOOKUP($B89+0,'Vendor Data'!$A$4:$H$1036,5,FALSE) ->  | G89: =VLOOKUP($B89+0,'Vendor Data'!$A$4:$H$1036,6,FALSE) ->  | H89: =VLOOKUP($B89+0,'Vendor Data'!$A$4:$H$1036,7,FALSE) -> 
A90: 88 | D90: =VLOOKUP($B90+0,'Vendor Data'!$A$4:$H$1036,2,FALSE) ->  | E90: =VLOOKUP($B90+0,'Vendor Data'!$A$4:$H$1036,3,FALSE) ->  | F90: =VLOOKUP($B90+0,'Vendor Data'!$A$4:$H$1036,5,FALSE) ->  | G90: =VLOOKUP($B90+0,'Vendor Data'!$A$4:$H$1036,6,FALSE) ->  | H90: =VLOOKUP($B90+0,'Vendor Data'!$A$4:$H$1036,7,FALSE) -> 
A91: 89 | D91: =VLOOKUP($B91+0,'Vendor Data'!$A$4:$H$1036,2,FALSE) ->  | E91: =VLOOKUP($B91+0,'Vendor Data'!$A$4:$H$1036,3,FALSE) ->  | F91: =VLOOKUP($B91+0,'Vendor Data'!$A$4:$H$1036,5,FALSE) ->  | G91: =VLOOKUP($B91+0,'Vendor Data'!$A$4:$H$1036,6,FALSE) ->  | H91: =VLOOKUP($B91+0,'Vendor Data'!$A$4:$H$1036,7,FALSE) -> 
A92: 90 | D92: =VLOOKUP($B92+0,'Vendor Data'!$A$4:$H$1036,2,FALSE) ->  | E92: =VLOOKUP($B92+0,'Vendor Data'!$A$4:$H$1036,3,FALSE) ->  | F92: =VLOOKUP($B92+0,'Vendor Data'!$A$4:$H$1036,5,FALSE) ->  | G92: =VLOOKUP($B92+0,'Vendor Data'!$A$4:$H$1036,6,FALSE) ->  | H92: =VLOOKUP($B92+0,'Vendor Data'!$A$4:$H$1036,7,FALSE) -> 
C93: =tafket(L93,"جنيه"," قرش") -> فقط ألفين و ستمائة و ثلاثة و ثلاثون جنيه و 88 قرش لاغير | L93: =SUM(L3:L92) -> 2633.88
C94: تحريرا فى / / | G94: الموظف المختص | J94: رئيس جهة العمل

Sheet الفترة الثانية 2015 (hidden)
A2: رقم الايصال | B2: كود المورد | C2: التاريخ | D2: رقم الملف | E2: بطاقة ضريبية | F2: إسم الممول | G2: العنوان | H2: المامورية | I2: رقم الفاتورة | J2: قيمة الفاتورة | K2: النسبة | L2: الضريبة
A3: 58 | B3: 1 | C3: 2015-04-01 | D3: =VLOOKUP($B3+0,'Vendor Data'!$A$4:$H$1036,2,FALSE) -> 5/0177/191/03/24 | E3: =VLOOKUP($B3+0,'Vendor Data'!$A$4:$H$1036,3,FALSE) -> 327/964/103 | F3: =VLOOKUP($B3+0,'Vendor Data'!$A$4:$H$1036,5,FALSE) -> شركة ديكوم تريد | G3: =VLOOKUP($B3+0,'Vendor Data'!$A$4:$H$1036,6,FALSE) -> 53 شارع حافظ بدوى - مدينة نصر - القاهرة | H3: =VLOOKUP($B3+0,'Vendor Data'!$A$4:$H$1036,7,FALSE) -> 0 | I3: 2705-2706 | J3: 9537 | L3: =45.5+61.49 -> 106.99
A4: 59 | B4: 2 | C4: 2015-04-01 | D4: =VLOOKUP($B4+0,'Vendor Data'!$A$4:$H$1036,2,FALSE) -> 5/318/280 | E4: =VLOOKUP($B4+0,'Vendor Data'!$A$4:$H$1036,3,FALSE) -> 0 | F4: =VLOOKUP($B4+0,'Vendor Data'!$A$4:$H$1036,5,FALSE) -> لايت واى إيجيبت | G4: =VLOOKUP($B4+0,'Vendor Data'!$A$4:$H$1036,6,FALSE) -> قطعة أ . ب - بلوك 13025 - المنطقة الصناعية - مدينة العبور | H4: =VLOOKUP($B4+0,'Vendor Data'!$A$4:$H$1036,7,FALSE) -> 0 | I4: 2604 | J4: 3832.5 | K4: 0.02 | L4: 17.5
A5: 60 | B5: 11 | C5: 2015-04-01 | D5: =VLOOKUP($B5+0,'Vendor Data'!$A$4:$H$1036,2,FALSE) -> 510425/191 | E5: =VLOOKUP($B5+0,'Vendor Data'!$A$4:$H$1036,3,FALSE) -> 545/427/934 | F5: =VLOOKUP($B5+0,'Vendor Data'!$A$4:$H$1036,5,FALSE) -> سى آر سى للتجارة | G5: =VLOOKUP($B5+0,'Vendor Data'!$A$4:$H$1036,6,FALSE) -> 9ش مختار المصري - ارض الجولف - القاهرة | H5: =VLOOKUP($B5+0,'Vendor Data'!$A$4:$H$1036,7,FALSE) -> المساهمة | I5: 749 | J5: 17077.5 | K5: 0.005 | L5: 77.5
A6: 61 | B6: 7 | C6: 2015-03-29 | D6: =VLOOKUP($B6+0,'Vendor Data'!$A$4:$H$1036,2,FALSE) -> 5/1707/192/04/07 | E6: =VLOOKUP($B6+0,'Vendor Data'!$A$4:$H$1036,3,FALSE) -> 0 | F6: =VLOOKUP($B6+0,'Vendor Data'!$A$4:$H$1036,5,FALSE) -> الحلبى جروب للتوريدات و الاستيراد | G6: =VLOOKUP($B6+0,'Vendor Data'!$A$4:$H$1036,6,FALSE) -> منيل شيحة - الجيزة - طريق مصر أسيوط | H6: =VLOOKUP($B6+0,'Vendor Data'!$A$4:$H$1036,7,FALSE) -> 0 | I6: 343 | J6: 335 | K6: 0.005 | L6: 1.5
A7: 62 | B7: 15 | C7: 2015-04-02 | D7: =VLOOKUP($B7+0,'Vendor Data'!$A$4:$H$1036,2,FALSE) -> 200/178/466 | E7: =VLOOKUP($B7+0,'Vendor Data'!$A$4:$H$1036,3,FALSE) -> 1/136 | F7: =VLOOKUP($B7+0,'Vendor Data'!$A$4:$H$1036,5,FALSE) -> ريتش للتجارة و التسويق | G7: =VLOOKUP($B7+0,'Vendor Data'!$A$4:$H$1036,6,FALSE) -> مدينة العبور | H7: =VLOOKUP($B7+0,'Vendor Data'!$A$4:$H$1036,7,FALSE) -> 0 | I7: 1335 | J7: 6320.75 | K7: 0.005 | L7: 31.75
A8: 63 | B8: 15 | C8: 2015-04-04 | D8: =VLOOKUP($B8+0,'Vendor Data'!$A$4:$H$1036,2,FALSE) -> 200/178/466 | E8: =VLOOKUP($B8+0,'Vendor Data'!$A$4:$H$1036,3,FALSE) -> 1/136 | F8: =VLOOKUP($B8+0,'Vendor Data'!$A$4:$H$1036,5,FALSE) -> ريتش للتجارة و التسويق | G8: =VLOOKUP($B8+0,'Vendor Data'!$A$4:$H$1036,6,FALSE) -> مدينة العبور | H8: =VLOOKUP($B8+0,'Vendor Data'!$A$4:$H$1036,7,FALSE) -> 0 | I8: 1337 | J8: 3813.5 | K8: 0.005 | L8: 20
A9: 64 | B9: 2 | C9: 2015-04-09 | D9: =VLOOKUP($B9+0,'Vendor Data'!$A$4:$H$1036,2,FALSE) -> 5/318/280 | E9: =VLOOKUP($B9+0,'Vendor Data'!$A$4:$H$1036,3,FALSE) -> 0 | F9: =VLOOKUP($B9+0,'Vendor Data'!$A$4:$H$1036,5,FALSE) -> لايت واى إيجيبت | G9: =VLOOKUP($B9+0,'Vendor Data'!$A$4:$H$1036,6,FALSE) -> قطعة أ . ب - بلوك 13025 - المنطقة الصناعية - مدينة العبور | H9: =VLOOKUP($B9+0,'Vendor Data'!$A$4:$H$1036,7,FALSE) -> 0 | I9: 1 | J9: 3087.9 | K9: 0.005 | L9: 14.1
A10: 65 | B10: 16 | C10: 2015-04-08 | D10: =VLOOKUP($B10+0,'Vendor Data'!$A$4:$H$1036,2,FALSE) -> 27904161400791 | E10: =VLOOKUP($B10+0,'Vendor Data'!$A$4:$H$1036,3,FALSE) -> 0 | F10: =VLOOKUP($B10+0,'Vendor Data'!$A$4:$H$1036,5,FALSE) -> وائل محمد أنور محمد | G10: =VLOOKUP($B10+0,'Vendor Data'!$A$4:$H$1036,6,FALSE) -> 48 شارع محمد عثمان من شارع الفتح - البساتين - القاهرةة | H10: =VLOOKUP($B10+0,'Vendor Data'!$A$4:$H$1036,7,FALSE) -> 0 | I10: 16 | J10: 507.9 | K10: 0.005 | L10: 2.5
A11: 65 | B11: 15 | C11: 2015-04-08 | D11: =VLOOKUP($B11+0,'Vendor Data'!$A$4:$H$1036,2,FALSE) -> 200/178/466 | E11: =VLOOKUP($B11+0,'Vendor Data'!$A$4:$H$1036,3,FALSE) -> 1/136 | F11: =VLOOKUP($B11+0,'Vendor Data'!$A$4:$H$1036,5,FALSE) -> ريتش للتجارة و التسويق | G11: =VLOOKUP($B11+0,'Vendor Data'!$A$4:$H$1036,6,FALSE) -> مدينة العبور | H11: =VLOOKUP($B11+0,'Vendor Data'!$A$4:$H$1036,7,FALSE) -> 0 | I11: 1340/1347 | J11: 15457.5 | K11: 0.005 | L11: 78
A12: 66 | B12: 11 | C12: 2015-04-15 | D12: =VLOOKUP($B12+0,'Vendor Data'!$A$4:$H$1036,2,FALSE) -> 510425/191 | E12: =VLOOKUP($B12+0,'Vendor Data'!$A$4:$H$1036,3,FALSE) -> 545/427/934 | F12: =VLOOKUP($B12+0,'Vendor Data'!$A$4:$H$1036,5,FALSE) -> سى آر سى للتجارة | G12: =VLOOKUP($B12+0,'Vendor Data'!$A$4:$H$1036,6,FALSE) -> 9ش مختار المصري - ارض الجولف - القاهرة | H12: =VLOOKUP($B12+0,'Vendor Data'!$A$4:$H$1036,7,FALSE) -> المساهمة | I12: 770 | J12: 6110.4 | K12: 0.005 | L12: 30.4
A13: 67 | B13: 4 | C13: 2015-04-19 | D13: =VLOOKUP($B13+0,'Vendor Data'!$A$4:$H$1036,2,FALSE) -> 001/5/03830/191/00/00 | E13: =VLOOKUP($B13+0,'Vendor Data'!$A$4:$H$1036,3,FALSE) -> 261/966/367 | F13: =VLOOKUP($B13+0,'Vendor Data'!$A$4:$H$1036,5,FALSE) -> المستقبل هوسبيتاليتى سوليوشنز إف إتش إس | G13: =VLOOKUP($B13+0,'Vendor Data'!$A$4:$H$1036,6,FALSE) -> 40 أ شارع ترسا الهرم - الجيزة | H13: =VLOOKUP($B13+0,'Vendor Data'!$A$4:$H$1036,7,FALSE) -> 0 | I13: 1369 | J13: 6397.35 | K13: 0.005 | L13: 51.59
A14: 68 | B14: 8 | C14: 2015-04-20 | D14: =VLOOKUP($B14+0,'Vendor Data'!$A$4:$H$1036,2,FALSE) -> 0 | E14: =VLOOKUP($B14+0,'Vendor Data'!$A$4:$H$1036,3,FALSE) -> 11623 | F14: =VLOOKUP($B14+0,'Vendor Data'!$A$4:$H$1036,5,FALSE) -> شركة فوود إستف للتوريدات | G14: =VLOOKUP($B14+0,'Vendor Data'!$A$4:$H$1036,6,FALSE) -> شارع مصعب بن عمير - الاسكندرية | H14: =VLOOKUP($B14+0,'Vendor Data'!$A$4:$H$1036,7,FALSE) -> الاسكندرية | I14: 7848 | J14: 14222.63 | L14: 87.54
A15: 69 | B15: 17 | C15: 2015-04-20 | D15: =VLOOKUP($B15+0,'Vendor Data'!$A$4:$H$1036,2,FALSE) -> 156/270 | E15: =VLOOKUP($B15+0,'Vendor Data'!$A$4:$H$1036,3,FALSE) -> 0 | F15: =VLOOKUP($B15+0,'Vendor Data'!$A$4:$H$1036,5,FALSE) -> الفيروز للتجارة و الهندسة (ش.م.م) | G15: =VLOOKUP($B15+0,'Vendor Data'!$A$4:$H$1036,6,FALSE) -> 33 شارع أحمد أبو العلا - الحى الثامن - مدينة نصر - القاهرة | H15: =VLOOKUP($B15+0,'Vendor Data'!$A$4:$H$1036,7,FALSE) -> المساهمة | I15: 4705 | J15: 2350 | K15: 0.005 | L15: 47
A16: 70 | B16: 7 | C16: 2015-04-20 | D16: =VLOOKUP($B16+0,'Vendor Data'!$A$4:$H$1036,2,FALSE) -> 5/1707/192/04/07 | E16: =VLOOKUP($B16+0,'Vendor Data'!$A$4:$H$1036,3,FALSE) -> 0 | F16: =VLOOKUP($B16+0,'Vendor Data'!$A$4:$H$1036,5,FALSE) -> الحلبى جروب للتوريدات و الاستيراد | G16: =VLOOKUP($B16+0,'Vendor Data'!$A$4:$H$1036,6,FALSE) -> منيل شيحة - الجيزة - طريق مصر أسيوط | H16: =VLOOKUP($B16+0,'Vendor Data'!$A$4:$H$1036,7,FALSE) -> 0 | I16: 1341 | J16: 5050 | K16: 0.005 | L16: 25.5
A17: 71 | B17: 13 | C17: 2015-04-20 | D17: =VLOOKUP($B17+0,'Vendor Data'!$A$4:$H$1036,2,FALSE) -> 500135-191-00-00 | E17: =VLOOKUP($B17+0,'Vendor Data'!$A$4:$H$1036,3,FALSE) -> 200-079-328 | F17: =VLOOKUP($B17+0,'Vendor Data'!$A$4:$H$1036,5,FALSE) -> شركة ميدو للتجارة العالمية | G17: =VLOOKUP($B17+0,'Vendor Data'!$A$4:$H$1036,6,FALSE) -> مدينة العبور - المنطقة الصناعية - قطعة 2 بلوك 13018 | H17: =VLOOKUP($B17+0,'Vendor Data'!$A$4:$H$1036,7,FALSE) -> مركز كبار الممولين | J17: 480 | K17: 0.05 | L17: 2.5
A18: 72 | B18: 7 | C18: 2015-04-22 | D18: =VLOOKUP($B18+0,'Vendor Data'!$A$4:$H$1036,2,FALSE) -> 5/1707/192/04/07 | E18: =VLOOKUP($B18+0,'Vendor Data'!$A$4:$H$1036,3,FALSE) -> 0 | F18: =VLOOKUP($B18+0,'Vendor Data'!$A$4:$H$1036,5,FALSE) -> الحلبى جروب للتوريدات و الاستيراد | G18: =VLOOKUP($B18+0,'Vendor Data'!$A$4:$H$1036,6,FALSE) -> منيل شيحة - الجيزة - طريق مصر أسيوط | H18: =VLOOKUP($B18+0,'Vendor Data'!$A$4:$H$1036,7,FALSE) -> 0 | I18: 368 | J18: 2480 | L18: 12.5
A19: 73 | B19: 1 | C19: 2015-04-25 | D19: =VLOOKUP($B19+0,'Vendor Data'!$A$4:$H$1036,2,FALSE) -> 5/0177/191/03/24 | E19: =VLOOKUP($B19+0,'Vendor Data'!$A$4:$H$1036,3,FALSE) -> 327/964/103 | F19: =VLOOKUP($B19+0,'Vendor Data'!$A$4:$H$1036,5,FALSE) -> شركة ديكوم تريد | G19: =VLOOKUP($B19+0,'Vendor Data'!$A$4:$H$1036,6,FALSE) -> 53 شارع حافظ بدوى - مدينة نصر - القاهرة | H19: =VLOOKUP($B19+0,'Vendor Data'!$A$4:$H$1036,7,FALSE) -> 0 | I19: 6527 | J19: 93764 | K19: 0.005 | L19: 468.82
A20: 74 | B20: 18 | C20: 2015-04-26 | D20: =VLOOKUP($B20+0,'Vendor Data'!$A$4:$H$1036,2,FALSE) -> 0 | E20: =VLOOKUP($B20+0,'Vendor Data'!$A$4:$H$1036,3,FALSE) -> 0 | F20: =VLOOKUP($B20+0,'Vendor Data'!$A$4:$H$1036,5,FALSE) -> شركة سناك لاند | G20: =VLOOKUP($B20+0,'Vendor Data'!$A$4:$H$1036,6,FALSE) -> 13 شارع البرجاس - جاردن سيتى | H20: =VLOOKUP($B20+0,'Vendor Data'!$A$4:$H$1036,7,FALSE) -> 0 | J20: 5000 | K20: 0.05 | L20: 250
A21: 75 | B21: 4 | C21: 2015-04-27 | D21: =VLOOKUP($B21+0,'Vendor Data'!$A$4:$H$1036,2,FALSE) -> 001/5/03830/191/00/00 | E21: =VLOOKUP($B21+0,'Vendor Data'!$A$4:$H$1036,3,FALSE) -> 261/966/367 | F21: =VLOOKUP($B21+0,'Vendor Data'!$A$4:$H$1036,5,FALSE) -> المستقبل هوسبيتاليتى سوليوشنز إف إتش إس | G21: =VLOOKUP($B21+0,'Vendor Data'!$A$4:$H$1036,6,FALSE) -> 40 أ شارع ترسا الهرم - الجيزة | H21: =VLOOKUP($B21+0,'Vendor Data'!$A$4:$H$1036,7,FALSE) -> 0 | I21: 1479 | J21: 13280 | K21: 0.005 | L21: 66.4
A22: 76 | B22: 4 | C22: 2015-04-27 | D22: =VLOOKUP($B22+0,'Vendor Data'!$A$4:$H$1036,2,FALSE) -> 001/5/03830/191/00/00 | E22: =VLOOKUP($B22+0,'Vendor Data'!$A$4:$H$1036,3,FALSE) -> 261/966/367 | F22: =VLOOKUP($B22+0,'Vendor Data'!$A$4:$H$1036,5,FALSE) -> المستقبل هوسبيتاليتى سوليوشنز إف إتش إس | G22: =VLOOKUP($B22+0,'Vendor Data'!$A$4:$H$1036,6,FALSE) -> 40 أ شارع ترسا الهرم - الجيزة | H22: =VLOOKUP($B22+0,'Vendor Data'!$A$4:$H$1036,7,FALSE) -> 0 | I22: 1479 | J22: 1250 | K22: 0.02 | L22: 25
A23: 77 | B23: 2 | C23: 2015-04-27 | D23: =VLOOKUP($B23+0,'Vendor Data'!$A$4:$H$1036,2,FALSE) -> 5/318/280 | E23: =VLOOKUP($B23+0,'Vendor Data'!$A$4:$H$1036,3,FALSE) -> 0 | F23: =VLOOKUP($B23+0,'Vendor Data'!$A$4:$H$1036,5,FALSE) -> لايت واى إيجيبت | G23: =VLOOKUP($B23+0,'Vendor Data'!$A$4:$H$1036,6,FALSE) -> قطعة أ . ب - بلوك 13025 - المنطقة الصناعية - مدينة العبور | H23: =VLOOKUP($B23+0,'Vendor Data'!$A$4:$H$1036,7,FALSE) -> 0 | I23: 2816 | J23: 5640 | K23: 0.5 | L23: 28.2
A24: 78 | B24: 7 | C24: 2015-04-28 | D24: =VLOOKUP($B24+0,'Vendor Data'!$A$4:$H$1036,2,FALSE) -> 5/1707/192/04/07 | E24: =VLOOKUP($B24+0,'Vendor Data'!$A$4:$H$1036,3,FALSE) -> 0 | F24: =VLOOKUP($B24+0,'Vendor Data'!$A$4:$H$1036,5,FALSE) -> الحلبى جروب للتوريدات و الاستيراد | G24: =VLOOKUP($B24+0,'Vendor Data'!$A$4:$H$1036,6,FALSE) -> منيل شيحة - الجيزة - طريق مصر أسيوط | H24: =VLOOKUP($B24+0,'Vendor Data'!$A$4:$H$1036,7,FALSE) -> 0 | I24: 377 | J24: 5500 | K24: 0.005 | L24: 3
A25: 79 | B25: 4 | C25: 2015-04-28 | D25: =VLOOKUP($B25+0,'Vendor Data'!$A$4:$H$1036,2,FALSE) -> 001/5/03830/191/00/00 | E25: =VLOOKUP($B25+0,'Vendor Data'!$A$4:$H$1036,3,FALSE) -> 261/966/367 | F25: =VLOOKUP($B25+0,'Vendor Data'!$A$4:$H$1036,5,FALSE) -> المستقبل هوسبيتاليتى سوليوشنز إف إتش إس | G25: =VLOOKUP($B25+0,'Vendor Data'!$A$4:$H$1036,6,FALSE) -> 40 أ شارع ترسا الهرم - الجيزة | H25: =VLOOKUP($B25+0,'Vendor Data'!$A$4:$H$1036,7,FALSE) -> 0 | I25: 1498 | J25: 370 | K25: 0.005 | L25: 1.85
A26: 80 | B26: 8 | C26: 2015-04-30 | D26: =VLOOKUP($B26+0,'Vendor Data'!$A$4:$H$1036,2,FALSE) -> 0 | E26: =VLOOKUP($B26+0,'Vendor Data'!$A$4:$H$1036,3,FALSE) -> 11623 | F26: =VLOOKUP($B26+0,'Vendor Data'!$A$4:$H$1036,5,FALSE) -> شركة فوود إستف للتوريدات | G26: =VLOOKUP($B26+0,'Vendor Data'!$A$4:$H$1036,6,FALSE) -> شارع مصعب بن عمير - الاسكندرية | H26: =VLOOKUP($B26+0,'Vendor Data'!$A$4:$H$1036,7,FALSE) -> الاسكندرية | I26: 7872 | J26: 2150 | K26: 0.02 | L26: 43
A27: 81 | B27: 8 | C27: 2015-04-30 | D27: =VLOOKUP($B27+0,'Vendor Data'!$A$4:$H$1036,2,FALSE) -> 0 | E27: =VLOOKUP($B27+0,'Vendor Data'!$A$4:$H$1036,3,FALSE) -> 11623 | F27: =VLOOKUP($B27+0,'Vendor Data'!$A$4:$H$1036,5,FALSE) -> شركة فوود إستف للتوريدات | G27: =VLOOKUP($B27+0,'Vendor Data'!$A$4:$H$1036,6,FALSE) -> شارع مصعب بن عمير - الاسكندرية | H27: =VLOOKUP($B27+0,'Vendor Data'!$A$4:$H$1036,7,FALSE) -> الاسكندرية | I27: 7872 | J27: 12525 | K27: 0.005 | L27: 62.62
A28: 82 | B28: 4 | C28: 2015-04-30 | D28: =VLOOKUP($B28+0,'Vendor Data'!$A$4:$H$1036,2,FALSE) -> 001/5/03830/191/00/00 | E28: =VLOOKUP($B28+0,'Vendor Data'!$A$4:$H$1036,3,FALSE) -> 261/966/367 | F28: =VLOOKUP($B28+0,'Vendor Data'!$A$4:$H$1036,5,FALSE) -> المستقبل هوسبيتاليتى سوليوشنز إف إتش إس | G28: =VLOOKUP($B28+0,'Vendor Data'!$A$4:$H$1036,6,FALSE) -> 40 أ شارع ترسا الهرم - الجيزة | H28: =VLOOKUP($B28+0,'Vendor Data'!$A$4:$H$1036,7,FALSE) -> 0 | I28: 1372 | J28: 1520 | K28: 0.02 | L28: 30.4
A29: 83 | B29: 4 | C29: 2015-04-30 | D29: =VLOOKUP($B29+0,'Vendor Data'!$A$4:$H$1036,2,FALSE) -> 001/5/03830/191/00/00 | E29: =VLOOKUP($B29+0,'Vendor Data'!$A$4:$H$1036,3,FALSE) -> 261/966/367 | F29: =VLOOKUP($B29+0,'Vendor Data'!$A$4:$H$1036,5,FALSE) -> المستقبل هوسبيتاليتى سوليوشنز إف إتش إس | G29: =VLOOKUP($B29+0,'Vendor Data'!$A$4:$H$1036,6,FALSE) -> 40 أ شارع ترسا الهرم - الجيزة | H29: =VLOOKUP($B29+0,'Vendor Data'!$A$4:$H$1036,7,FALSE) -> 0 | I29: 1372 | J29: 7908.5 | K29: 0.005 | L29: 39.54
A30: 84 | B30: 19 | C30: 2015-04-30 | D30: =VLOOKUP($B30+0,'Vendor Data'!$A$4:$H$1036,2,FALSE) -> 0 | E30: =VLOOKUP($B30+0,'Vendor Data'!$A$4:$H$1036,3,FALSE) -> 200/114/719 | F30: =VLOOKUP($B30+0,'Vendor Data'!$A$4:$H$1036,5,FALSE) -> شركة الدوار للفنادق - الجونة | G30: =VLOOKUP($B30+0,'Vendor Data'!$A$4:$H$1036,6,FALSE) -> 0 | H30: =VLOOKUP($B30+0,'Vendor Data'!$A$4:$H$1036,7,FALSE) -> 0 | I30: 1 | J30: 14590 | K30: 0.005 | L30: 72.95
A31: 85 | B31: 19 | C31: 2015-04-30 | D31: =VLOOKUP($B31+0,'Vendor Data'!$A$4:$H$1036,2,FALSE) -> 0 | E31: =VLOOKUP($B31+0,'Vendor Data'!$A$4:$H$1036,3,FALSE) -> 200/114/719 | F31: =VLOOKUP($B31+0,'Vendor Data'!$A$4:$H$1036,5,FALSE) -> شركة الدوار للفنادق - الجونة | G31: =VLOOKUP($B31+0,'Vendor Data'!$A$4:$H$1036,6,FALSE) -> 0 | H31: =VLOOKUP($B31+0,'Vendor Data'!$A$4:$H$1036,7,FALSE) -> 0 | I31: 2 | J31: 3055 | K31: 0.005 | L31: 15.75
A32: 86 | B32: 7 | C32: 2015-05-03 | D32: =VLOOKUP($B32+0,'Vendor Data'!$A$4:$H$1036,2,FALSE) -> 5/1707/192/04/07 | E32: =VLOOKUP($B32+0,'Vendor Data'!$A$4:$H$1036,3,FALSE) -> 0 | F32: =VLOOKUP($B32+0,'Vendor Data'!$A$4:$H$1036,5,FALSE) -> الحلبى جروب للتوريدات و الاستيراد | G32: =VLOOKUP($B32+0,'Vendor Data'!$A$4:$H$1036,6,FALSE) -> منيل شيحة - الجيزة - طريق مصر أسيوط | H32: =VLOOKUP($B32+0,'Vendor Data'!$A$4:$H$1036,7,FALSE) -> 0 | I32: 385 | J32: 2365 | K32: 0.005 | L32: 12
A33: 87 | B33: 11 | C33: 2015-05-03 | D33: =VLOOKUP($B33+0,'Vendor Data'!$A$4:$H$1036,2,FALSE) -> 510425/191 | E33: =VLOOKUP($B33+0,'Vendor Data'!$A$4:$H$1036,3,FALSE) -> 545/427/934 | F33: =VLOOKUP($B33+0,'Vendor Data'!$A$4:$H$1036,5,FALSE) -> سى آر سى للتجارة | G33: =VLOOKUP($B33+0,'Vendor Data'!$A$4:$H$1036,6,FALSE) -> 9ش مختار المصري - ارض الجولف - القاهرة | H33: =VLOOKUP($B33+0,'Vendor Data'!$A$4:$H$1036,7,FALSE) -> المساهمة | I33: 749 | J33: 7367.7 | K33: 0.005 | L33: 37.8
A34: 88 | B34: 11 | C34: 2015-05-03 | D34: =VLOOKUP($B34+0,'Vendor Data'!$A$4:$H$1036,2,FALSE) -> 510425/191 | E34: =VLOOKUP($B34+0,'Vendor Data'!$A$4:$H$1036,3,FALSE) -> 545/427/934 | F34: =VLOOKUP($B34+0,'Vendor Data'!$A$4:$H$1036,5,FALSE) -> سى آر سى للتجارة | G34: =VLOOKUP($B34+0,'Vendor Data'!$A$4:$H$1036,6,FALSE) -> 9ش مختار المصري - ارض الجولف - القاهرة | H34: =VLOOKUP($B34+0,'Vendor Data'!$A$4:$H$1036,7,FALSE) -> المساهمة | I34: 780 | J34: 693 | K34: 0.005 | L34: 3
A35: 89 | B35: 19 | C35: 2015-05-05 | D35: =VLOOKUP($B35+0,'Vendor Data'!$A$4:$H$1036,2,FALSE) -> 0 | E35: =VLOOKUP($B35+0,'Vendor Data'!$A$4:$H$1036,3,FALSE) -> 200/114/719 | F35: =VLOOKUP($B35+0,'Vendor Data'!$A$4:$H$1036,5,FALSE) -> شركة الدوار للفنادق - الجونة | G35: =VLOOKUP($B35+0,'Vendor Data'!$A$4:$H$1036,6,FALSE) -> 0 | H35: =VLOOKUP($B35+0,'Vendor Data'!$A$4:$H$1036,7,FALSE) -> 0 | I35: 3 | J35: 15950 | K35: 0.005 | L35: 72.5
A36: 90 | B36: 4 | C36: 2015-05-06 | D36: =VLOOKUP($B36+0,'Vendor Data'!$A$4:$H$1036,2,FALSE) -> 001/5/03830/191/00/00 | E36: =VLOOKUP($B36+0,'Vendor Data'!$A$4:$H$1036,3,FALSE) -> 261/966/367 | F36: =VLOOKUP($B36+0,'Vendor Data'!$A$4:$H$1036,5,FALSE) -> المستقبل هوسبيتاليتى سوليوشنز إف إتش إس | G36: =VLOOKUP($B36+0,'Vendor Data'!$A$4:$H$1036,6,FALSE) -> 40 أ شارع ترسا الهرم - الجيزة | H36: =VLOOKUP($B36+0,'Vendor Data'!$A$4:$H$1036,7,FALSE) -> 0 | I36: 1610 | J36: 1400 | K36: 0.005 | L36: 7
A37: 91 | B37: 19 | C37: 2015-05-06 | D37: =VLOOKUP($B37+0,'Vendor Data'!$A$4:$H$1036,2,FALSE) -> 0 | E37: =VLOOKUP($B37+0,'Vendor Data'!$A$4:$H$1036,3,FALSE) -> 200/114/719 | F37: =VLOOKUP($B37+0,'Vendor Data'!$A$4:$H$1036,5,FALSE) -> شركة الدوار للفنادق - الجونة | G37: =VLOOKUP($B37+0,'Vendor Data'!$A$4:$H$1036,6,FALSE) -> 0 | H37: =VLOOKUP($B37+0,'Vendor Data'!$A$4:$H$1036,7,FALSE) -> 0 | I37: 4 | J37: 1120 | K37: 0.005 | L37: 5.6
A38: 92 | B38: 7 | C38: 2015-05-07 | D38: =VLOOKUP($B38+0,'Vendor Data'!$A$4:$H$1036,2,FALSE) -> 5/1707/192/04/07 | E38: =VLOOKUP($B38+0,'Vendor Data'!$A$4:$H$1036,3,FALSE) -> 0 | F38: =VLOOKUP($B38+0,'Vendor Data'!$A$4:$H$1036,5,FALSE) -> الحلبى جروب للتوريدات و الاستيراد | G38: =VLOOKUP($B38+0,'Vendor Data'!$A$4:$H$1036,6,FALSE) -> منيل شيحة - الجيزة - طريق مصر أسيوط | H38: =VLOOKUP($B38+0,'Vendor Data'!$A$4:$H$1036,7,FALSE) -> 0 | I38: 395 | J38: 590 | K38: 0.005 | L38: 3
A39: 93 | B39: 17 | C39: 2015-05-07 | D39: =VLOOKUP($B39+0,'Vendor Data'!$A$4:$H$1036,2,FALSE) -> 156/270 | E39: =VLOOKUP($B39+0,'Vendor Data'!$A$4:$H$1036,3,FALSE) -> 0 | F39: =VLOOKUP($B39+0,'Vendor Data'!$A$4:$H$1036,5,FALSE) -> الفيروز للتجارة و الهندسة (ش.م.م) | G39: =VLOOKUP($B39+0,'Vendor Data'!$A$4:$H$1036,6,FALSE) -> 33 شارع أحمد أبو العلا - الحى الثامن - مدينة نصر - القاهرة | H39: =VLOOKUP($B39+0,'Vendor Data'!$A$4:$H$1036,7,FALSE) -> المساهمة | I39: 4714 | J39: 1650 | K39: 0.02 | L39: 30
A40: 94 | B40: 8 | C40: 2015-05-10 | D40: =VLOOKUP($B40+0,'Vendor Data'!$A$4:$H$1036,2,FALSE) -> 0 | E40: =VLOOKUP($B40+0,'Vendor Data'!$A$4:$H$1036,3,FALSE) -> 11623 | F40: =VLOOKUP($B40+0,'Vendor Data'!$A$4:$H$1036,5,FALSE) -> شركة فوود إستف للتوريدات | G40: =VLOOKUP($B40+0,'Vendor Data'!$A$4:$H$1036,6,FALSE) -> شارع مصعب بن عمير - الاسكندرية | H40: =VLOOKUP($B40+0,'Vendor Data'!$A$4:$H$1036,7,FALSE) -> الاسكندرية | I40: 7902 | J40: 5881.25 | K40: 0.005 | L40: 29.4
A41: 95 | B41: 8 | C41: 2015-05-10 | D41: =VLOOKUP($B41+0,'Vendor Data'!$A$4:$H$1036,2,FALSE) -> 0 | E41: =VLOOKUP($B41+0,'Vendor Data'!$A$4:$H$1036,3,FALSE) -> 11623 | F41: =VLOOKUP($B41+0,'Vendor Data'!$A$4:$H$1036,5,FALSE) -> شركة فوود إستف للتوريدات | G41: =VLOOKUP($B41+0,'Vendor Data'!$A$4:$H$1036,6,FALSE) -> شارع مصعب بن عمير - الاسكندرية | H41: =VLOOKUP($B41+0,'Vendor Data'!$A$4:$H$1036,7,FALSE) -> الاسكندرية | I41: 7902 | J41: 850 | K41: 0.02 | L41: 17
A42: 96 | B42: 8 | C42: 2015-05-10 | D42: =VLOOKUP($B42+0,'Vendor Data'!$A$4:$H$1036,2,FALSE) -> 0 | E42: =VLOOKUP($B42+0,'Vendor Data'!$A$4:$H$1036,3,FALSE) -> 11623 | F42: =VLOOKUP($B42+0,'Vendor Data'!$A$4:$H$1036,5,FALSE) -> شركة فوود إستف للتوريدات | G42: =VLOOKUP($B42+0,'Vendor Data'!$A$4:$H$1036,6,FALSE) -> شارع مصعب بن عمير - الاسكندرية | H42: =VLOOKUP($B42+0,'Vendor Data'!$A$4:$H$1036,7,FALSE) -> الاسكندرية | I42: 7903 | J42: 330 | K42: 0.005 | L42: 1.65
A43: 97 | B43: 8 | C43: 2015-05-10 | D43: =VLOOKUP($B43+0,'Vendor Data'!$A$4:$H$1036,2,FALSE) -> 0 | E43: =VLOOKUP($B43+0,'Vendor Data'!$A$4:$H$1036,3,FALSE) -> 11623 | F43: =VLOOKUP($B43+0,'Vendor Data'!$A$4:$H$1036,5,FALSE) -> شركة فوود إستف للتوريدات | G43: =VLOOKUP($B43+0,'Vendor Data'!$A$4:$H$1036,6,FALSE) -> شارع مصعب بن عمير - الاسكندرية | H43: =VLOOKUP($B43+0,'Vendor Data'!$A$4:$H$1036,7,FALSE) -> الاسكندرية | I43: 7903 | J43: 250 | K43: 0.02 | L43: 5
A44: 98 | B44: 4 | C44: 2015-05-10 | D44: =VLOOKUP($B44+0,'Vendor Data'!$A$4:$H$1036,2,FALSE) -> 001/5/03830/191/00/00 | E44: =VLOOKUP($B44+0,'Vendor Data'!$A$4:$H$1036,3,FALSE) -> 261/966/367 | F44: =VLOOKUP($B44+0,'Vendor Data'!$A$4:$H$1036,5,FALSE) -> المستقبل هوسبيتاليتى سوليوشنز إف إتش إس | G44: =VLOOKUP($B44+0,'Vendor Data'!$A$4:$H$1036,6,FALSE) -> 40 أ شارع ترسا الهرم - الجيزة | H44: =VLOOKUP($B44+0,'Vendor Data'!$A$4:$H$1036,7,FALSE) -> 0 | I44: 1665 | J44: 529.5 | K44: 0.005 | L44: 2.64
A45: 99 | B45: 4 | C45: 2015-05-10 | D45: =VLOOKUP($B45+0,'Vendor Data'!$A$4:$H$1036,2,FALSE) -> 001/5/03830/191/00/00 | E45: =VLOOKUP($B45+0,'Vendor Data'!$A$4:$H$1036,3,FALSE) -> 261/966/367 | F45: =VLOOKUP($B45+0,'Vendor Data'!$A$4:$H$1036,5,FALSE) -> المستقبل هوسبيتاليتى سوليوشنز إف إتش إس | G45: =VLOOKUP($B45+0,'Vendor Data'!$A$4:$H$1036,6,FALSE) -> 40 أ شارع ترسا الهرم - الجيزة | H45: =VLOOKUP($B45+0,'Vendor Data'!$A$4:$H$1036,7,FALSE) -> 0 | I45: 1659 | J45: 750 | K45: 0.005 | L45: 3.75
A46: 100 | B46: 7 | C46: 2015-05-12 | D46: =VLOOKUP($B46+0,'Vendor Data'!$A$4:$H$1036,2,FALSE) -> 5/1707/192/04/07 | E46: =VLOOKUP($B46+0,'Vendor Data'!$A$4:$H$1036,3,FALSE) -> 0 | F46: =VLOOKUP($B46+0,'Vendor Data'!$A$4:$H$1036,5,FALSE) -> الحلبى جروب للتوريدات و الاستيراد | G46: =VLOOKUP($B46+0,'Vendor Data'!$A$4:$H$1036,6,FALSE) -> منيل شيحة - الجيزة - طريق مصر أسيوط | H46: =VLOOKUP($B46+0,'Vendor Data'!$A$4:$H$1036,7,FALSE) -> 0 | I46: 344 | J46: 875 | K46: 0.005 | L46: 4.5
A47: 101 | B47: 4 | C47: 2015-05-13 | D47: =VLOOKUP($B47+0,'Vendor Data'!$A$4:$H$1036,2,FALSE) -> 001/5/03830/191/00/00 | E47: =VLOOKUP($B47+0,'Vendor Data'!$A$4:$H$1036,3,FALSE) -> 261/966/367 | F47: =VLOOKUP($B47+0,'Vendor Data'!$A$4:$H$1036,5,FALSE) -> المستقبل هوسبيتاليتى سوليوشنز إف إتش إس | G47: =VLOOKUP($B47+0,'Vendor Data'!$A$4:$H$1036,6,FALSE) -> 40 أ شارع ترسا الهرم - الجيزة | H47: =VLOOKUP($B47+0,'Vendor Data'!$A$4:$H$1036,7,FALSE) -> 0 | I47: 1714 | J47: 45660.5 | K47: 0.005 | L47: 228.3
A48: 102 | B48: 4 | C48: 2015-05-13 | D48: =VLOOKUP($B48+0,'Vendor Data'!$A$4:$H$1036,2,FALSE) -> 001/5/03830/191/00/00 | E48: =VLOOKUP($B48+0,'Vendor Data'!$A$4:$H$1036,3,FALSE) -> 261/966/367 | F48: =VLOOKUP($B48+0,'Vendor Data'!$A$4:$H$1036,5,FALSE) -> المستقبل هوسبيتاليتى سوليوشنز إف إتش إس | G48: =VLOOKUP($B48+0,'Vendor Data'!$A$4:$H$1036,6,FALSE) -> 40 أ شارع ترسا الهرم - الجيزة | H48: =VLOOKUP($B48+0,'Vendor Data'!$A$4:$H$1036,7,FALSE) -> 0 | I48: 1714 | J48: 9000 | K48: 0.02 | L48: 180
A49: 103 | B49: 2 | C49: 2015-05-18 | D49: =VLOOKUP($B49+0,'Vendor Data'!$A$4:$H$1036,2,FALSE) -> 5/318/280 | E49: =VLOOKUP($B49+0,'Vendor Data'!$A$4:$H$1036,3,FALSE) -> 0 | F49: =VLOOKUP($B49+0,'Vendor Data'!$A$4:$H$1036,5,FALSE) -> لايت واى إيجيبت | G49: =VLOOKUP($B49+0,'Vendor Data'!$A$4:$H$1036,6,FALSE) -> قطعة أ . ب - بلوك 13025 - المنطقة الصناعية - مدينة العبور | H49: =VLOOKUP($B49+0,'Vendor Data'!$A$4:$H$1036,7,FALSE) -> 0 | I49: 2907 | J49: 21025 | K49: 0.005 | L49: 105.12
A50: 104 | B50: 2 | C50: 2015-05-18 | D50: =VLOOKUP($B50+0,'Vendor Data'!$A$4:$H$1036,2,FALSE) -> 5/318/280 | E50: =VLOOKUP($B50+0,'Vendor Data'!$A$4:$H$1036,3,FALSE) -> 0 | F50: =VLOOKUP($B50+0,'Vendor Data'!$A$4:$H$1036,5,FALSE) -> لايت واى إيجيبت | G50: =VLOOKUP($B50+0,'Vendor Data'!$A$4:$H$1036,6,FALSE) -> قطعة أ . ب - بلوك 13025 - المنطقة الصناعية - مدينة العبور | H50: =VLOOKUP($B50+0,'Vendor Data'!$A$4:$H$1036,7,FALSE) -> 0 | I50: 2907 | J50: 2285 | K50: 0.02 | L50: 45.7
A51: 105 | B51: 2 | C51: 2015-05-18 | D51: =VLOOKUP($B51+0,'Vendor Data'!$A$4:$H$1036,2,FALSE) -> 5/318/280 | E51: =VLOOKUP($B51+0,'Vendor Data'!$A$4:$H$1036,3,FALSE) -> 0 | F51: =VLOOKUP($B51+0,'Vendor Data'!$A$4:$H$1036,5,FALSE) -> لايت واى إيجيبت | G51: =VLOOKUP($B51+0,'Vendor Data'!$A$4:$H$1036,6,FALSE) -> قطعة أ . ب - بلوك 13025 - المنطقة الصناعية - مدينة العبور | H51: =VLOOKUP($B51+0,'Vendor Data'!$A$4:$H$1036,7,FALSE) -> 0 | I51: 2920 | J51: 4700 | K51: 0.005 | L51: 23.5
A52: 106 | B52: 7 | C52: 2015-05-20 | D52: =VLOOKUP($B52+0,'Vendor Data'!$A$4:$H$1036,2,FALSE) -> 5/1707/192/04/07 | E52: =VLOOKUP($B52+0,'Vendor Data'!$A$4:$H$1036,3,FALSE) -> 0 | F52: =VLOOKUP($B52+0,'Vendor Data'!$A$4:$H$1036,5,FALSE) -> الحلبى جروب للتوريدات و الاستيراد | G52: =VLOOKUP($B52+0,'Vendor Data'!$A$4:$H$1036,6,FALSE) -> منيل شيحة - الجيزة - طريق مصر أسيوط | H52: =VLOOKUP($B52+0,'Vendor Data'!$A$4:$H$1036,7,FALSE) -> 0 | I52: 38 | J52: 1330 | K52: 0.005 | L52: 6.5
A53: 107 | B53: 7 | C53: 2015-05-20 | D53: =VLOOKUP($B53+0,'Vendor Data'!$A$4:$H$1036,2,FALSE) -> 5/1707/192/04/07 | E53: =VLOOKUP($B53+0,'Vendor Data'!$A$4:$H$1036,3,FALSE) -> 0 | F53: =VLOOKUP($B53+0,'Vendor Data'!$A$4:$H$1036,5,FALSE) -> الحلبى جروب للتوريدات و الاستيراد | G53: =VLOOKUP($B53+0,'Vendor Data'!$A$4:$H$1036,6,FALSE) -> منيل شيحة - الجيزة - طريق مصر أسيوط | H53: =VLOOKUP($B53+0,'Vendor Data'!$A$4:$H$1036,7,FALSE) -> 0 | I53: 407 | J53: 795 | K53: 0.005 | L53: 5
A54: 108 | B54: 7 | C54: 2015-05-25 | D54: =VLOOKUP($B54+0,'Vendor Data'!$A$4:$H$1036,2,FALSE) -> 5/1707/192/04/07 | E54: =VLOOKUP($B54+0,'Vendor Data'!$A$4:$H$1036,3,FALSE) -> 0 | F54: =VLOOKUP($B54+0,'Vendor Data'!$A$4:$H$1036,5,FALSE) -> الحلبى جروب للتوريدات و الاستيراد | G54: =VLOOKUP($B54+0,'Vendor Data'!$A$4:$H$1036,6,FALSE) -> منيل شيحة - الجيزة - طريق مصر أسيوط | H54: =VLOOKUP($B54+0,'Vendor Data'!$A$4:$H$1036,7,FALSE) -> 0 | I54: 397 | J54: 695 | K54: 0.005 | L54: 3.5
A55: 109 | B55: 12 | C55: 2015-05-31 | D55: =VLOOKUP($B55+0,'Vendor Data'!$A$4:$H$1036,2,FALSE) -> 5/828/192/28 | E55: =VLOOKUP($B55+0,'Vendor Data'!$A$4:$H$1036,3,FALSE) -> 0 | F55: =VLOOKUP($B55+0,'Vendor Data'!$A$4:$H$1036,5,FALSE) -> هولند كاب | G55: =VLOOKUP($B55+0,'Vendor Data'!$A$4:$H$1036,6,FALSE) -> 0 | H55: =VLOOKUP($B55+0,'Vendor Data'!$A$4:$H$1036,7,FALSE) -> 0 | I55: 5007 | J55: 681.84 | K55: 0.02 | L55: 13.75
A56: 110 | B56: 20 | C56: 2015-05-31 | D56: =VLOOKUP($B56+0,'Vendor Data'!$A$4:$H$1036,2,FALSE) -> 0 | E56: =VLOOKUP($B56+0,'Vendor Data'!$A$4:$H$1036,3,FALSE) -> 0 | F56: =VLOOKUP($B56+0,'Vendor Data'!$A$4:$H$1036,5,FALSE) -> كاندل كونيكشن | G56: =VLOOKUP($B56+0,'Vendor Data'!$A$4:$H$1036,6,FALSE) -> 0 | H56: =VLOOKUP($B56+0,'Vendor Data'!$A$4:$H$1036,7,FALSE) -> 0 | J56: 2100 | K56: 0.005 | L56: 11.5
A57: 111 | B57: 1 | C57: 2015-05-31 | D57: =VLOOKUP($B57+0,'Vendor Data'!$A$4:$H$1036,2,FALSE) -> 5/0177/191/03/24 | E57: =VLOOKUP($B57+0,'Vendor Data'!$A$4:$H$1036,3,FALSE) -> 327/964/103 | F57: =VLOOKUP($B57+0,'Vendor Data'!$A$4:$H$1036,5,FALSE) -> شركة ديكوم تريد | G57: =VLOOKUP($B57+0,'Vendor Data'!$A$4:$H$1036,6,FALSE) -> 53 شارع حافظ بدوى - مدينة نصر - القاهرة | H57: =VLOOKUP($B57+0,'Vendor Data'!$A$4:$H$1036,7,FALSE) -> 0 | I57: 6640 | J57: 44992 | K57: 0.005 | L57: 224.95
A58: 112 | B58: 21 | C58: 2015-05-31 | D58: =VLOOKUP($B58+0,'Vendor Data'!$A$4:$H$1036,2,FALSE) -> 0 | E58: =VLOOKUP($B58+0,'Vendor Data'!$A$4:$H$1036,3,FALSE) -> 14868 | F58: =VLOOKUP($B58+0,'Vendor Data'!$A$4:$H$1036,5,FALSE) -> إية وان | G58: =VLOOKUP($B58+0,'Vendor Data'!$A$4:$H$1036,6,FALSE) -> أول طريق مصر الاسكندرية الزراعى | H58: =VLOOKUP($B58+0,'Vendor Data'!$A$4:$H$1036,7,FALSE) -> 0 | I58: 2801 | J58: 46134 | L58: 338.7
A59: 113 | B59: 21 | C59: 2015-05-31 | D59: =VLOOKUP($B59+0,'Vendor Data'!$A$4:$H$1036,2,FALSE) -> 0 | E59: =VLOOKUP($B59+0,'Vendor Data'!$A$4:$H$1036,3,FALSE) -> 14868 | F59: =VLOOKUP($B59+0,'Vendor Data'!$A$4:$H$1036,5,FALSE) -> إية وان | G59: =VLOOKUP($B59+0,'Vendor Data'!$A$4:$H$1036,6,FALSE) -> أول طريق مصر الاسكندرية الزراعى | H59: =VLOOKUP($B59+0,'Vendor Data'!$A$4:$H$1036,7,FALSE) -> 0 | I59: 2924 | J59: 907.5 | K59: 0.005 | L59: 4.25
A60: 114 | B60: 4 | C60: 2015-06-03 | D60: =VLOOKUP($B60+0,'Vendor Data'!$A$4:$H$1036,2,FALSE) -> 001/5/03830/191/00/00 | E60: =VLOOKUP($B60+0,'Vendor Data'!$A$4:$H$1036,3,FALSE) -> 261/966/367 | F60: =VLOOKUP($B60+0,'Vendor Data'!$A$4:$H$1036,5,FALSE) -> المستقبل هوسبيتاليتى سوليوشنز إف إتش إس | G60: =VLOOKUP($B60+0,'Vendor Data'!$A$4:$H$1036,6,FALSE) -> 40 أ شارع ترسا الهرم - الجيزة | H60: =VLOOKUP($B60+0,'Vendor Data'!$A$4:$H$1036,7,FALSE) -> 0 | I60: 1975 | J60: 2005 | K60: 0.005 | L60: 10.02
A61: 115 | B61: 11 | C61: 2015-06-07 | D61: =VLOOKUP($B61+0,'Vendor Data'!$A$4:$H$1036,2,FALSE) -> 510425/191 | E61: =VLOOKUP($B61+0,'Vendor Data'!$A$4:$H$1036,3,FALSE) -> 545/427/934 | F61: =VLOOKUP($B61+0,'Vendor Data'!$A$4:$H$1036,5,FALSE) -> سى آر سى للتجارة | G61: =VLOOKUP($B61+0,'Vendor Data'!$A$4:$H$1036,6,FALSE) -> 9ش مختار المصري - ارض الجولف - القاهرة | H61: =VLOOKUP($B61+0,'Vendor Data'!$A$4:$H$1036,7,FALSE) -> المساهمة | I61: 792 | J61: 6530.7 | K61: 0.005 | L61: 30.7
A62: 116 | B62: 7 | C62: 2015-06-07 | D62: =VLOOKUP($B62+0,'Vendor Data'!$A$4:$H$1036,2,FALSE) -> 5/1707/192/04/07 | E62: =VLOOKUP($B62+0,'Vendor Data'!$A$4:$H$1036,3,FALSE) -> 0 | F62: =VLOOKUP($B62+0,'Vendor Data'!$A$4:$H$1036,5,FALSE) -> الحلبى جروب للتوريدات و الاستيراد | G62: =VLOOKUP($B62+0,'Vendor Data'!$A$4:$H$1036,6,FALSE) -> منيل شيحة - الجيزة - طريق مصر أسيوط | H62: =VLOOKUP($B62+0,'Vendor Data'!$A$4:$H$1036,7,FALSE) -> 0 | I62: 572 | J62: 1775 | K62: 0.005 | L62: 6.5
A63: 117 | B63: 8 | C63: 2015-06-08 | D63: =VLOOKUP($B63+0,'Vendor Data'!$A$4:$H$1036,2,FALSE) -> 0 | E63: =VLOOKUP($B63+0,'Vendor Data'!$A$4:$H$1036,3,FALSE) -> 11623 | F63: =VLOOKUP($B63+0,'Vendor Data'!$A$4:$H$1036,5,FALSE) -> شركة فوود إستف للتوريدات | G63: =VLOOKUP($B63+0,'Vendor Data'!$A$4:$H$1036,6,FALSE) -> شارع مصعب بن عمير - الاسكندرية | H63: =VLOOKUP($B63+0,'Vendor Data'!$A$4:$H$1036,7,FALSE) -> الاسكندرية | I63: 7973 | J63: 2550 | K63: 0.02 | L63: 51
A64: 118 | B64: 8 | C64: 2015-06-08 | D64: =VLOOKUP($B64+0,'Vendor Data'!$A$4:$H$1036,2,FALSE) -> 0 | E64: =VLOOKUP($B64+0,'Vendor Data'!$A$4:$H$1036,3,FALSE) -> 11623 | F64: =VLOOKUP($B64+0,'Vendor Data'!$A$4:$H$1036,5,FALSE) -> شركة فوود إستف للتوريدات | G64: =VLOOKUP($B64+0,'Vendor Data'!$A$4:$H$1036,6,FALSE) -> شارع مصعب بن عمير - الاسكندرية | H64: =VLOOKUP($B64+0,'Vendor Data'!$A$4:$H$1036,7,FALSE) -> الاسكندرية | I64: 7973 | J64: 8340 | K64: 0.005 | L64: 41.7
A65: 119 | B65: 8 | C65: 2015-06-13 | D65: =VLOOKUP($B65+0,'Vendor Data'!$A$4:$H$1036,2,FALSE) -> 0 | E65: =VLOOKUP($B65+0,'Vendor Data'!$A$4:$H$1036,3,FALSE) -> 11623 | F65: =VLOOKUP($B65+0,'Vendor Data'!$A$4:$H$1036,5,FALSE) -> شركة فوود إستف للتوريدات | G65: =VLOOKUP($B65+0,'Vendor Data'!$A$4:$H$1036,6,FALSE) -> شارع مصعب بن عمير - الاسكندرية | H65: =VLOOKUP($B65+0,'Vendor Data'!$A$4:$H$1036,7,FALSE) -> الاسكندرية | I65: 7988 | J65: 2720 | K65: 0.02 | L65: 54.4
A66: 120 | B66: 8 | C66: 2015-06-13 | D66: =VLOOKUP($B66+0,'Vendor Data'!$A$4:$H$1036,2,FALSE) -> 0 | E66: =VLOOKUP($B66+0,'Vendor Data'!$A$4:$H$1036,3,FALSE) -> 11623 | F66: =VLOOKUP($B66+0,'Vendor Data'!$A$4:$H$1036,5,FALSE) -> شركة فوود إستف للتوريدات | G66: =VLOOKUP($B66+0,'Vendor Data'!$A$4:$H$1036,6,FALSE) -> شارع مصعب بن عمير - الاسكندرية | H66: =VLOOKUP($B66+0,'Vendor Data'!$A$4:$H$1036,7,FALSE) -> الاسكندرية | I66: 7988 | J66: 528 | K66: 0.005 | L66: 2.64
A67: 121 | B67: 4 | C67: 2015-06-25 | D67: =VLOOKUP($B67+0,'Vendor Data'!$A$4:$H$1036,2,FALSE) -> 001/5/03830/191/00/00 | E67: =VLOOKUP($B67+0,'Vendor Data'!$A$4:$H$1036,3,FALSE) -> 261/966/367 | F67: =VLOOKUP($B67+0,'Vendor Data'!$A$4:$H$1036,5,FALSE) -> المستقبل هوسبيتاليتى سوليوشنز إف إتش إس | G67: =VLOOKUP($B67+0,'Vendor Data'!$A$4:$H$1036,6,FALSE) -> 40 أ شارع ترسا الهرم - الجيزة | H67: =VLOOKUP($B67+0,'Vendor Data'!$A$4:$H$1036,7,FALSE) -> 0 | I67: 2259 | J67: 350 | K67: 0.02 | L67: 7
A68: 122 | B68: 4 | C68: 2015-06-25 | D68: =VLOOKUP($B68+0,'Vendor Data'!$A$4:$H$1036,2,FALSE) -> 001/5/03830/191/00/00 | E68: =VLOOKUP($B68+0,'Vendor Data'!$A$4:$H$1036,3,FALSE) -> 261/966/367 | F68: =VLOOKUP($B68+0,'Vendor Data'!$A$4:$H$1036,5,FALSE) -> المستقبل هوسبيتاليتى سوليوشنز إف إتش إس | G68: =VLOOKUP($B68+0,'Vendor Data'!$A$4:$H$1036,6,FALSE) -> 40 أ شارع ترسا الهرم - الجيزة | H68: =VLOOKUP($B68+0,'Vendor Data'!$A$4:$H$1036,7,FALSE) -> 0 | I68: 2259 | J68: 9803 | K68: 0.005 | L68: 49.01
A69: 115 | D69: =VLOOKUP($B69+0,'Vendor Data'!$A$4:$H$1036,2,FALSE) ->  | E69: =VLOOKUP($B69+0,'Vendor Data'!$A$4:$H$1036,3,FALSE) ->  | F69: =VLOOKUP($B69+0,'Vendor Data'!$A$4:$H$1036,5,FALSE) ->  | G69: =VLOOKUP($B69+0,'Vendor Data'!$A$4:$H$1036,6,FALSE) ->  | H69: =VLOOKUP($B69+0,'Vendor Data'!$A$4:$H$1036,7,FALSE) -> 
A70: 116 | D70: =VLOOKUP($B70+0,'Vendor Data'!$A$4:$H$1036,2,FALSE) ->  | E70: =VLOOKUP($B70+0,'Vendor Data'!$A$4:$H$1036,3,FALSE) ->  | F70: =VLOOKUP($B70+0,'Vendor Data'!$A$4:$H$1036,5,FALSE) ->  | G70: =VLOOKUP($B70+0,'Vendor Data'!$A$4:$H$1036,6,FALSE) ->  | H70: =VLOOKUP($B70+0,'Vendor Data'!$A$4:$H$1036,7,FALSE) -> 
A71: 117 | D71: =VLOOKUP($B71+0,'Vendor Data'!$A$4:$H$1036,2,FALSE) ->  | E71: =VLOOKUP($B71+0,'Vendor Data'!$A$4:$H$1036,3,FALSE) ->  | F71: =VLOOKUP($B71+0,'Vendor Data'!$A$4:$H$1036,5,FALSE) ->  | G71: =VLOOKUP($B71+0,'Vendor Data'!$A$4:$H$1036,6,FALSE) ->  | H71: =VLOOKUP($B71+0,'Vendor Data'!$A$4:$H$1036,7,FALSE) -> 
A72: 118 | D72: =VLOOKUP($B72+0,'Vendor Data'!$A$4:$H$1036,2,FALSE) ->  | E72: =VLOOKUP($B72+0,'Vendor Data'!$A$4:$H$1036,3,FALSE) ->  | F72: =VLOOKUP($B72+0,'Vendor Data'!$A$4:$H$1036,5,FALSE) ->  | G72: =VLOOKUP($B72+0,'Vendor Data'!$A$4:$H$1036,6,FALSE) ->  | H72: =VLOOKUP($B72+0,'Vendor Data'!$A$4:$H$1036,7,FALSE) -> 
A73: 119 | D73: =VLOOKUP($B73+0,'Vendor Data'!$A$4:$H$1036,2,FALSE) ->  | E73: =VLOOKUP($B73+0,'Vendor Data'!$A$4:$H$1036,3,FALSE) ->  | F73: =VLOOKUP($B73+0,'Vendor Data'!$A$4:$H$1036,5,FALSE) ->  | G73: =VLOOKUP($B73+0,'Vendor Data'!$A$4:$H$1036,6,FALSE) ->  | H73: =VLOOKUP($B73+0,'Vendor Data'!$A$4:$H$1036,7,FALSE) -> 
A74: 120 | D74: =VLOOKUP($B74+0,'Vendor Data'!$A$4:$H$1036,2,FALSE) ->  | E74: =VLOOKUP($B74+0,'Vendor Data'!$A$4:$H$1036,3,FALSE) ->  | F74: =VLOOKUP($B74+0,'Vendor Data'!$A$4:$H$1036,5,FALSE) ->  | G74: =VLOOKUP($B74+0,'Vendor Data'!$A$4:$H$1036,6,FALSE) ->  | H74: =VLOOKUP($B74+0,'Vendor Data'!$A$4:$H$1036,7,FALSE) -> 
A75: 121 | D75: =VLOOKUP($B75+0,'Vendor Data'!$A$4:$H$1036,2,FALSE) ->  | E75: =VLOOKUP($B75+0,'Vendor Data'!$A$4:$H$1036,3,FALSE) ->  | F75: =VLOOKUP($B75+0,'Vendor Data'!$A$4:$H$1036,5,FALSE) ->  | G75: =VLOOKUP($B75+0,'Vendor Data'!$A$4:$H$1036,6,FALSE) ->  | H75: =VLOOKUP($B75+0,'Vendor Data'!$A$4:$H$1036,7,FALSE) -> 
A76: 122 | D76: =VLOOKUP($B76+0,'Vendor Data'!$A$4:$H$1036,2,FALSE) ->  | E76: =VLOOKUP($B76+0,'Vendor Data'!$A$4:$H$1036,3,FALSE) ->  | F76: =VLOOKUP($B76+0,'Vendor Data'!$A$4:$H$1036,5,FALSE) ->  | G76: =VLOOKUP($B76+0,'Vendor Data'!$A$4:$H$1036,6,FALSE) ->  | H76: =VLOOKUP($B76+0,'Vendor Data'!$A$4:$H$1036,7,FALSE) -> 
A77: 123 | D77: =VLOOKUP($B77+0,'Vendor Data'!$A$4:$H$1036,2,FALSE) ->  | E77: =VLOOKUP($B77+0,'Vendor Data'!$A$4:$H$1036,3,FALSE) ->  | F77: =VLOOKUP($B77+0,'Vendor Data'!$A$4:$H$1036,5,FALSE) ->  | G77: =VLOOKUP($B77+0,'Vendor Data'!$A$4:$H$1036,6,FALSE) ->  | H77: =VLOOKUP($B77+0,'Vendor Data'!$A$4:$H$1036,7,FALSE) -> 
A78: 124 | D78: =VLOOKUP($B78+0,'Vendor Data'!$A$4:$H$1036,2,FALSE) ->  | E78: =VLOOKUP($B78+0,'Vendor Data'!$A$4:$H$1036,3,FALSE) ->  | F78: =VLOOKUP($B78+0,'Vendor Data'!$A$4:$H$1036,5,FALSE) ->  | G78: =VLOOKUP($B78+0,'Vendor Data'!$A$4:$H$1036,6,FALSE) ->  | H78: =VLOOKUP($B78+0,'Vendor Data'!$A$4:$H$1036,7,FALSE) -> 
A79: 125 | D79: =VLOOKUP($B79+0,'Vendor Data'!$A$4:$H$1036,2,FALSE) ->  | E79: =VLOOKUP($B79+0,'Vendor Data'!$A$4:$H$1036,3,FALSE) ->  | F79: =VLOOKUP($B79+0,'Vendor Data'!$A$4:$H$1036,5,FALSE) ->  | G79: =VLOOKUP($B79+0,'Vendor Data'!$A$4:$H$1036,6,FALSE) ->  | H79: =VLOOKUP($B79+0,'Vendor Data'!$A$4:$H$1036,7,FALSE) -> 
A80: 126 | D80: =VLOOKUP($B80+0,'Vendor Data'!$A$4:$H$1036,2,FALSE) ->  | E80: =VLOOKUP($B80+0,'Vendor Data'!$A$4:$H$1036,3,FALSE) ->  | F80: =VLOOKUP($B80+0,'Vendor Data'!$A$4:$H$1036,5,FALSE) ->  | G80: =VLOOKUP($B80+0,'Vendor Data'!$A$4:$H$1036,6,FALSE) ->  | H80: =VLOOKUP($B80+0,'Vendor Data'!$A$4:$H$1036,7,FALSE) -> 
A81: 127 | D81: =VLOOKUP($B81+0,'Vendor Data'!$A$4:$H$1036,2,FALSE) ->  | E81: =VLOOKUP($B81+0,'Vendor Data'!$A$4:$H$1036,3,FALSE) ->  | F81: =VLOOKUP($B81+0,'Vendor Data'!$A$4:$H$1036,5,FALSE) ->  | G81: =VLOOKUP($B81+0,'Vendor Data'!$A$4:$H$1036,6,FALSE) ->  | H81: =VLOOKUP($B81+0,'Vendor Data'!$A$4:$H$1036,7,FALSE) -> 
A82: 128 | D82: =VLOOKUP($B82+0,'Vendor Data'!$A$4:$H$1036,2,FALSE) ->  | E82: =VLOOKUP($B82+0,'Vendor Data'!$A$4:$H$1036,3,FALSE) ->  | F82: =VLOOKUP($B82+0,'Vendor Data'!$A$4:$H$1036,5,FALSE) ->  | G82: =VLOOKUP($B82+0,'Vendor Data'!$A$4:$H$1036,6,FALSE) ->  | H82: =VLOOKUP($B82+0,'Vendor Data'!$A$4:$H$1036,7,FALSE) -> 
A83: 129 | D83: =VLOOKUP($B83+0,'Vendor Data'!$A$4:$H$1036,2,FALSE) ->  | E83: =VLOOKUP($B83+0,'Vendor Data'!$A$4:$H$1036,3,FALSE) ->  | F83: =VLOOKUP($B83+0,'Vendor Data'!$A$4:$H$1036,5,FALSE) ->  | G83: =VLOOKUP($B83+0,'Vendor Data'!$A$4:$H$1036,6,FALSE) ->  | H83: =VLOOKUP($B83+0,'Vendor Data'!$A$4:$H$1036,7,FALSE) -> 
A84: 130 | D84: =VLOOKUP($B84+0,'Vendor Data'!$A$4:$H$1036,2,FALSE) ->  | E84: =VLOOKUP($B84+0,'Vendor Data'!$A$4:$H$1036,3,FALSE) ->  | F84: =VLOOKUP($B84+0,'Vendor Data'!$A$4:$H$1036,5,FALSE) ->  | G84: =VLOOKUP($B84+0,'Vendor Data'!$A$4:$H$1036,6,FALSE) ->  | H84: =VLOOKUP($B84+0,'Vendor Data'!$A$4:$H$1036,7,FALSE) -> 
A85: 131 | D85: =VLOOKUP($B85+0,'Vendor Data'!$A$4:$H$1036,2,FALSE) ->  | E85: =VLOOKUP($B85+0,'Vendor Data'!$A$4:$H$1036,3,FALSE) ->  | F85: =VLOOKUP($B85+0,'Vendor Data'!$A$4:$H$1036,5,FALSE) ->  | G85: =VLOOKUP($B85+0,'Vendor Data'!$A$4:$H$1036,6,FALSE) ->  | H85: =VLOOKUP($B85+0,'Vendor Data'!$A$4:$H$1036,7,FALSE) -> 
A86: 132 | D86: =VLOOKUP($B86+0,'Vendor Data'!$A$4:$H$1036,2,FALSE) ->  | E86: =VLOOKUP($B86+0,'Vendor Data'!$A$4:$H$1036,3,FALSE) ->  | F86: =VLOOKUP($B86+0,'Vendor Data'!$A$4:$H$1036,5,FALSE) ->  | G86: =VLOOKUP($B86+0,'Vendor Data'!$A$4:$H$1036,6,FALSE) ->  | H86: =VLOOKUP($B86+0,'Vendor Data'!$A$4:$H$1036,7,FALSE) -> 
A87: 133 | D87: =VLOOKUP($B87+0,'Vendor Data'!$A$4:$H$1036,2,FALSE) ->  | E87: =VLOOKUP($B87+0,'Vendor Data'!$A$4:$H$1036,3,FALSE) ->  | F87: =VLOOKUP($B87+0,'Vendor Data'!$A$4:$H$1036,5,FALSE) ->  | G87: =VLOOKUP($B87+0,'Vendor Data'!$A$4:$H$1036,6,FALSE) ->  | H87: =VLOOKUP($B87+0,'Vendor Data'!$A$4:$H$1036,7,FALSE) -> 
A88: 134 | D88: =VLOOKUP($B88+0,'Vendor Data'!$A$4:$H$1036,2,FALSE) ->  | E88: =VLOOKUP($B88+0,'Vendor Data'!$A$4:$H$1036,3,FALSE) ->  | F88: =VLOOKUP($B88+0,'Vendor Data'!$A$4:$H$1036,5,FALSE) ->  | G88: =VLOOKUP($B88+0,'Vendor Data'!$A$4:$H$1036,6,FALSE) ->  | H88: =VLOOKUP($B88+0,'Vendor Data'!$A$4:$H$1036,7,FALSE) -> 
A89: 135 | D89: =VLOOKUP($B89+0,'Vendor Data'!$A$4:$H$1036,2,FALSE) ->  | E89: =VLOOKUP($B89+0,'Vendor Data'!$A$4:$H$1036,3,FALSE) ->  | F89: =VLOOKUP($B89+0,'Vendor Data'!$A$4:$H$1036,5,FALSE) ->  | G89: =VLOOKUP($B89+0,'Vendor Data'!$A$4:$H$1036,6,FALSE) ->  | H89: =VLOOKUP($B89+0,'Vendor Data'!$A$4:$H$1036,7,FALSE) -> 
A90: 136 | D90: =VLOOKUP($B90+0,'Vendor Data'!$A$4:$H$1036,2,FALSE) ->  | E90: =VLOOKUP($B90+0,'Vendor Data'!$A$4:$H$1036,3,FALSE) ->  | F90: =VLOOKUP($B90+0,'Vendor Data'!$A$4:$H$1036,5,FALSE) ->  | G90: =VLOOKUP($B90+0,'Vendor Data'!$A$4:$H$1036,6,FALSE) ->  | H90: =VLOOKUP($B90+0,'Vendor Data'!$A$4:$H$1036,7,FALSE) -> 
A91: 137 | D91: =VLOOKUP($B91+0,'Vendor Data'!$A$4:$H$1036,2,FALSE) ->  | E91: =VLOOKUP($B91+0,'Vendor Data'!$A$4:$H$1036,3,FALSE) ->  | F91: =VLOOKUP($B91+0,'Vendor Data'!$A$4:$H$1036,5,FALSE) ->  | G91: =VLOOKUP($B91+0,'Vendor Data'!$A$4:$H$1036,6,FALSE) ->  | H91: =VLOOKUP($B91+0,'Vendor Data'!$A$4:$H$1036,7,FALSE) -> 
A92: 138 | D92: =VLOOKUP($B92+0,'Vendor Data'!$A$4:$H$1036,2,FALSE) ->  | E92: =VLOOKUP($B92+0,'Vendor Data'!$A$4:$H$1036,3,FALSE) ->  | F92: =VLOOKUP($B92+0,'Vendor Data'!$A$4:$H$1036,5,FALSE) ->  | G92: =VLOOKUP($B92+0,'Vendor Data'!$A$4:$H$1036,6,FALSE) ->  | H92: =VLOOKUP($B92+0,'Vendor Data'!$A$4:$H$1036,7,FALSE) -> 
A93: 139 | D93: =VLOOKUP($B93+0,'Vendor Data'!$A$4:$H$1036,2,FALSE) ->  | E93: =VLOOKUP($B93+0,'Vendor Data'!$A$4:$H$1036,3,FALSE) ->  | F93: =VLOOKUP($B93+0,'Vendor Data'!$A$4:$H$1036,5,FALSE) ->  | G93: =VLOOKUP($B93+0,'Vendor Data'!$A$4:$H$1036,6,FALSE) ->  | H93: =VLOOKUP($B93+0,'Vendor Data'!$A$4:$H$1036,7,FALSE) -> 
A94: 140 | D94: =VLOOKUP($B94+0,'Vendor Data'!$A$4:$H$1036,2,FALSE) ->  | E94: =VLOOKUP($B94+0,'Vendor Data'!$A$4:$H$1036,3,FALSE) ->  | F94: =VLOOKUP($B94+0,'Vendor Data'!$A$4:$H$1036,5,FALSE) ->  | G94: =VLOOKUP($B94+0,'Vendor Data'!$A$4:$H$1036,6,FALSE) ->  | H94: =VLOOKUP($B94+0,'Vendor Data'!$A$4:$H$1036,7,FALSE) -> 
A95: 141 | D95: =VLOOKUP($B95+0,'Vendor Data'!$A$4:$H$1036,2,FALSE) ->  | E95: =VLOOKUP($B95+0,'Vendor Data'!$A$4:$H$1036,3,FALSE) ->  | F95: =VLOOKUP($B95+0,'Vendor Data'!$A$4:$H$1036,5,FALSE) ->  | G95: =VLOOKUP($B95+0,'Vendor Data'!$A$4:$H$1036,6,FALSE) ->  | H95: =VLOOKUP($B95+0,'Vendor Data'!$A$4:$H$1036,7,FALSE) -> 
A96: 142 | D96: =VLOOKUP($B96+0,'Vendor Data'!$A$4:$H$1036,2,FALSE) ->  | E96: =VLOOKUP($B96+0,'Vendor Data'!$A$4:$H$1036,3,FALSE) ->  | F96: =VLOOKUP($B96+0,'Vendor Data'!$A$4:$H$1036,5,FALSE) ->  | G96: =VLOOKUP($B96+0,'Vendor Data'!$A$4:$H$1036,6,FALSE) ->  | H96: =VLOOKUP($B96+0,'Vendor Data'!$A$4:$H$1036,7,FALSE) -> 
A97: 143 | D97: =VLOOKUP($B97+0,'Vendor Data'!$A$4:$H$1036,2,FALSE) ->  | E97: =VLOOKUP($B97+0,'Vendor Data'!$A$4:$H$1036,3,FALSE) ->  | F97: =VLOOKUP($B97+0,'Vendor Data'!$A$4:$H$1036,5,FALSE) ->  | G97: =VLOOKUP($B97+0,'Vendor Data'!$A$4:$H$1036,6,FALSE) ->  | H97: =VLOOKUP($B97+0,'Vendor Data'!$A$4:$H$1036,7,FALSE) -> 
A98: 144 | D98: =VLOOKUP($B98+0,'Vendor Data'!$A$4:$H$1036,2,FALSE) ->  | E98: =VLOOKUP($B98+0,'Vendor Data'!$A$4:$H$1036,3,FALSE) ->  | F98: =VLOOKUP($B98+0,'Vendor Data'!$A$4:$H$1036,5,FALSE) ->  | G98: =VLOOKUP($B98+0,'Vendor Data'!$A$4:$H$1036,6,FALSE) ->  | H98: =VLOOKUP($B98+0,'Vendor Data'!$A$4:$H$1036,7,FALSE) -> 
A99: 145 | D99: =VLOOKUP($B99+0,'Vendor Data'!$A$4:$H$1036,2,FALSE) ->  | E99: =VLOOKUP($B99+0,'Vendor Data'!$A$4:$H$1036,3,FALSE) ->  | F99: =VLOOKUP($B99+0,'Vendor Data'!$A$4:$H$1036,5,FALSE) ->  | G99: =VLOOKUP($B99+0,'Vendor Data'!$A$4:$H$1036,6,FALSE) ->  | H99: =VLOOKUP($B99+0,'Vendor Data'!$A$4:$H$1036,7,FALSE) -> 
A100: 146 | D100: =VLOOKUP($B100+0,'Vendor Data'!$A$4:$H$1036,2,FALSE) ->  | E100: =VLOOKUP($B100+0,'Vendor Data'!$A$4:$H$1036,3,FALSE) ->  | F100: =VLOOKUP($B100+0,'Vendor Data'!$A$4:$H$1036,5,FALSE) ->  | G100: =VLOOKUP($B100+0,'Vendor Data'!$A$4:$H$1036,6,FALSE) ->  | H100: =VLOOKUP($B100+0,'Vendor Data'!$A$4:$H$1036,7,FALSE) -> 
A101: 147 | D101: =VLOOKUP($B101+0,'Vendor Data'!$A$4:$H$1036,2,FALSE) ->  | E101: =VLOOKUP($B101+0,'Vendor Data'!$A$4:$H$1036,3,FALSE) ->  | F101: =VLOOKUP($B101+0,'Vendor Data'!$A$4:$H$1036,5,FALSE) ->  | G101: =VLOOKUP($B101+0,'Vendor Data'!$A$4:$H$1036,6,FALSE) ->  | H101: =VLOOKUP($B101+0,'Vendor Data'!$A$4:$H$1036,7,FALSE) -> 
C102: =tafket(L102,"جنيه"," قرش") -> فقط ثلاثة آلاف و ثلاثمائة و إثنان و تسعون جنيه و 98 قرش لاغير | L102: =SUM(L3:L101) -> 3392.98
C103: تحريرا فى / / | G103: الموظف المختص | J103: رئيس جهة العمل

Sheet الفترة الثالثة 2015 (hidden)
A2: رقم الايصال | B2: كود المورد | C2: التاريخ | D2: رقم الملف | E2: بطاقة ضريبية | F2: إسم الممول | G2: العنوان | H2: المامورية | I2: رقم الفاتورة | J2: قيمة الفاتورة | K2: النسبة | L2: الضريبة
A3: 123 | B3: 8 | C3: 2015-08-04 | D3: =VLOOKUP($B3+0,'Vendor Data'!$A$4:$H$1036,2,FALSE) -> 0 | E3: =VLOOKUP($B3+0,'Vendor Data'!$A$4:$H$1036,3,FALSE) -> 11623 | F3: =VLOOKUP($B3+0,'Vendor Data'!$A$4:$H$1036,5,FALSE) -> شركة فوود إستف للتوريدات | G3: =VLOOKUP($B3+0,'Vendor Data'!$A$4:$H$1036,6,FALSE) -> شارع مصعب بن عمير - الاسكندرية | H3: =VLOOKUP($B3+0,'Vendor Data'!$A$4:$H$1036,7,FALSE) -> الاسكندرية | I3: 8081 | J3: 2000 | K3: 0.02 | L3: =J3*K3 -> 40
A4: 124 | B4: 8 | C4: 2015-08-08 | D4: =VLOOKUP($B4+0,'Vendor Data'!$A$4:$H$1036,2,FALSE) -> 0 | E4: =VLOOKUP($B4+0,'Vendor Data'!$A$4:$H$1036,3,FALSE) -> 11623 | F4: =VLOOKUP($B4+0,'Vendor Data'!$A$4:$H$1036,5,FALSE) -> شركة فوود إستف للتوريدات | G4: =VLOOKUP($B4+0,'Vendor Data'!$A$4:$H$1036,6,FALSE) -> شارع مصعب بن عمير - الاسكندرية | H4: =VLOOKUP($B4+0,'Vendor Data'!$A$4:$H$1036,7,FALSE) -> الاسكندرية | I4: 8089 | J4: 450 | K4: 0.02 | L4: 9
A5: 125 | B5: 8 | C5: 2015-08-08 | D5: =VLOOKUP($B5+0,'Vendor Data'!$A$4:$H$1036,2,FALSE) -> 0 | E5: =VLOOKUP($B5+0,'Vendor Data'!$A$4:$H$1036,3,FALSE) -> 11623 | F5: =VLOOKUP($B5+0,'Vendor Data'!$A$4:$H$1036,5,FALSE) -> شركة فوود إستف للتوريدات | G5: =VLOOKUP($B5+0,'Vendor Data'!$A$4:$H$1036,6,FALSE) -> شارع مصعب بن عمير - الاسكندرية | H5: =VLOOKUP($B5+0,'Vendor Data'!$A$4:$H$1036,7,FALSE) -> الاسكندرية | I5: 8089 | J5: 25 | K5: 0.005 | L5: 0.12
A6: 126 | B6: 4 | C6: 2015-08-09 | D6: =VLOOKUP($B6+0,'Vendor Data'!$A$4:$H$1036,2,FALSE) -> 001/5/03830/191/00/00 | E6: =VLOOKUP($B6+0,'Vendor Data'!$A$4:$H$1036,3,FALSE) -> 261/966/367 | F6: =VLOOKUP($B6+0,'Vendor Data'!$A$4:$H$1036,5,FALSE) -> المستقبل هوسبيتاليتى سوليوشنز إف إتش إس | G6: =VLOOKUP($B6+0,'Vendor Data'!$A$4:$H$1036,6,FALSE) -> 40 أ شارع ترسا الهرم - الجيزة | H6: =VLOOKUP($B6+0,'Vendor Data'!$A$4:$H$1036,7,FALSE) -> 0 | I6: 2707 | J6: 7882 | K6: 0.005 | L6: 39.41
A7: 127 | B7: 4 | C7: 2015-08-09 | D7: =VLOOKUP($B7+0,'Vendor Data'!$A$4:$H$1036,2,FALSE) -> 001/5/03830/191/00/00 | E7: =VLOOKUP($B7+0,'Vendor Data'!$A$4:$H$1036,3,FALSE) -> 261/966/367 | F7: =VLOOKUP($B7+0,'Vendor Data'!$A$4:$H$1036,5,FALSE) -> المستقبل هوسبيتاليتى سوليوشنز إف إتش إس | G7: =VLOOKUP($B7+0,'Vendor Data'!$A$4:$H$1036,6,FALSE) -> 40 أ شارع ترسا الهرم - الجيزة | H7: =VLOOKUP($B7+0,'Vendor Data'!$A$4:$H$1036,7,FALSE) -> 0 | I7: 2707 | J7: 710 | K7: 0.02 | L7: 14.2
A8: 128 | B8: 4 | C8: 2015-08-10 | D8: =VLOOKUP($B8+0,'Vendor Data'!$A$4:$H$1036,2,FALSE) -> 001/5/03830/191/00/00 | E8: =VLOOKUP($B8+0,'Vendor Data'!$A$4:$H$1036,3,FALSE) -> 261/966/367 | F8: =VLOOKUP($B8+0,'Vendor Data'!$A$4:$H$1036,5,FALSE) -> المستقبل هوسبيتاليتى سوليوشنز إف إتش إس | G8: =VLOOKUP($B8+0,'Vendor Data'!$A$4:$H$1036,6,FALSE) -> 40 أ شارع ترسا الهرم - الجيزة | H8: =VLOOKUP($B8+0,'Vendor Data'!$A$4:$H$1036,7,FALSE) -> 0 | I8: 2728 | J8: 5540 | K8: 0.005 | L8: 27.7
A9: 129 | B9: 4 | C9: 2015-08-10 | D9: =VLOOKUP($B9+0,'Vendor Data'!$A$4:$H$1036,2,FALSE) -> 001/5/03830/191/00/00 | E9: =VLOOKUP($B9+0,'Vendor Data'!$A$4:$H$1036,3,FALSE) -> 261/966/367 | F9: =VLOOKUP($B9+0,'Vendor Data'!$A$4:$H$1036,5,FALSE) -> المستقبل هوسبيتاليتى سوليوشنز إف إتش إس | G9: =VLOOKUP($B9+0,'Vendor Data'!$A$4:$H$1036,6,FALSE) -> 40 أ شارع ترسا الهرم - الجيزة | H9: =VLOOKUP($B9+0,'Vendor Data'!$A$4:$H$1036,7,FALSE) -> 0 | I9: 2728 | J9: 540 | K9: 0.02 | L9: 10.8
A10: 130 | B10: 4 | C10: 2015-08-11 | D10: =VLOOKUP($B10+0,'Vendor Data'!$A$4:$H$1036,2,FALSE) -> 001/5/03830/191/00/00 | E10: =VLOOKUP($B10+0,'Vendor Data'!$A$4:$H$1036,3,FALSE) -> 261/966/367 | F10: =VLOOKUP($B10+0,'Vendor Data'!$A$4:$H$1036,5,FALSE) -> المستقبل هوسبيتاليتى سوليوشنز إف إتش إس | G10: =VLOOKUP($B10+0,'Vendor Data'!$A$4:$H$1036,6,FALSE) -> 40 أ شارع ترسا الهرم - الجيزة | H10: =VLOOKUP($B10+0,'Vendor Data'!$A$4:$H$1036,7,FALSE) -> 0 | I10: 2748 | J10: 6808 | K10: 0.005 | L10: 34.04
A11: 131 | B11: 4 | C11: 2015-08-11 | D11: =VLOOKUP($B11+0,'Vendor Data'!$A$4:$H$1036,2,FALSE) -> 001/5/03830/191/00/00 | E11: =VLOOKUP($B11+0,'Vendor Data'!$A$4:$H$1036,3,FALSE) -> 261/966/367 | F11: =VLOOKUP($B11+0,'Vendor Data'!$A$4:$H$1036,5,FALSE) -> المستقبل هوسبيتاليتى سوليوشنز إف إتش إس | G11: =VLOOKUP($B11+0,'Vendor Data'!$A$4:$H$1036,6,FALSE) -> 40 أ شارع ترسا الهرم - الجيزة | H11: =VLOOKUP($B11+0,'Vendor Data'!$A$4:$H$1036,7,FALSE) -> 0 | I11: 2748 | J11: 1050 | K11: 0.02 | L11: 21
A12: 132 | B12: 4 | C12: 2015-08-13 | D12: =VLOOKUP($B12+0,'Vendor Data'!$A$4:$H$1036,2,FALSE) -> 001/5/03830/191/00/00 | E12: =VLOOKUP($B12+0,'Vendor Data'!$A$4:$H$1036,3,FALSE) -> 261/966/367 | F12: =VLOOKUP($B12+0,'Vendor Data'!$A$4:$H$1036,5,FALSE) -> المستقبل هوسبيتاليتى سوليوشنز إف إتش إس | G12: =VLOOKUP($B12+0,'Vendor Data'!$A$4:$H$1036,6,FALSE) -> 40 أ شارع ترسا الهرم - الجيزة | H12: =VLOOKUP($B12+0,'Vendor Data'!$A$4:$H$1036,7,FALSE) -> 0 | I12: 2766 | J12: 5739 | K12: 0.005 | L12: 28.69
A13: 133 | B13: 4 | C13: 2015-08-13 | D13: =VLOOKUP($B13+0,'Vendor Data'!$A$4:$H$1036,2,FALSE) -> 001/5/03830/191/00/00 | E13: =VLOOKUP($B13+0,'Vendor Data'!$A$4:$H$1036,3,FALSE) -> 261/966/367 | F13: =VLOOKUP($B13+0,'Vendor Data'!$A$4:$H$1036,5,FALSE) -> المستقبل هوسبيتاليتى سوليوشنز إف إتش إس | G13: =VLOOKUP($B13+0,'Vendor Data'!$A$4:$H$1036,6,FALSE) -> 40 أ شارع ترسا الهرم - الجيزة | H13: =VLOOKUP($B13+0,'Vendor Data'!$A$4:$H$1036,7,FALSE) -> 0 | I13: 2766 | J13: 450 | K13: 0.02 | L13: 9
A14: 134 | B14: 8 | C14: 2015-08-16 | D14: =VLOOKUP($B14+0,'Vendor Data'!$A$4:$H$1036,2,FALSE) -> 0 | E14: =VLOOKUP($B14+0,'Vendor Data'!$A$4:$H$1036,3,FALSE) -> 11623 | F14: =VLOOKUP($B14+0,'Vendor Data'!$A$4:$H$1036,5,FALSE) -> شركة فوود إستف للتوريدات | G14: =VLOOKUP($B14+0,'Vendor Data'!$A$4:$H$1036,6,FALSE) -> شارع مصعب بن عمير - الاسكندرية | H14: =VLOOKUP($B14+0,'Vendor Data'!$A$4:$H$1036,7,FALSE) -> الاسكندرية | I14: 8103 | J14: 450 | K14: 0.02 | L14: 9
A15: 135 | B15: 8 | C15: 2015-08-16 | D15: =VLOOKUP($B15+0,'Vendor Data'!$A$4:$H$1036,2,FALSE) -> 0 | E15: =VLOOKUP($B15+0,'Vendor Data'!$A$4:$H$1036,3,FALSE) -> 11623 | F15: =VLOOKUP($B15+0,'Vendor Data'!$A$4:$H$1036,5,FALSE) -> شركة فوود إستف للتوريدات | G15: =VLOOKUP($B15+0,'Vendor Data'!$A$4:$H$1036,6,FALSE) -> شارع مصعب بن عمير - الاسكندرية | H15: =VLOOKUP($B15+0,'Vendor Data'!$A$4:$H$1036,7,FALSE) -> الاسكندرية | I15: 8103 | J15: 3475 | K15: 0.005 | L15: 17.37
A16: 136 | B16: 4 | C16: 2015-08-24 | D16: =VLOOKUP($B16+0,'Vendor Data'!$A$4:$H$1036,2,FALSE) -> 001/5/03830/191/00/00 | E16: =VLOOKUP($B16+0,'Vendor Data'!$A$4:$H$1036,3,FALSE) -> 261/966/367 | F16: =VLOOKUP($B16+0,'Vendor Data'!$A$4:$H$1036,5,FALSE) -> المستقبل هوسبيتاليتى سوليوشنز إف إتش إس | G16: =VLOOKUP($B16+0,'Vendor Data'!$A$4:$H$1036,6,FALSE) -> 40 أ شارع ترسا الهرم - الجيزة | H16: =VLOOKUP($B16+0,'Vendor Data'!$A$4:$H$1036,7,FALSE) -> 0 | I16: 2939 | J16: 3765 | L16: 48.52
A17: 137 | B17: 4 | C17: 2015-08-27 | D17: =VLOOKUP($B17+0,'Vendor Data'!$A$4:$H$1036,2,FALSE) -> 001/5/03830/191/00/00 | E17: =VLOOKUP($B17+0,'Vendor Data'!$A$4:$H$1036,3,FALSE) -> 261/966/367 | F17: =VLOOKUP($B17+0,'Vendor Data'!$A$4:$H$1036,5,FALSE) -> المستقبل هوسبيتاليتى سوليوشنز إف إتش إس | G17: =VLOOKUP($B17+0,'Vendor Data'!$A$4:$H$1036,6,FALSE) -> 40 أ شارع ترسا الهرم - الجيزة | H17: =VLOOKUP($B17+0,'Vendor Data'!$A$4:$H$1036,7,FALSE) -> 0 | I17: 2984 | J17: 1850 | L17: 9.25
A18: 138 | B18: 8 | C18: 2015-08-30 | D18: =VLOOKUP($B18+0,'Vendor Data'!$A$4:$H$1036,2,FALSE) -> 0 | E18: =VLOOKUP($B18+0,'Vendor Data'!$A$4:$H$1036,3,FALSE) -> 11623 | F18: =VLOOKUP($B18+0,'Vendor Data'!$A$4:$H$1036,5,FALSE) -> شركة فوود إستف للتوريدات | G18: =VLOOKUP($B18+0,'Vendor Data'!$A$4:$H$1036,6,FALSE) -> شارع مصعب بن عمير - الاسكندرية | H18: =VLOOKUP($B18+0,'Vendor Data'!$A$4:$H$1036,7,FALSE) -> الاسكندرية | I18: 8130 | J18: 750 | K18: 0.02 | L18: 15
A19: 139 | B19: 8 | C19: 2015-08-30 | D19: =VLOOKUP($B19+0,'Vendor Data'!$A$4:$H$1036,2,FALSE) -> 0 | E19: =VLOOKUP($B19+0,'Vendor Data'!$A$4:$H$1036,3,FALSE) -> 11623 | F19: =VLOOKUP($B19+0,'Vendor Data'!$A$4:$H$1036,5,FALSE) -> شركة فوود إستف للتوريدات | G19: =VLOOKUP($B19+0,'Vendor Data'!$A$4:$H$1036,6,FALSE) -> شارع مصعب بن عمير - الاسكندرية | H19: =VLOOKUP($B19+0,'Vendor Data'!$A$4:$H$1036,7,FALSE) -> الاسكندرية | I19: 8130 | J19: 5775 | K19: 0.005 | L19: 28.87
A20: 140 | B20: 12 | C20: 2015-08-30 | D20: =VLOOKUP($B20+0,'Vendor Data'!$A$4:$H$1036,2,FALSE) -> 5/828/192/28 | E20: =VLOOKUP($B20+0,'Vendor Data'!$A$4:$H$1036,3,FALSE) -> 0 | F20: =VLOOKUP($B20+0,'Vendor Data'!$A$4:$H$1036,5,FALSE) -> هولند كاب | G20: =VLOOKUP($B20+0,'Vendor Data'!$A$4:$H$1036,6,FALSE) -> 0 | H20: =VLOOKUP($B20+0,'Vendor Data'!$A$4:$H$1036,7,FALSE) -> 0 | I20: 5367 | J20: 681.81 | K20: 0.02 | L20: 13.75
A21: 141 | B21: 7 | C21: 2015-09-03 | D21: =VLOOKUP($B21+0,'Vendor Data'!$A$4:$H$1036,2,FALSE) -> 5/1707/192/04/07 | E21: =VLOOKUP($B21+0,'Vendor Data'!$A$4:$H$1036,3,FALSE) -> 0 | F21: =VLOOKUP($B21+0,'Vendor Data'!$A$4:$H$1036,5,FALSE) -> الحلبى جروب للتوريدات و الاستيراد | G21: =VLOOKUP($B21+0,'Vendor Data'!$A$4:$H$1036,6,FALSE) -> منيل شيحة - الجيزة - طريق مصر أسيوط | H21: =VLOOKUP($B21+0,'Vendor Data'!$A$4:$H$1036,7,FALSE) -> 0 | I21: 425 | J21: 3625 | K21: 0.005 | L21: 18
A22: 142 | B22: 7 | C22: 2015-09-03 | D22: =VLOOKUP($B22+0,'Vendor Data'!$A$4:$H$1036,2,FALSE) -> 5/1707/192/04/07 | E22: =VLOOKUP($B22+0,'Vendor Data'!$A$4:$H$1036,3,FALSE) -> 0 | F22: =VLOOKUP($B22+0,'Vendor Data'!$A$4:$H$1036,5,FALSE) -> الحلبى جروب للتوريدات و الاستيراد | G22: =VLOOKUP($B22+0,'Vendor Data'!$A$4:$H$1036,6,FALSE) -> منيل شيحة - الجيزة - طريق مصر أسيوط | H22: =VLOOKUP($B22+0,'Vendor Data'!$A$4:$H$1036,7,FALSE) -> 0 | I22: 537 | J22: 2835 | K22: 0.005 | L22: 17
A23: 143 | B23: 4 | C23: 2015-09-05 | D23: =VLOOKUP($B23+0,'Vendor Data'!$A$4:$H$1036,2,FALSE) -> 001/5/03830/191/00/00 | E23: =VLOOKUP($B23+0,'Vendor Data'!$A$4:$H$1036,3,FALSE) -> 261/966/367 | F23: =VLOOKUP($B23+0,'Vendor Data'!$A$4:$H$1036,5,FALSE) -> المستقبل هوسبيتاليتى سوليوشنز إف إتش إس | G23: =VLOOKUP($B23+0,'Vendor Data'!$A$4:$H$1036,6,FALSE) -> 40 أ شارع ترسا الهرم - الجيزة | H23: =VLOOKUP($B23+0,'Vendor Data'!$A$4:$H$1036,7,FALSE) -> 0 | I23: 3097 | J23: 4726.9 | L23: 22.24
A24: 144 | B24: 7 | C24: 2015-09-06 | D24: =VLOOKUP($B24+0,'Vendor Data'!$A$4:$H$1036,2,FALSE) -> 5/1707/192/04/07 | E24: =VLOOKUP($B24+0,'Vendor Data'!$A$4:$H$1036,3,FALSE) -> 0 | F24: =VLOOKUP($B24+0,'Vendor Data'!$A$4:$H$1036,5,FALSE) -> الحلبى جروب للتوريدات و الاستيراد | G24: =VLOOKUP($B24+0,'Vendor Data'!$A$4:$H$1036,6,FALSE) -> منيل شيحة - الجيزة - طريق مصر أسيوط | H24: =VLOOKUP($B24+0,'Vendor Data'!$A$4:$H$1036,7,FALSE) -> 0 | I24: 426 | J24: 695 | K24: 0.005 | L24: 3.5
A25: 145 | B25: 7 | C25: 2015-09-17 | D25: =VLOOKUP($B25+0,'Vendor Data'!$A$4:$H$1036,2,FALSE) -> 5/1707/192/04/07 | E25: =VLOOKUP($B25+0,'Vendor Data'!$A$4:$H$1036,3,FALSE) -> 0 | F25: =VLOOKUP($B25+0,'Vendor Data'!$A$4:$H$1036,5,FALSE) -> الحلبى جروب للتوريدات و الاستيراد | G25: =VLOOKUP($B25+0,'Vendor Data'!$A$4:$H$1036,6,FALSE) -> منيل شيحة - الجيزة - طريق مصر أسيوط | H25: =VLOOKUP($B25+0,'Vendor Data'!$A$4:$H$1036,7,FALSE) -> 0 | I25: 542 | J25: 1850 | K25: 0.005 | L25: 9
A26: 146 | B26: 4 | C26: 2015-09-21 | D26: =VLOOKUP($B26+0,'Vendor Data'!$A$4:$H$1036,2,FALSE) -> 001/5/03830/191/00/00 | E26: =VLOOKUP($B26+0,'Vendor Data'!$A$4:$H$1036,3,FALSE) -> 261/966/367 | F26: =VLOOKUP($B26+0,'Vendor Data'!$A$4:$H$1036,5,FALSE) -> المستقبل هوسبيتاليتى سوليوشنز إف إتش إس | G26: =VLOOKUP($B26+0,'Vendor Data'!$A$4:$H$1036,6,FALSE) -> 40 أ شارع ترسا الهرم - الجيزة | H26: =VLOOKUP($B26+0,'Vendor Data'!$A$4:$H$1036,7,FALSE) -> 0 | I26: 3152 | J26: 9459.2 | L26: 61.81
A27: 147 | B27: 4 | C27: 2015-09-21 | D27: =VLOOKUP($B27+0,'Vendor Data'!$A$4:$H$1036,2,FALSE) -> 001/5/03830/191/00/00 | E27: =VLOOKUP($B27+0,'Vendor Data'!$A$4:$H$1036,3,FALSE) -> 261/966/367 | F27: =VLOOKUP($B27+0,'Vendor Data'!$A$4:$H$1036,5,FALSE) -> المستقبل هوسبيتاليتى سوليوشنز إف إتش إس | G27: =VLOOKUP($B27+0,'Vendor Data'!$A$4:$H$1036,6,FALSE) -> 40 أ شارع ترسا الهرم - الجيزة | H27: =VLOOKUP($B27+0,'Vendor Data'!$A$4:$H$1036,7,FALSE) -> 0 | I27: 3317 | J27: 8889.45 | L27: 52.79
A28: 148 | B28: 4 | C28: 2015-09-22 | D28: =VLOOKUP($B28+0,'Vendor Data'!$A$4:$H$1036,2,FALSE) -> 001/5/03830/191/00/00 | E28: =VLOOKUP($B28+0,'Vendor Data'!$A$4:$H$1036,3,FALSE) -> 261/966/367 | F28: =VLOOKUP($B28+0,'Vendor Data'!$A$4:$H$1036,5,FALSE) -> المستقبل هوسبيتاليتى سوليوشنز إف إتش إس | G28: =VLOOKUP($B28+0,'Vendor Data'!$A$4:$H$1036,6,FALSE) -> 40 أ شارع ترسا الهرم - الجيزة | H28: =VLOOKUP($B28+0,'Vendor Data'!$A$4:$H$1036,7,FALSE) -> 0 | I28: 3331 | J28: 1299 | L28: 14.32
A29: 149 | B29: 7 | C29: 2015-09-27 | D29: =VLOOKUP($B29+0,'Vendor Data'!$A$4:$H$1036,2,FALSE) -> 5/1707/192/04/07 | E29: =VLOOKUP($B29+0,'Vendor Data'!$A$4:$H$1036,3,FALSE) -> 0 | F29: =VLOOKUP($B29+0,'Vendor Data'!$A$4:$H$1036,5,FALSE) -> الحلبى جروب للتوريدات و الاستيراد | G29: =VLOOKUP($B29+0,'Vendor Data'!$A$4:$H$1036,6,FALSE) -> منيل شيحة - الجيزة - طريق مصر أسيوط | H29: =VLOOKUP($B29+0,'Vendor Data'!$A$4:$H$1036,7,FALSE) -> 0 | I29: 547 | J29: 450 | K29: 0.005 | L29: 2.5
A30: 150 | B30: 7 | C30: 2015-09-27 | D30: =VLOOKUP($B30+0,'Vendor Data'!$A$4:$H$1036,2,FALSE) -> 5/1707/192/04/07 | E30: =VLOOKUP($B30+0,'Vendor Data'!$A$4:$H$1036,3,FALSE) -> 0 | F30: =VLOOKUP($B30+0,'Vendor Data'!$A$4:$H$1036,5,FALSE) -> الحلبى جروب للتوريدات و الاستيراد | G30: =VLOOKUP($B30+0,'Vendor Data'!$A$4:$H$1036,6,FALSE) -> منيل شيحة - الجيزة - طريق مصر أسيوط | H30: =VLOOKUP($B30+0,'Vendor Data'!$A$4:$H$1036,7,FALSE) -> 0 | I30: 549 | J30: 335 | K30: 0.005 | L30: 1.5
A31: 151 | B31: 22 | C31: 2015-09-29 | D31: =VLOOKUP($B31+0,'Vendor Data'!$A$4:$H$1036,2,FALSE) -> 0 | E31: =VLOOKUP($B31+0,'Vendor Data'!$A$4:$H$1036,3,FALSE) -> 5/283/192/22 | F31: =VLOOKUP($B31+0,'Vendor Data'!$A$4:$H$1036,5,FALSE) -> الجزيرة للتوريدات | G31: =VLOOKUP($B31+0,'Vendor Data'!$A$4:$H$1036,6,FALSE) -> حلوان | H31: =VLOOKUP($B31+0,'Vendor Data'!$A$4:$H$1036,7,FALSE) -> حلوان | I31: 237 | J31: 2400 | L31: 11
A32: 152 | B32: 4 | C32: 2015-09-30 | D32: =VLOOKUP($B32+0,'Vendor Data'!$A$4:$H$1036,2,FALSE) -> 001/5/03830/191/00/00 | E32: =VLOOKUP($B32+0,'Vendor Data'!$A$4:$H$1036,3,FALSE) -> 261/966/367 | F32: =VLOOKUP($B32+0,'Vendor Data'!$A$4:$H$1036,5,FALSE) -> المستقبل هوسبيتاليتى سوليوشنز إف إتش إس | G32: =VLOOKUP($B32+0,'Vendor Data'!$A$4:$H$1036,6,FALSE) -> 40 أ شارع ترسا الهرم - الجيزة | H32: =VLOOKUP($B32+0,'Vendor Data'!$A$4:$H$1036,7,FALSE) -> 0 | I32: 3183 | J32: 5256 | L32: 24
A33: 153 | B33: 4 | C33: 2015-09-30 | D33: =VLOOKUP($B33+0,'Vendor Data'!$A$4:$H$1036,2,FALSE) -> 001/5/03830/191/00/00 | E33: =VLOOKUP($B33+0,'Vendor Data'!$A$4:$H$1036,3,FALSE) -> 261/966/367 | F33: =VLOOKUP($B33+0,'Vendor Data'!$A$4:$H$1036,5,FALSE) -> المستقبل هوسبيتاليتى سوليوشنز إف إتش إس | G33: =VLOOKUP($B33+0,'Vendor Data'!$A$4:$H$1036,6,FALSE) -> 40 أ شارع ترسا الهرم - الجيزة | H33: =VLOOKUP($B33+0,'Vendor Data'!$A$4:$H$1036,7,FALSE) -> 0 | I33: 3339 | J33: 2853.73 | L33: 13.77
A34: 154 | B34: 4 | C34: 2015-09-30 | D34: =VLOOKUP($B34+0,'Vendor Data'!$A$4:$H$1036,2,FALSE) -> 001/5/03830/191/00/00 | E34: =VLOOKUP($B34+0,'Vendor Data'!$A$4:$H$1036,3,FALSE) -> 261/966/367 | F34: =VLOOKUP($B34+0,'Vendor Data'!$A$4:$H$1036,5,FALSE) -> المستقبل هوسبيتاليتى سوليوشنز إف إتش إس | G34: =VLOOKUP($B34+0,'Vendor Data'!$A$4:$H$1036,6,FALSE) -> 40 أ شارع ترسا الهرم - الجيزة | H34: =VLOOKUP($B34+0,'Vendor Data'!$A$4:$H$1036,7,FALSE) -> 0 | I34: 3348 | J34: 817.13 | L34: 7.87
A35: 115 | D35: =VLOOKUP($B36+0,'Vendor Data'!$A$4:$H$1036,2,FALSE) ->  | E35: =VLOOKUP($B36+0,'Vendor Data'!$A$4:$H$1036,3,FALSE) ->  | F35: =VLOOKUP($B36+0,'Vendor Data'!$A$4:$H$1036,5,FALSE) ->  | G35: =VLOOKUP($B36+0,'Vendor Data'!$A$4:$H$1036,6,FALSE) ->  | H35: =VLOOKUP($B35+0,'Vendor Data'!$A$4:$H$1036,7,FALSE) -> 
A36: 116 | D36: =VLOOKUP($B37+0,'Vendor Data'!$A$4:$H$1036,2,FALSE) ->  | E36: =VLOOKUP($B37+0,'Vendor Data'!$A$4:$H$1036,3,FALSE) ->  | F36: =VLOOKUP($B37+0,'Vendor Data'!$A$4:$H$1036,5,FALSE) ->  | G36: =VLOOKUP($B37+0,'Vendor Data'!$A$4:$H$1036,6,FALSE) ->  | H36: =VLOOKUP($B36+0,'Vendor Data'!$A$4:$H$1036,7,FALSE) -> 
A37: 117 | D37: =VLOOKUP($B38+0,'Vendor Data'!$A$4:$H$1036,2,FALSE) ->  | E37: =VLOOKUP($B38+0,'Vendor Data'!$A$4:$H$1036,3,FALSE) ->  | F37: =VLOOKUP($B38+0,'Vendor Data'!$A$4:$H$1036,5,FALSE) ->  | G37: =VLOOKUP($B38+0,'Vendor Data'!$A$4:$H$1036,6,FALSE) ->  | H37: =VLOOKUP($B37+0,'Vendor Data'!$A$4:$H$1036,7,FALSE) -> 
A38: 118 | D38: =VLOOKUP($B39+0,'Vendor Data'!$A$4:$H$1036,2,FALSE) ->  | E38: =VLOOKUP($B39+0,'Vendor Data'!$A$4:$H$1036,3,FALSE) ->  | F38: =VLOOKUP($B39+0,'Vendor Data'!$A$4:$H$1036,5,FALSE) ->  | G38: =VLOOKUP($B39+0,'Vendor Data'!$A$4:$H$1036,6,FALSE) ->  | H38: =VLOOKUP($B38+0,'Vendor Data'!$A$4:$H$1036,7,FALSE) -> 
A39: 119 | D39: =VLOOKUP($B40+0,'Vendor Data'!$A$4:$H$1036,2,FALSE) ->  | E39: =VLOOKUP($B40+0,'Vendor Data'!$A$4:$H$1036,3,FALSE) ->  | F39: =VLOOKUP($B40+0,'Vendor Data'!$A$4:$H$1036,5,FALSE) ->  | G39: =VLOOKUP($B40+0,'Vendor Data'!$A$4:$H$1036,6,FALSE) ->  | H39: =VLOOKUP($B39+0,'Vendor Data'!$A$4:$H$1036,7,FALSE) -> 
A40: 120 | D40: =VLOOKUP($B41+0,'Vendor Data'!$A$4:$H$1036,2,FALSE) ->  | E40: =VLOOKUP($B41+0,'Vendor Data'!$A$4:$H$1036,3,FALSE) ->  | F40: =VLOOKUP($B41+0,'Vendor Data'!$A$4:$H$1036,5,FALSE) ->  | G40: =VLOOKUP($B41+0,'Vendor Data'!$A$4:$H$1036,6,FALSE) ->  | H40: =VLOOKUP($B40+0,'Vendor Data'!$A$4:$H$1036,7,FALSE) -> 
A41: 121 | D41: =VLOOKUP($B42+0,'Vendor Data'!$A$4:$H$1036,2,FALSE) ->  | E41: =VLOOKUP($B42+0,'Vendor Data'!$A$4:$H$1036,3,FALSE) ->  | F41: =VLOOKUP($B42+0,'Vendor Data'!$A$4:$H$1036,5,FALSE) ->  | G41: =VLOOKUP($B42+0,'Vendor Data'!$A$4:$H$1036,6,FALSE) ->  | H41: =VLOOKUP($B41+0,'Vendor Data'!$A$4:$H$1036,7,FALSE) -> 
A42: 122 | D42: =VLOOKUP($B43+0,'Vendor Data'!$A$4:$H$1036,2,FALSE) ->  | E42: =VLOOKUP($B43+0,'Vendor Data'!$A$4:$H$1036,3,FALSE) ->  | F42: =VLOOKUP($B43+0,'Vendor Data'!$A$4:$H$1036,5,FALSE) ->  | G42: =VLOOKUP($B43+0,'Vendor Data'!$A$4:$H$1036,6,FALSE) ->  | H42: =VLOOKUP($B42+0,'Vendor Data'!$A$4:$H$1036,7,FALSE) -> 
A43: 123 | D43: =VLOOKUP($B44+0,'Vendor Data'!$A$4:$H$1036,2,FALSE) ->  | E43: =VLOOKUP($B44+0,'Vendor Data'!$A$4:$H$1036,3,FALSE) ->  | F43: =VLOOKUP($B44+0,'Vendor Data'!$A$4:$H$1036,5,FALSE) ->  | G43: =VLOOKUP($B44+0,'Vendor Data'!$A$4:$H$1036,6,FALSE) ->  | H43: =VLOOKUP($B43+0,'Vendor Data'!$A$4:$H$1036,7,FALSE) -> 
A44: 124 | D44: =VLOOKUP($B45+0,'Vendor Data'!$A$4:$H$1036,2,FALSE) ->  | E44: =VLOOKUP($B45+0,'Vendor Data'!$A$4:$H$1036,3,FALSE) ->  | F44: =VLOOKUP($B45+0,'Vendor Data'!$A$4:$H$1036,5,FALSE) ->  | G44: =VLOOKUP($B45+0,'Vendor Data'!$A$4:$H$1036,6,FALSE) ->  | H44: =VLOOKUP($B44+0,'Vendor Data'!$A$4:$H$1036,7,FALSE) -> 
A45: 125 | D45: =VLOOKUP($B46+0,'Vendor Data'!$A$4:$H$1036,2,FALSE) ->  | E45: =VLOOKUP($B46+0,'Vendor Data'!$A$4:$H$1036,3,FALSE) ->  | F45: =VLOOKUP($B46+0,'Vendor Data'!$A$4:$H$1036,5,FALSE) ->  | G45: =VLOOKUP($B46+0,'Vendor Data'!$A$4:$H$1036,6,FALSE) ->  | H45: =VLOOKUP($B45+0,'Vendor Data'!$A$4:$H$1036,7,FALSE) -> 
A46: 126 | D46: =VLOOKUP($B47+0,'Vendor Data'!$A$4:$H$1036,2,FALSE) ->  | E46: =VLOOKUP($B47+0,'Vendor Data'!$A$4:$H$1036,3,FALSE) ->  | F46: =VLOOKUP($B47+0,'Vendor Data'!$A$4:$H$1036,5,FALSE) ->  | G46: =VLOOKUP($B47+0,'Vendor Data'!$A$4:$H$1036,6,FALSE) ->  | H46: =VLOOKUP($B46+0,'Vendor Data'!$A$4:$H$1036,7,FALSE) -> 
A47: 127 | D47: =VLOOKUP($B48+0,'Vendor Data'!$A$4:$H$1036,2,FALSE) ->  | E47: =VLOOKUP($B48+0,'Vendor Data'!$A$4:$H$1036,3,FALSE) ->  | F47: =VLOOKUP($B48+0,'Vendor Data'!$A$4:$H$1036,5,FALSE) ->  | G47: =VLOOKUP($B48+0,'Vendor Data'!$A$4:$H$1036,6,FALSE) ->  | H47: =VLOOKUP($B47+0,'Vendor Data'!$A$4:$H$1036,7,FALSE) -> 
A48: 128 | D48: =VLOOKUP($B49+0,'Vendor Data'!$A$4:$H$1036,2,FALSE) ->  | E48: =VLOOKUP($B49+0,'Vendor Data'!$A$4:$H$1036,3,FALSE) ->  | F48: =VLOOKUP($B49+0,'Vendor Data'!$A$4:$H$1036,5,FALSE) ->  | G48: =VLOOKUP($B49+0,'Vendor Data'!$A$4:$H$1036,6,FALSE) ->  | H48: =VLOOKUP($B48+0,'Vendor Data'!$A$4:$H$1036,7,FALSE) -> 
A49: 129 | D49: =VLOOKUP($B50+0,'Vendor Data'!$A$4:$H$1036,2,FALSE) ->  | E49: =VLOOKUP($B50+0,'Vendor Data'!$A$4:$H$1036,3,FALSE) ->  | F49: =VLOOKUP($B50+0,'Vendor Data'!$A$4:$H$1036,5,FALSE) ->  | G49: =VLOOKUP($B50+0,'Vendor Data'!$A$4:$H$1036,6,FALSE) ->  | H49: =VLOOKUP($B49+0,'Vendor Data'!$A$4:$H$1036,7,FALSE) -> 
A50: 130 | D50: =VLOOKUP($B51+0,'Vendor Data'!$A$4:$H$1036,2,FALSE) ->  | E50: =VLOOKUP($B51+0,'Vendor Data'!$A$4:$H$1036,3,FALSE) ->  | F50: =VLOOKUP($B51+0,'Vendor Data'!$A$4:$H$1036,5,FALSE) ->  | G50: =VLOOKUP($B51+0,'Vendor Data'!$A$4:$H$1036,6,FALSE) ->  | H50: =VLOOKUP($B50+0,'Vendor Data'!$A$4:$H$1036,7,FALSE) -> 
A51: 131 | D51: =VLOOKUP($B52+0,'Vendor Data'!$A$4:$H$1036,2,FALSE) ->  | E51: =VLOOKUP($B52+0,'Vendor Data'!$A$4:$H$1036,3,FALSE) ->  | F51: =VLOOKUP($B52+0,'Vendor Data'!$A$4:$H$1036,5,FALSE) ->  | G51: =VLOOKUP($B52+0,'Vendor Data'!$A$4:$H$1036,6,FALSE) ->  | H51: =VLOOKUP($B51+0,'Vendor Data'!$A$4:$H$1036,7,FALSE) -> 
A52: 132 | D52: =VLOOKUP($B53+0,'Vendor Data'!$A$4:$H$1036,2,FALSE) ->  | E52: =VLOOKUP($B53+0,'Vendor Data'!$A$4:$H$1036,3,FALSE) ->  | F52: =VLOOKUP($B53+0,'Vendor Data'!$A$4:$H$1036,5,FALSE) ->  | G52: =VLOOKUP($B53+0,'Vendor Data'!$A$4:$H$1036,6,FALSE) ->  | H52: =VLOOKUP($B52+0,'Vendor Data'!$A$4:$H$1036,7,FALSE) -> 
A53: 133 | D53: =VLOOKUP($B54+0,'Vendor Data'!$A$4:$H$1036,2,FALSE) ->  | E53: =VLOOKUP($B54+0,'Vendor Data'!$A$4:$H$1036,3,FALSE) ->  | F53: =VLOOKUP($B54+0,'Vendor Data'!$A$4:$H$1036,5,FALSE) ->  | G53: =VLOOKUP($B54+0,'Vendor Data'!$A$4:$H$1036,6,FALSE) ->  | H53: =VLOOKUP($B53+0,'Vendor Data'!$A$4:$H$1036,7,FALSE) -> 
A54: 134 | D54: =VLOOKUP($B55+0,'Vendor Data'!$A$4:$H$1036,2,FALSE) ->  | E54: =VLOOKUP($B55+0,'Vendor Data'!$A$4:$H$1036,3,FALSE) ->  | F54: =VLOOKUP($B55+0,'Vendor Data'!$A$4:$H$1036,5,FALSE) ->  | G54: =VLOOKUP($B55+0,'Vendor Data'!$A$4:$H$1036,6,FALSE) ->  | H54: =VLOOKUP($B54+0,'Vendor Data'!$A$4:$H$1036,7,FALSE) -> 
A55: 135 | D55: =VLOOKUP($B56+0,'Vendor Data'!$A$4:$H$1036,2,FALSE) ->  | E55: =VLOOKUP($B56+0,'Vendor Data'!$A$4:$H$1036,3,FALSE) ->  | F55: =VLOOKUP($B56+0,'Vendor Data'!$A$4:$H$1036,5,FALSE) ->  | G55: =VLOOKUP($B56+0,'Vendor Data'!$A$4:$H$1036,6,FALSE) ->  | H55: =VLOOKUP($B55+0,'Vendor Data'!$A$4:$H$1036,7,FALSE) -> 
A56: 136 | D56: =VLOOKUP($B57+0,'Vendor Data'!$A$4:$H$1036,2,FALSE) ->  | E56: =VLOOKUP($B57+0,'Vendor Data'!$A$4:$H$1036,3,FALSE) ->  | F56: =VLOOKUP($B57+0,'Vendor Data'!$A$4:$H$1036,5,FALSE) ->  | G56: =VLOOKUP($B57+0,'Vendor Data'!$A$4:$H$1036,6,FALSE) ->  | H56: =VLOOKUP($B56+0,'Vendor Data'!$A$4:$H$1036,7,FALSE) -> 
A57: 137 | D57: =VLOOKUP($B58+0,'Vendor Data'!$A$4:$H$1036,2,FALSE) ->  | E57: =VLOOKUP($B58+0,'Vendor Data'!$A$4:$H$1036,3,FALSE) ->  | F57: =VLOOKUP($B58+0,'Vendor Data'!$A$4:$H$1036,5,FALSE) ->  | G57: =VLOOKUP($B58+0,'Vendor Data'!$A$4:$H$1036,6,FALSE) ->  | H57: =VLOOKUP($B57+0,'Vendor Data'!$A$4:$H$1036,7,FALSE) -> 
A58: 138 | D58: =VLOOKUP($B59+0,'Vendor Data'!$A$4:$H$1036,2,FALSE) ->  | E58: =VLOOKUP($B59+0,'Vendor Data'!$A$4:$H$1036,3,FALSE) ->  | F58: =VLOOKUP($B59+0,'Vendor Data'!$A$4:$H$1036,5,FALSE) ->  | G58: =VLOOKUP($B59+0,'Vendor Data'!$A$4:$H$1036,6,FALSE) ->  | H58: =VLOOKUP($B58+0,'Vendor Data'!$A$4:$H$1036,7,FALSE) -> 
A59: 139 | D59: =VLOOKUP($B60+0,'Vendor Data'!$A$4:$H$1036,2,FALSE) ->  | E59: =VLOOKUP($B60+0,'Vendor Data'!$A$4:$H$1036,3,FALSE) ->  | F59: =VLOOKUP($B60+0,'Vendor Data'!$A$4:$H$1036,5,FALSE) ->  | G59: =VLOOKUP($B60+0,'Vendor Data'!$A$4:$H$1036,6,FALSE) ->  | H59: =VLOOKUP($B59+0,'Vendor Data'!$A$4:$H$1036,7,FALSE) -> 
A60: 140 | D60: =VLOOKUP($B61+0,'Vendor Data'!$A$4:$H$1036,2,FALSE) ->  | E60: =VLOOKUP($B61+0,'Vendor Data'!$A$4:$H$1036,3,FALSE) ->  | F60: =VLOOKUP($B61+0,'Vendor Data'!$A$4:$H$1036,5,FALSE) ->  | G60: =VLOOKUP($B61+0,'Vendor Data'!$A$4:$H$1036,6,FALSE) ->  | H60: =VLOOKUP($B60+0,'Vendor Data'!$A$4:$H$1036,7,FALSE) -> 
A61: 141 | D61: =VLOOKUP($B62+0,'Vendor Data'!$A$4:$H$1036,2,FALSE) ->  | E61: =VLOOKUP($B62+0,'Vendor Data'!$A$4:$H$1036,3,FALSE) ->  | F61: =VLOOKUP($B62+0,'Vendor Data'!$A$4:$H$1036,5,FALSE) ->  | G61: =VLOOKUP($B62+0,'Vendor Data'!$A$4:$H$1036,6,FALSE) ->  | H61: =VLOOKUP($B61+0,'Vendor Data'!$A$4:$H$1036,7,FALSE) -> 
A62: 142 | D62: =VLOOKUP($B63+0,'Vendor Data'!$A$4:$H$1036,2,FALSE) ->  | E62: =VLOOKUP($B63+0,'Vendor Data'!$A$4:$H$1036,3,FALSE) ->  | F62: =VLOOKUP($B63+0,'Vendor Data'!$A$4:$H$1036,5,FALSE) ->  | G62: =VLOOKUP($B63+0,'Vendor Data'!$A$4:$H$1036,6,FALSE) ->  | H62: =VLOOKUP($B62+0,'Vendor Data'!$A$4:$H$1036,7,FALSE) -> 
A63: 143 | D63: =VLOOKUP($B64+0,'Vendor Data'!$A$4:$H$1036,2,FALSE) ->  | E63: =VLOOKUP($B64+0,'Vendor Data'!$A$4:$H$1036,3,FALSE) ->  | F63: =VLOOKUP($B64+0,'Vendor Data'!$A$4:$H$1036,5,FALSE) ->  | G63: =VLOOKUP($B64+0,'Vendor Data'!$A$4:$H$1036,6,FALSE) ->  | H63: =VLOOKUP($B63+0,'Vendor Data'!$A$4:$H$1036,7,FALSE) -> 
A64: 144 | D64: =VLOOKUP($B65+0,'Vendor Data'!$A$4:$H$1036,2,FALSE) ->  | E64: =VLOOKUP($B65+0,'Vendor Data'!$A$4:$H$1036,3,FALSE) ->  | F64: =VLOOKUP($B65+0,'Vendor Data'!$A$4:$H$1036,5,FALSE) ->  | G64: =VLOOKUP($B65+0,'Vendor Data'!$A$4:$H$1036,6,FALSE) ->  | H64: =VLOOKUP($B64+0,'Vendor Data'!$A$4:$H$1036,7,FALSE) -> 
A65: 145 | D65: =VLOOKUP($B66+0,'Vendor Data'!$A$4:$H$1036,2,FALSE) ->  | E65: =VLOOKUP($B66+0,'Vendor Data'!$A$4:$H$1036,3,FALSE) ->  | F65: =VLOOKUP($B66+0,'Vendor Data'!$A$4:$H$1036,5,FALSE) ->  | G65: =VLOOKUP($B66+0,'Vendor Data'!$A$4:$H$1036,6,FALSE) ->  | H65: =VLOOKUP($B65+0,'Vendor Data'!$A$4:$H$1036,7,FALSE) -> 
A66: 146 | D66: =VLOOKUP($B67+0,'Vendor Data'!$A$4:$H$1036,2,FALSE) ->  | E66: =VLOOKUP($B67+0,'Vendor Data'!$A$4:$H$1036,3,FALSE) ->  | F66: =VLOOKUP($B67+0,'Vendor Data'!$A$4:$H$1036,5,FALSE) ->  | G66: =VLOOKUP($B67+0,'Vendor Data'!$A$4:$H$1036,6,FALSE) ->  | H66: =VLOOKUP($B66+0,'Vendor Data'!$A$4:$H$1036,7,FALSE) -> 
A67: 147 | D67: =VLOOKUP($B68+0,'Vendor Data'!$A$4:$H$1036,2,FALSE) ->  | E67: =VLOOKUP($B68+0,'Vendor Data'!$A$4:$H$1036,3,FALSE) ->  | F67: =VLOOKUP($B68+0,'Vendor Data'!$A$4:$H$1036,5,FALSE) ->  | G67: =VLOOKUP($B68+0,'Vendor Data'!$A$4:$H$1036,6,FALSE) ->  | H67: =VLOOKUP($B67+0,'Vendor Data'!$A$4:$H$1036,7,FALSE) -> 
C68: =tafket(L68,"جنيه"," قرش") -> فقط ستمائة و خمسة و ثلاثون جنيه و 2 قرش لاغير | L68: =SUM(L3:L67) -> 635.02
C69: تحريرا فى / / | G69: الموظف المختص | J69: رئيس جهة العمل

Sheet أبو الجود 2006 (hidden)
A1: بيان بإجمالى قيمة تعاملات المورد / أبو الجود للاطارات و البطاريات خلال الفترة من 2006/01/30 حتى 2006/11/09
K2: =SUBTOTAL(9,K4:K21) -> 1625.15
A3: م | B3: تاريخ التعامل | C3: رقم الملف | D3: رقم التسجيل الضريبى | E3: إسم الممول | F3: العنوان | G3: المامورية | H3: القيمة الاجمالية للتعامل | I3: القيمة الصافية للتعامل | J3: النسبة | K3: المحصل لحساب الضريبة
A4: 1 | B4: 2006-01-30 | C4: 5/368/2/189/00 | D4: 41087 | E4: أبو الجود للاطارات و البطاريات | F4: 166 شارع جسر السويس أمام نادى الشمس | G4: المطرية | H4: 38000 | I4: 37810 | J4: 0.005 | K4: =H4-I4 -> 190
A5: 2 | B5: 2006-01-20 | C5: 5/368/2/189/00 | D5: 41087 | E5: أبو الجود للاطارات و البطاريات | F5: 166 شارع جسر السويس أمام نادى الشمس | G5: المطرية | H5: 38000 | I5: 37810 | J5: 0.005 | K5: 190
A6: 3 | B6: 2006-01-20 | C6: 5/368/2/189/00 | D6: 41087 | E6: أبو الجود للاطارات و البطاريات | F6: 166 شارع جسر السويس أمام نادى الشمس | G6: المطرية | H6: 3800 | I6: 3781 | J6: 0.005 | K6: 19
A7: 4 | B7: 2006-01-20 | C7: 5/368/2/189/00 | D7: 41087 | E7: أبو الجود للاطارات و البطاريات | F7: 166 شارع جسر السويس أمام نادى الشمس | G7: المطرية | H7: 19000 | I7: 18905 | J7: 0.005 | K7: 95
A8: 5 | B8: 2006-03-08 | C8: 5/368/2/189/00 | D8: 41087 | E8: أبو الجود للاطارات و البطاريات | F8: 166 شارع جسر السويس أمام نادى الشمس | G8: المطرية | H8: 3600 | I8: 3582 | J8: 0.005 | K8: 18
A9: 6 | B9: 2006-03-20 | C9: 5/368/2/189/00 | D9: 41087 | E9: أبو الجود للاطارات و البطاريات | F9: 166 شارع جسر السويس أمام نادى الشمس | G9: المطرية | H9: 13710 | I9: 13641.45 | J9: 0.005 | K9: 68.55
A10: 7 | B10: 2006-03-30 | C10: 5/368/2/189/00 | D10: 41087 | E10: أبو الجود للاطارات و البطاريات | F10: 166 شارع جسر السويس أمام نادى الشمس | G10: المطرية | H10: 3300 | I10: 3283.5 | J10: 0.005 | K10: 16.5
A11: 8 | B11: 2006-07-01 | C11: 5/368/2/189/00 | D11: 41087 | E11: أبو الجود للاطارات و البطاريات | F11: 166 شارع جسر السويس أمام نادى الشمس | G11: المطرية | H11: 34500 | I11: 34327.5 | J11: 0.005 | K11: =H11-I11 -> 172.5
A12: 9 | B12: 2006-08-30 | C12: 5/368/2/189/00 | D12: 41087 | E12: أبو الجود للاطارات و البطاريات | F12: 166 شارع جسر السويس أمام نادى الشمس | G12: المطرية | H12: 34000 | I12: 33830 | J12: 0.005 | K12: =H12-I12 -> 170
A13: 10 | B13: 2006-08-30 | C13: 5/368/2/189/00 | D13: 41087 | E13: أبو الجود للاطارات و البطاريات | F13: 166 شارع جسر السويس أمام نادى الشمس | G13: المطرية | H13: 35000 | I13: 34825 | J13: 0.005 | K13: 175
A14: 11 | B14: 2006-10-03 | C14: 5/368/2/189/00 | D14: 41087 | E14: أبو الجود للاطارات و البطاريات | F14: 166 شارع جسر السويس أمام نادى الشمس | G14: المطرية | H14: 760 | I14: 756.2 | J14: 0.005 | K14: 3.8
A15: 12 | B15: 2006-10-04 | C15: 5/368/2/189/00 | D15: 41087 | E15: أبو الجود للاطارات و البطاريات | F15: 166 شارع جسر السويس أمام نادى الشمس | G15: المطرية | H15: 17500 | I15: 17412.5 | J15: 0.005 | K15: 87.5
A16: 13 | B16: 2006-10-07 | C16: 5/368/2/189/00 | D16: 41087 | E16: أبو الجود للاطارات و البطاريات | F16: 166 شارع جسر السويس أمام نادى الشمس | G16: المطرية | H16: 35000 | I16: 34825 | J16: 0.005 | K16: 175
A17: 14 | B17: 2006-10-09 | C17: 5/368/2/189/00 | D17: 41087 | E17: أبو الجود للاطارات و البطاريات | F17: 166 شارع جسر السويس أمام نادى الشمس | G17: المطرية | H17: 300 | I17: 298.5 | J17: 0.005 | K17: 1.5
A18: 15 | B18: 2006-10-20 | C18: 5/368/2/189/00 | D18: 41087 | E18: أبو الجود للاطارات و البطاريات | F18: 166 شارع جسر السويس أمام نادى الشمس | G18: المطرية | H18: 1000 | I18: 995 | J18: 0.005 | K18: 5
A19: 16 | B19: 2006-10-24 | C19: 5/368/2/189/00 | D19: 41087 | E19: أبو الجود للاطارات و البطاريات | F19: 166 شارع جسر السويس أمام نادى الشمس | G19: المطرية | H19: 11600 | I19: 11542 | J19: 0.005 | K19: 58
A20: 17 | B20: 2006-10-30 | C20: 5/368/2/189/00 | D20: 41087 | E20: أبو الجود للاطارات و البطاريات | F20: 166 شارع جسر السويس أمام نادى الشمس | G20: المطرية | H20: 960 | I20: 955.2 | J20: 0.005 | K20: 4.8
A21: 18 | B21: 2006-11-09 | C21: 5/368/2/189/00 | D21: 41087 | E21: أبو الجود للاطارات و البطاريات | F21: 166 شارع جسر السويس أمام نادى الشمس | G21: المطرية | H21: 35000 | I21: 34825 | J21: 0.005 | K21: 175
K120: =SUM(K15:K119) -> 506.8
B121: تحريرا فى / / | F121: الموظف المختص | I121: رئيس مجلس الإدارة

Sheet مجمع
A1: =TODAY() -> 2020-02-04 | E1: =TODAY() -> 2020-02-04 | H1: ضرائب الخصم و التحصيل تحت حساب الضريبة عن عام 2019 | N1: =SUBTOTAL(109,N3:N5014) -> 77571.11936
A2: الفترة | B2: م | C2: رقم الايصال | D2: كود المورد | E2: التاريخ | F2: رقم الملف | G2: بطاقة ضريبية | H2: إسم الممول | I2: العنوان | J2: المامورية | K2: رقم الفاتورة | L2: قيمة الفاتورة الاجمالية | M2: النسبة | N2: الضريبة
A3: الاولى | B3: 1 | C3: 1 | D3: 20 | E3: 2019-02-26 | F3: =IFERROR(VLOOKUP($C3+0,'[1]Vendor Data'!$A$4:$H$1036,2,FALSE),"") -> 5/0177/191/03/24 | G3: =IFERROR(VLOOKUP($C3+0,'[1]Vendor Data'!$A$4:$H$1036,3,FALSE),"") -> 327/964/103 | H3: =IFERROR(VLOOKUP($C3+0,'[1]Vendor Data'!$A$4:$H$1036,5,FALSE),"") -> شركة ديكوم تريد | I3: =IFERROR(VLOOKUP($C3+0,'[1]Vendor Data'!$A$4:$H$1036,6,FALSE),"") -> 53 شارع حافظ بدوى - مدينة نصر - القاهرة | J3: =IFERROR(VLOOKUP($C3+0,'[1]Vendor Data'!$A$4:$H$1036,7,FALSE),"") -> 0 | K3: 02-001 | L3: 4550 | M3: 0.01 | N3: 45.5
A4: الاولى | B4: 1 | C4: 2 | D4: 91 | E4: 2019-02-01 | F4: =IFERROR(VLOOKUP($C4+0,'[1]Vendor Data'!$A$4:$H$1036,2,FALSE),"") -> 5/318/280 | G4: =IFERROR(VLOOKUP($C4+0,'[1]Vendor Data'!$A$4:$H$1036,3,FALSE),"") -> 0 | H4: =IFERROR(VLOOKUP($C4+0,'[1]Vendor Data'!$A$4:$H$1036,5,FALSE),"") -> لايت واى إيجيبت | I4: =IFERROR(VLOOKUP($C4+0,'[1]Vendor Data'!$A$4:$H$1036,6,FALSE),"") -> قطعة أ . ب - بلوك 13025 - المنطقة الصناعية - مدينة العبور | J4: =IFERROR(VLOOKUP($C4+0,'[1]Vendor Data'!$A$4:$H$1036,7,FALSE),"") -> 0 | L4: 40000 | M4: 0.01 | N4: 400
A5: الاولى | B5: 1 | C5: 3 | D5: 10 | E5: 2019-03-12 | F5: =IFERROR(VLOOKUP($C5+0,'[1]Vendor Data'!$A$4:$H$1036,2,FALSE),"") -> 030/5/01717/192/00/26 | G5: =IFERROR(VLOOKUP($C5+0,'[1]Vendor Data'!$A$4:$H$1036,3,FALSE),"") -> 376-459-817 | H5: =IFERROR(VLOOKUP($C5+0,'[1]Vendor Data'!$A$4:$H$1036,5,FALSE),"") -> نات ايجيبت | I5: =IFERROR(VLOOKUP($C5+0,'[1]Vendor Data'!$A$4:$H$1036,6,FALSE),"") -> 2 ب مشروع إمتداد الاخاء كورنيش النيل - المعادى | J5: =IFERROR(VLOOKUP($C5+0,'[1]Vendor Data'!$A$4:$H$1036,7,FALSE),"") -> توصية بسيطة | K5: 5346 | L5: 4986 | M5: 0.01 | N5: 49.86
A6: الاولى | B6: 1 | C6: 4 | D6: 75 | E6: 2019-03-12 | F6: =IFERROR(VLOOKUP($C6+0,'[1]Vendor Data'!$A$4:$H$1036,2,FALSE),"") -> 001/5/03830/191/00/00 | G6: =IFERROR(VLOOKUP($C6+0,'[1]Vendor Data'!$A$4:$H$1036,3,FALSE),"") -> 261/966/367 | H6: =IFERROR(VLOOKUP($C6+0,'[1]Vendor Data'!$A$4:$H$1036,5,FALSE),"") -> المستقبل هوسبيتاليتى سوليوشنز إف إتش إس | I6: =IFERROR(VLOOKUP($C6+0,'[1]Vendor Data'!$A$4:$H$1036,6,FALSE),"") -> 40 أ شارع ترسا الهرم - الجيزة | J6: =IFERROR(VLOOKUP($C6+0,'[1]Vendor Data'!$A$4:$H$1036,7,FALSE),"") -> 0 | K6: 1382099142 | L6: 39802 | M6: 0.01 | N6: 398.02
A7: الاولى | B7: 1 | C7: 5 | D7: 11 | E7: 2019-03-12 | F7: =IFERROR(VLOOKUP($C7+0,'[1]Vendor Data'!$A$4:$H$1036,2,FALSE),"") -> 5/230/110/00/00 | G7: =IFERROR(VLOOKUP($C7+0,'[1]Vendor Data'!$A$4:$H$1036,3,FALSE),"") -> 999/364/295 | H7: =IFERROR(VLOOKUP($C7+0,'[1]Vendor Data'!$A$4:$H$1036,5,FALSE),"") -> أوان الورد | I7: =IFERROR(VLOOKUP($C7+0,'[1]Vendor Data'!$A$4:$H$1036,6,FALSE),"") -> 0 | J7: =IFERROR(VLOOKUP($C7+0,'[1]Vendor Data'!$A$4:$H$1036,7,FALSE),"") -> 0 | K7: 4279 | L7: 2760 | M7: 0.01 | N7: =L7*M7 -> 27.6
A8: الاولى | B8: 1 | C8: 6 | D8: 8 | E8: 2019-03-12 | F8: =IFERROR(VLOOKUP($C8+0,'[1]Vendor Data'!$A$4:$H$1036,2,FALSE),"") -> 5/00293/192/00/20 | G8: =IFERROR(VLOOKUP($C8+0,'[1]Vendor Data'!$A$4:$H$1036,3,FALSE),"") -> 0 | H8: =IFERROR(VLOOKUP($C8+0,'[1]Vendor Data'!$A$4:$H$1036,5,FALSE),"") -> الرائد لتجارة و توزيع الادوات المكتبية | I8: =IFERROR(VLOOKUP($C8+0,'[1]Vendor Data'!$A$4:$H$1036,6,FALSE),"") -> 0 | J8: =IFERROR(VLOOKUP($C8+0,'[1]Vendor Data'!$A$4:$H$1036,7,FALSE),"") -> مصر القديمة | K8: 73718 | L8: 589 | M8: 0.01 | N8: 5.89
A9: الاولى | B9: 1 | C9: 7 | D9: 11 | E9: 2019-03-12 | F9: =IFERROR(VLOOKUP($C9+0,'[1]Vendor Data'!$A$4:$H$1036,2,FALSE),"") -> 5/1707/192/04/07 | G9: =IFERROR(VLOOKUP($C9+0,'[1]Vendor Data'!$A$4:$H$1036,3,FALSE),"") -> 0 | H9: =IFERROR(VLOOKUP($C9+0,'[1]Vendor Data'!$A$4:$H$1036,5,FALSE),"") -> الحلبى جروب للتوريدات و الاستيراد | I9: =IFERROR(VLOOKUP($C9+0,'[1]Vendor Data'!$A$4:$H$1036,6,FALSE),"") -> منيل شيحة - الجيزة - طريق مصر أسيوط | J9: =IFERROR(VLOOKUP($C9+0,'[1]Vendor Data'!$A$4:$H$1036,7,FALSE),"") -> 0 | K9: 10168 | L9: 2926 | M9: 0.01 | N9: 29.26
A10: الاولى | B10: 1 | C10: 8 | D10: 8 | E10: 2019-03-12 | F10: =IFERROR(VLOOKUP($C10+0,'[1]Vendor Data'!$A$4:$H$1036,2,FALSE),"") -> 0 | G10: =IFERROR(VLOOKUP($C10+0,'[1]Vendor Data'!$A$4:$H$1036,3,FALSE),"") -> 11623 | H10: =IFERROR(VLOOKUP($C10+0,'[1]Vendor Data'!$A$4:$H$1036,5,FALSE),"") -> شركة فوود إستف للتوريدات | I10: =IFERROR(VLOOKUP($C10+0,'[1]Vendor Data'!$A$4:$H$1036,6,FALSE),"") -> شارع مصعب بن عمير - الاسكندرية | J10: =IFERROR(VLOOKUP($C10+0,'[1]Vendor Data'!$A$4:$H$1036,7,FALSE),"") -> الاسكندرية | K10: 72954 | L10: 778 | M10: 0.01 | N10: 7.78
A11: الاولى | B11: 1 | C11: 9 | D11: 76 | E11: 2019-03-12 | F11: =IFERROR(VLOOKUP($C11+0,'[1]Vendor Data'!$A$4:$H$1036,2,FALSE),"") -> 0 | G11: =IFERROR(VLOOKUP($C11+0,'[1]Vendor Data'!$A$4:$H$1036,3,FALSE),"") -> 0 | H11: =IFERROR(VLOOKUP($C11+0,'[1]Vendor Data'!$A$4:$H$1036,5,FALSE),"") -> بريميير للتوريدات و الاستيراد | I11: =IFERROR(VLOOKUP($C11+0,'[1]Vendor Data'!$A$4:$H$1036,6,FALSE),"") -> 13 ط شارع الاديب على أدهم - هليوبوليس | J11: =IFERROR(VLOOKUP($C11+0,'[1]Vendor Data'!$A$4:$H$1036,7,FALSE),"") -> 0 | K11: 139299 | L11: 525 | M11: 0.01 | N11: 5.25
A12: الاولى | B12: 1 | C12: 10 | D12: 11 | E12: 2019-03-12 | F12: =IFERROR(VLOOKUP($C12+0,'[1]Vendor Data'!$A$4:$H$1036,2,FALSE),"") -> 0 | G12: =IFERROR(VLOOKUP($C12+0,'[1]Vendor Data'!$A$4:$H$1036,3,FALSE),"") -> 0 | H12: =IFERROR(VLOOKUP($C12+0,'[1]Vendor Data'!$A$4:$H$1036,5,FALSE),"") -> تى سى إل تكنيكال كيميكالز لابروتورز | I12: =IFERROR(VLOOKUP($C12+0,'[1]Vendor Data'!$A$4:$H$1036,6,FALSE),"") -> 55 حدائق الاهرام | J12: =IFERROR(VLOOKUP($C12+0,'[1]Vendor Data'!$A$4:$H$1036,7,FALSE),"") -> 0 | L12: 450 | M12: 0.01 | N12: 4.5
A13: الاولى | B13: 1 | C13: 11 | D13: 8 | E13: 2019-03-12 | F13: =IFERROR(VLOOKUP($C13+0,'[1]Vendor Data'!$A$4:$H$1036,2,FALSE),"") -> 510425/191 | G13: =IFERROR(VLOOKUP($C13+0,'[1]Vendor Data'!$A$4:$H$1036,3,FALSE),"") -> 545/427/934 | H13: =IFERROR(VLOOKUP($C13+0,'[1]Vendor Data'!$A$4:$H$1036,5,FALSE),"") -> سى آر سى للتجارة | I13: =IFERROR(VLOOKUP($C13+0,'[1]Vendor Data'!$A$4:$H$1036,6,FALSE),"") -> 9ش مختار المصري - ارض الجولف - القاهرة | J13: =IFERROR(VLOOKUP($C13+0,'[1]Vendor Data'!$A$4:$H$1036,7,FALSE),"") -> المساهمة | K13: 73330 | L13: 1473 | M13: 0.01 | N13: 14.73
A14: الاولى | B14: 1 | C14: 12 | D14: 11 | E14: 2019-03-12 | F14: =IFERROR(VLOOKUP($C14+0,'[1]Vendor Data'!$A$4:$H$1036,2,FALSE),"") -> 5/828/192/28 | G14: =IFERROR(VLOOKUP($C14+0,'[1]Vendor Data'!$A$4:$H$1036,3,FALSE),"") -> 0 | H14: =IFERROR(VLOOKUP($C14+0,'[1]Vendor Data'!$A$4:$H$1036,5,FALSE),"") -> هولند كاب | I14: =IFERROR(VLOOKUP($C14+0,'[1]Vendor Data'!$A$4:$H$1036,6,FALSE),"") -> 0 | J14: =IFERROR(VLOOKUP($C14+0,'[1]Vendor Data'!$A$4:$H$1036,7,FALSE),"") -> 0 | K14: 73339 | L14: 289 | M14: 0.01 | N14: 2.89
A15: الاولى | B15: 1 | C15: 13 | D15: 11 | E15: 2019-03-12 | F15: =IFERROR(VLOOKUP($C15+0,'[1]Vendor Data'!$A$4:$H$1036,2,FALSE),"") -> 500135-191-00-00 | G15: =IFERROR(VLOOKUP($C15+0,'[1]Vendor Data'!$A$4:$H$1036,3,FALSE),"") -> 200-079-328 | H15: =IFERROR(VLOOKUP($C15+0,'[1]Vendor Data'!$A$4:$H$1036,5,FALSE),"") -> شركة ميدو للتجارة العالمية | I15: =IFERROR(VLOOKUP($C15+0,'[1]Vendor Data'!$A$4:$H$1036,6,FALSE),"") -> مدينة العبور - المنطقة الصناعية - قطعة 2 بلوك 13018 | J15: =IFERROR(VLOOKUP($C15+0,'[1]Vendor Data'!$A$4:$H$1036,7,FALSE),"") -> مركز كبار الممولين | K15: 4557 | L15: 4230 | M15: 0.01 | N15: 42.3
A16: الاولى | B16: 1 | C16: 14 | D16: 11 | E16: 2019-03-12 | F16: =IFERROR(VLOOKUP($C16+0,'[1]Vendor Data'!$A$4:$H$1036,2,FALSE),"") -> 0 | G16: =IFERROR(VLOOKUP($C16+0,'[1]Vendor Data'!$A$4:$H$1036,3,FALSE),"") -> 518/767/124 | H16: =IFERROR(VLOOKUP($C16+0,'[1]Vendor Data'!$A$4:$H$1036,5,FALSE),"") -> بصمة | I16: =IFERROR(VLOOKUP($C16+0,'[1]Vendor Data'!$A$4:$H$1036,6,FALSE),"") -> 14 شارع عبد الحى حجازى متفرع من عباس العقاد - مدينة نصر - القاهرة | J16: =IFERROR(VLOOKUP($C16+0,'[1]Vendor Data'!$A$4:$H$1036,7,FALSE),"") -> 0 | K16: 10506 | L16: 1410 | M16: 0.01 | N16: 14.1
A17: الاولى | B17: 1 | C17: 15 | E17: 2019-03-12 | F17: =IFERROR(VLOOKUP($C17+0,'[1]Vendor Data'!$A$4:$H$1036,2,FALSE),"") -> 200/178/466 | G17: =IFERROR(VLOOKUP($C17+0,'[1]Vendor Data'!$A$4:$H$1036,3,FALSE),"") -> 1/136 | H17: =IFERROR(VLOOKUP($C17+0,'[1]Vendor Data'!$A$4:$H$1036,5,FALSE),"") -> ذاروكس ايجيبت | I17: =IFERROR(VLOOKUP($C17+0,'[1]Vendor Data'!$A$4:$H$1036,6,FALSE),"") -> مدينة العبور | J17: =IFERROR(VLOOKUP($C17+0,'[1]Vendor Data'!$A$4:$H$1036,7,FALSE),"") -> 0 | L17: 3845 | M17: 0.01 | N17: 38.45
A18: الثانية | B18: 1 | C18: 16 | E18: 2019-03-12 | F18: =IFERROR(VLOOKUP($C18+0,'[1]Vendor Data'!$A$4:$H$1036,2,FALSE),"") -> 27904161400791 | G18: =IFERROR(VLOOKUP($C18+0,'[1]Vendor Data'!$A$4:$H$1036,3,FALSE),"") -> 0 | H18: =IFERROR(VLOOKUP($C18+0,'[1]Vendor Data'!$A$4:$H$1036,5,FALSE),"") -> وائل محمد أنور محمد | I18: =IFERROR(VLOOKUP($C18+0,'[1]Vendor Data'!$A$4:$H$1036,6,FALSE),"") -> 48 شارع محمد عثمان من شارع الفتح - البساتين - القاهرةة | J18: =IFERROR(VLOOKUP($C18+0,'[1]Vendor Data'!$A$4:$H$1036,7,FALSE),"") -> 0 | L18: 904 | M18: 0.01 | N18: 9.04
A19: الثانية | B19: 1 | C19: 17 | D19: 4 | E19: 2019-04-01 | F19: =IFERROR(VLOOKUP($D19+0,'[2]Vendor Data'!$A$4:$H$1036,2,FALSE),"") -> 001/5/03830/191/00/00 | G19: =IFERROR(VLOOKUP($D19+0,'[2]Vendor Data'!$A$4:$H$1036,3,FALSE),"") -> 261/966/367 | H19: =IFERROR(VLOOKUP($D19+0,'[2]Vendor Data'!$A$4:$H$1036,5,FALSE),"") -> المستقبل هوسبيتاليتى سوليوشنز إف إتش إس | I19: =IFERROR(VLOOKUP($D19+0,'[2]Vendor Data'!$A$4:$H$1036,6,FALSE),"") -> 40 أ شارع ترسا الهرم - الجيزة | J19: =IFERROR(VLOOKUP($D19+0,'[2]Vendor Data'!$A$4:$H$1036,7,FALSE),"") -> 0 | L19: 16093.8 | M19: 0.01 | N19: 158.02
A20: الثانية | B20: 1 | C20: 18 | D20: 30 | E20: 2019-04-01 | F20: =IFERROR(VLOOKUP($D20+0,'[2]Vendor Data'!$A$4:$H$1036,2,FALSE),"") -> 0 | G20: =IFERROR(VLOOKUP($D20+0,'[2]Vendor Data'!$A$4:$H$1036,3,FALSE),"") -> 11623 | H20: =IFERROR(VLOOKUP($D20+0,'[2]Vendor Data'!$A$4:$H$1036,5,FALSE),"") -> فود استف للتوريدات | I20: =IFERROR(VLOOKUP($D20+0,'[2]Vendor Data'!$A$4:$H$1036,6,FALSE),"") -> ش مصعب بن عمير الاسكندرية | J20: =IFERROR(VLOOKUP($D20+0,'[2]Vendor Data'!$A$4:$H$1036,7,FALSE),"") -> 0 | L20: 4816.5 | M20: 0.01 | N20: 43.65
A21: الثانية | B21: 1 | C21: 19 | D21: 9 | E21: 2019-04-01 | F21: =IFERROR(VLOOKUP($D21+0,'[2]Vendor Data'!$A$4:$H$1036,2,FALSE),"") -> 0 | G21: =IFERROR(VLOOKUP($D21+0,'[2]Vendor Data'!$A$4:$H$1036,3,FALSE),"") -> 0 | H21: =IFERROR(VLOOKUP($D21+0,'[2]Vendor Data'!$A$4:$H$1036,5,FALSE),"") -> بريميير للتوريدات و الاستيراد | I21: =IFERROR(VLOOKUP($D21+0,'[2]Vendor Data'!$A$4:$H$1036,6,FALSE),"") -> 13 ط شارع الاديب على أدهم - هليوبوليس | J21: =IFERROR(VLOOKUP($D21+0,'[2]Vendor Data'!$A$4:$H$1036,7,FALSE),"") -> 0 | L21: 10143.13 | M21: 0.01 | N21: 97.79
A22: الثانية | B22: 1 | C22: 20 | D22: 10 | E22: 2019-04-01 | F22: =IFERROR(VLOOKUP($D22+0,'[2]Vendor Data'!$A$4:$H$1036,2,FALSE),"") -> 0 | G22: =IFERROR(VLOOKUP($D22+0,'[2]Vendor Data'!$A$4:$H$1036,3,FALSE),"") -> 0 | H22: =IFERROR(VLOOKUP($D22+0,'[2]Vendor Data'!$A$4:$H$1036,5,FALSE),"") -> تى سى إل تكنيكال كيميكالز لابروتورز | I22: =IFERROR(VLOOKUP($D22+0,'[2]Vendor Data'!$A$4:$H$1036,6,FALSE),"") -> 55 حدائق الاهرام | J22: =IFERROR(VLOOKUP($D22+0,'[2]Vendor Data'!$A$4:$H$1036,7,FALSE),"") -> 0 | L22: 42389.1 | M22: 0.01 | N22: 519.78
A23: الثانية | B23: 1 | C23: 21 | D23: 11 | E23: 2019-04-01 | F23: =IFERROR(VLOOKUP($D23+0,'[2]Vendor Data'!$A$4:$H$1036,2,FALSE),"") -> 510425/191 | G23: =IFERROR(VLOOKUP($D23+0,'[2]Vendor Data'!$A$4:$H$1036,3,FALSE),"") -> 545/427/934 | H23: =IFERROR(VLOOKUP($D23+0,'[2]Vendor Data'!$A$4:$H$1036,5,FALSE),"") -> سى آر سى للتجارة | I23: =IFERROR(VLOOKUP($D23+0,'[2]Vendor Data'!$A$4:$H$1036,6,FALSE),"") -> 9ش مختار المصري - ارض الجولف - القاهرة | J23: =IFERROR(VLOOKUP($D23+0,'[2]Vendor Data'!$A$4:$H$1036,7,FALSE),"") -> المساهمة | L23: 12945.84 | M23: 0.01 | N23: 113.56
A24: الثانية | B24: 1 | C24: 22 | D24: 75 | E24: 2019-04-01 | F24: =IFERROR(VLOOKUP($D24+0,'[2]Vendor Data'!$A$4:$H$1036,2,FALSE),"") -> 3057 | G24: =IFERROR(VLOOKUP($D24+0,'[2]Vendor Data'!$A$4:$H$1036,3,FALSE),"") -> 0 | H24: =IFERROR(VLOOKUP($D24+0,'[2]Vendor Data'!$A$4:$H$1036,5,FALSE),"") -> ريتش للتجارة والتسويق | I24: =IFERROR(VLOOKUP($D24+0,'[2]Vendor Data'!$A$4:$H$1036,6,FALSE),"") -> المنطقة الصناعية أ القطعة 11 بلوك 24 12003العبور | J24: =IFERROR(VLOOKUP($D24+0,'[2]Vendor Data'!$A$4:$H$1036,7,FALSE),"") -> القاهرة | L24: 26433.24 | M24: 0.01 | N24: 231.84
A25: الثانية | B25: 1 | C25: 23 | D25: 12 | E25: 2019-04-01 | F25: =IFERROR(VLOOKUP($D25+0,'[2]Vendor Data'!$A$4:$H$1036,2,FALSE),"") -> 5/828/192/28 | G25: =IFERROR(VLOOKUP($D25+0,'[2]Vendor Data'!$A$4:$H$1036,3,FALSE),"") -> 0 | H25: =IFERROR(VLOOKUP($D25+0,'[2]Vendor Data'!$A$4:$H$1036,5,FALSE),"") -> هولند كاب | I25: =IFERROR(VLOOKUP($D25+0,'[2]Vendor Data'!$A$4:$H$1036,6,FALSE),"") -> 0 | J25: =IFERROR(VLOOKUP($D25+0,'[2]Vendor Data'!$A$4:$H$1036,7,FALSE),"") -> 0 | L25: 16048 | M25: 0.01 | N25: 160.48
A26: الثانية | B26: 1 | C26: 24 | D26: 76 | E26: 2019-04-01 | F26: =IFERROR(VLOOKUP($D26+0,'[2]Vendor Data'!$A$4:$H$1036,2,FALSE),"") -> 5-00227-130 | G26: =IFERROR(VLOOKUP($D26+0,'[2]Vendor Data'!$A$4:$H$1036,3,FALSE),"") -> 0 | H26: =IFERROR(VLOOKUP($D26+0,'[2]Vendor Data'!$A$4:$H$1036,5,FALSE),"") -> شركة ايه ام فودز | I26: =IFERROR(VLOOKUP($D26+0,'[2]Vendor Data'!$A$4:$H$1036,6,FALSE),"") -> ش طه حسين اليمامه سنتر الزمالك3 | J26: =IFERROR(VLOOKUP($D26+0,'[2]Vendor Data'!$A$4:$H$1036,7,FALSE),"") -> القاهرة | L26: 598.5 | M26: 0.01 | N26: 10.5
A27: الثانية | B27: 1 | C27: 25 | D27: 13 | E27: 2019-04-01 | F27: =IFERROR(VLOOKUP($D27+0,'[2]Vendor Data'!$A$4:$H$1036,2,FALSE),"") -> 500135-191-00-00 | G27: =IFERROR(VLOOKUP($D27+0,'[2]Vendor Data'!$A$4:$H$1036,3,FALSE),"") -> 200-079-328 | H27: =IFERROR(VLOOKUP($D27+0,'[2]Vendor Data'!$A$4:$H$1036,5,FALSE),"") -> شركة ميدو للتجارة العالمية | I27: =IFERROR(VLOOKUP($D27+0,'[2]Vendor Data'!$A$4:$H$1036,6,FALSE),"") -> مدينة العبور - المنطقة الصناعية - قطعة 2 بلوك 13018 | J27: =IFERROR(VLOOKUP($D27+0,'[2]Vendor Data'!$A$4:$H$1036,7,FALSE),"") -> مركز كبار الممولين | L27: 10944 | M27: 0.01 | N27: 96
A28: الثانية | B28: 1 | C28: 26 | D28: 14 | E28: 2019-04-01 | F28: =IFERROR(VLOOKUP($D28+0,'[2]Vendor Data'!$A$4:$H$1036,2,FALSE),"") -> 0 | G28: =IFERROR(VLOOKUP($D28+0,'[2]Vendor Data'!$A$4:$H$1036,3,FALSE),"") -> 518/767/124 | H28: =IFERROR(VLOOKUP($D28+0,'[2]Vendor Data'!$A$4:$H$1036,5,FALSE),"") -> بصمة | I28: =IFERROR(VLOOKUP($D28+0,'[2]Vendor Data'!$A$4:$H$1036,6,FALSE),"") -> 14 شارع عبد الحى حجازى متفرع من عباس العقاد - مدينة نصر - القاهرة | J28: =IFERROR(VLOOKUP($D28+0,'[2]Vendor Data'!$A$4:$H$1036,7,FALSE),"") -> 0 | L28: 4560 | M28: 0.005 | N28: 40
A29: الثانية | B29: 1 | C29: 27 | D29: 3 | E29: 2019-04-01 | F29: =IFERROR(VLOOKUP($D29+0,'[2]Vendor Data'!$A$4:$H$1036,2,FALSE),"") -> 030/5/01717/192/00/26 | G29: =IFERROR(VLOOKUP($D29+0,'[2]Vendor Data'!$A$4:$H$1036,3,FALSE),"") -> 376-459-817 | H29: =IFERROR(VLOOKUP($D29+0,'[2]Vendor Data'!$A$4:$H$1036,5,FALSE),"") -> نات ايجيبت | I29: =IFERROR(VLOOKUP($D29+0,'[2]Vendor Data'!$A$4:$H$1036,6,FALSE),"") -> 2 ب مشروع إمتداد الاخاء كورنيش النيل - المعادى | J29: =IFERROR(VLOOKUP($D29+0,'[2]Vendor Data'!$A$4:$H$1036,7,FALSE),"") -> توصية بسيطة | L29: 8550 | M29: 0.03 | N29: 225
A30: الثانية | B30: 1 | C30: 28 | D30: 16 | E30: 2019-05-01 | F30: =IFERROR(VLOOKUP($D30+0,'[2]Vendor Data'!$A$4:$H$1036,2,FALSE),"") -> 27904161400791 | G30: =IFERROR(VLOOKUP($D30+0,'[2]Vendor Data'!$A$4:$H$1036,3,FALSE),"") -> 0 | H30: =IFERROR(VLOOKUP($D30+0,'[2]Vendor Data'!$A$4:$H$1036,5,FALSE),"") -> وائل محمد أنور محمد | I30: =IFERROR(VLOOKUP($D30+0,'[2]Vendor Data'!$A$4:$H$1036,6,FALSE),"") -> 48 شارع محمد عثمان من شارع الفتح - البساتين - القاهرةة | J30: =IFERROR(VLOOKUP($D30+0,'[2]Vendor Data'!$A$4:$H$1036,7,FALSE),"") -> 0 | L30: 9649 | M30: 0.03 | N30: 244.67
A31: الثانية | B31: 1 | C31: 29 | D31: 17 | E31: 2019-05-01 | F31: =IFERROR(VLOOKUP($D31+0,'[2]Vendor Data'!$A$4:$H$1036,2,FALSE),"") -> 156/270 | G31: =IFERROR(VLOOKUP($D31+0,'[2]Vendor Data'!$A$4:$H$1036,3,FALSE),"") -> 0 | H31: =IFERROR(VLOOKUP($D31+0,'[2]Vendor Data'!$A$4:$H$1036,5,FALSE),"") -> الفيروز للتجارة و الهندسة (ش.م.م) | I31: =IFERROR(VLOOKUP($D31+0,'[2]Vendor Data'!$A$4:$H$1036,6,FALSE),"") -> 33 شارع أحمد أبو العلا - الحى الثامن - مدينة نصر - القاهرة | J31: =IFERROR(VLOOKUP($D31+0,'[2]Vendor Data'!$A$4:$H$1036,7,FALSE),"") -> المساهمة | L31: 2935.5 | M31: 0.01 | N31: 25.75
A32: الثانية | B32: 1 | C32: 30 | D32: 26 | E32: 2019-05-01 | F32: =IFERROR(VLOOKUP($D32+0,'[2]Vendor Data'!$A$4:$H$1036,2,FALSE),"") -> 0 | G32: =IFERROR(VLOOKUP($D32+0,'[2]Vendor Data'!$A$4:$H$1036,3,FALSE),"") -> 0 | H32: =IFERROR(VLOOKUP($D32+0,'[2]Vendor Data'!$A$4:$H$1036,5,FALSE),"") -> منير مقار | I32: =IFERROR(VLOOKUP($D32+0,'[2]Vendor Data'!$A$4:$H$1036,6,FALSE),"") -> عزبة مقار - طريق سقارة السياحي | J32: =IFERROR(VLOOKUP($D32+0,'[2]Vendor Data'!$A$4:$H$1036,7,FALSE),"") -> 0 | L32: 981.25 | M32: 0.01 | N32: 9.81
A33: الثانية | B33: 1 | C33: 31 | D33: 77 | E33: 2019-05-01 | F33: =IFERROR(VLOOKUP($D33+0,'[2]Vendor Data'!$A$4:$H$1036,2,FALSE),"") -> 0 | G33: =IFERROR(VLOOKUP($D33+0,'[2]Vendor Data'!$A$4:$H$1036,3,FALSE),"") -> 0 | H33: =IFERROR(VLOOKUP($D33+0,'[2]Vendor Data'!$A$4:$H$1036,5,FALSE),"") -> كريم للتجارة والتوريدات | I33: =IFERROR(VLOOKUP($D33+0,'[2]Vendor Data'!$A$4:$H$1036,6,FALSE),"") -> سوق العبور عنبر 14 خضار | J33: =IFERROR(VLOOKUP($D33+0,'[2]Vendor Data'!$A$4:$H$1036,7,FALSE),"") -> القاهرة | L33: 2522.95 | M33: 0.01 | N33: 16.61
A34: الثانية | B34: 1 | C34: 32 | D34: 41 | E34: 2019-05-01 | F34: =IFERROR(VLOOKUP($D34+0,'[2]Vendor Data'!$A$4:$H$1036,2,FALSE),"") -> 0 | G34: =IFERROR(VLOOKUP($D34+0,'[2]Vendor Data'!$A$4:$H$1036,3,FALSE),"") -> 0 | H34: =IFERROR(VLOOKUP($D34+0,'[2]Vendor Data'!$A$4:$H$1036,5,FALSE),"") -> الإيمان لتوريد الأسماك | I34: =IFERROR(VLOOKUP($D34+0,'[2]Vendor Data'!$A$4:$H$1036,6,FALSE),"") -> السادس من أكتوبر - الجيزة | J34: =IFERROR(VLOOKUP($D34+0,'[2]Vendor Data'!$A$4:$H$1036,7,FALSE),"") -> 0 | L34: 4720 | M34: 0.01 | N34: 38.2
A35: الثانية | B35: 1 | C35: 33 | D35: 63 | E35: 2019-05-01 | F35: =IFERROR(VLOOKUP($D35+0,'[2]Vendor Data'!$A$4:$H$1036,2,FALSE),"") -> 5/1137/192/15/6 | G35: =IFERROR(VLOOKUP($D35+0,'[2]Vendor Data'!$A$4:$H$1036,3,FALSE),"") -> 556-909-054 | H35: =IFERROR(VLOOKUP($D35+0,'[2]Vendor Data'!$A$4:$H$1036,5,FALSE),"") -> نماء لتوريد المكونات الغذائية | I35: =IFERROR(VLOOKUP($D35+0,'[2]Vendor Data'!$A$4:$H$1036,6,FALSE),"") -> 0 | J35: =IFERROR(VLOOKUP($D35+0,'[2]Vendor Data'!$A$4:$H$1036,7,FALSE),"") -> 0 | L35: 12439.5 | M35: 0.01 | N35: 124.39
A36: الثانية | B36: 1 | C36: 34 | D36: 30 | E36: 2019-05-01 | F36: =IFERROR(VLOOKUP($D36+0,'[2]Vendor Data'!$A$4:$H$1036,2,FALSE),"") -> 0 | G36: =IFERROR(VLOOKUP($D36+0,'[2]Vendor Data'!$A$4:$H$1036,3,FALSE),"") -> 11623 | H36: =IFERROR(VLOOKUP($D36+0,'[2]Vendor Data'!$A$4:$H$1036,5,FALSE),"") -> فود استف للتوريدات | I36: =IFERROR(VLOOKUP($D36+0,'[2]Vendor Data'!$A$4:$H$1036,6,FALSE),"") -> ش مصعب بن عمير الاسكندرية | J36: =IFERROR(VLOOKUP($D36+0,'[2]Vendor Data'!$A$4:$H$1036,7,FALSE),"") -> 0 | L36: 8800 | M36: 0.01 | N36: 88
A37: الثانية | B37: 1 | C37: 35 | D37: 78 | E37: 2019-05-01 | F37: =IFERROR(VLOOKUP($D37+0,'[2]Vendor Data'!$A$4:$H$1036,2,FALSE),"") -> 0 | G37: =IFERROR(VLOOKUP($D37+0,'[2]Vendor Data'!$A$4:$H$1036,3,FALSE),"") -> 0 | H37: =IFERROR(VLOOKUP($D37+0,'[2]Vendor Data'!$A$4:$H$1036,5,FALSE),"") -> الشهبندر للتجارة | I37: =IFERROR(VLOOKUP($D37+0,'[2]Vendor Data'!$A$4:$H$1036,6,FALSE),"") -> القاهرة | J37: =IFERROR(VLOOKUP($D37+0,'[2]Vendor Data'!$A$4:$H$1036,7,FALSE),"") -> 0 | L37: 992.8 | M37: 0.01 | N37: 9.92
A38: الثانية | B38: 1 | C38: 36 | D38: 11 | E38: 2019-05-01 | F38: =IFERROR(VLOOKUP($D38+0,'[2]Vendor Data'!$A$4:$H$1036,2,FALSE),"") -> 510425/191 | G38: =IFERROR(VLOOKUP($D38+0,'[2]Vendor Data'!$A$4:$H$1036,3,FALSE),"") -> 545/427/934 | H38: =IFERROR(VLOOKUP($D38+0,'[2]Vendor Data'!$A$4:$H$1036,5,FALSE),"") -> سى آر سى للتجارة | I38: =IFERROR(VLOOKUP($D38+0,'[2]Vendor Data'!$A$4:$H$1036,6,FALSE),"") -> 9ش مختار المصري - ارض الجولف - القاهرة | J38: =IFERROR(VLOOKUP($D38+0,'[2]Vendor Data'!$A$4:$H$1036,7,FALSE),"") -> المساهمة | L38: 1587.08 | M38: 0.01 | N38: 14.02
A39: الثانية | B39: 1 | C39: 37 | D39: 9 | E39: 2019-05-01 | F39: =IFERROR(VLOOKUP($D39+0,'[2]Vendor Data'!$A$4:$H$1036,2,FALSE),"") -> 0 | G39: =IFERROR(VLOOKUP($D39+0,'[2]Vendor Data'!$A$4:$H$1036,3,FALSE),"") -> 0 | H39: =IFERROR(VLOOKUP($D39+0,'[2]Vendor Data'!$A$4:$H$1036,5,FALSE),"") -> بريميير للتوريدات و الاستيراد | I39: =IFERROR(VLOOKUP($D39+0,'[2]Vendor Data'!$A$4:$H$1036,6,FALSE),"") -> 13 ط شارع الاديب على أدهم - هليوبوليس | J39: =IFERROR(VLOOKUP($D39+0,'[2]Vendor Data'!$A$4:$H$1036,7,FALSE),"") -> 0 | L39: 1539 | M39: 0.01 | N39: 13.5
A40: الثانية | B40: 1 | C40: 38 | D40: 29 | E40: 2019-05-01 | F40: =IFERROR(VLOOKUP($D40+0,'[2]Vendor Data'!$A$4:$H$1036,2,FALSE),"") -> 0 | G40: =IFERROR(VLOOKUP($D40+0,'[2]Vendor Data'!$A$4:$H$1036,3,FALSE),"") -> 312/986/823 | H40: =IFERROR(VLOOKUP($D40+0,'[2]Vendor Data'!$A$4:$H$1036,5,FALSE),"") -> احمد ابراهيم لتجارة الأسماك | I40: =IFERROR(VLOOKUP($D40+0,'[2]Vendor Data'!$A$4:$H$1036,6,FALSE),"") -> 0 | J40: =IFERROR(VLOOKUP($D40+0,'[2]Vendor Data'!$A$4:$H$1036,7,FALSE),"") -> 0 | L40: 560 | M40: 0.01 | N40: 5.6
A41: الثانية | B41: 1 | C41: 39 | D41: 79 | E41: 2019-05-01 | F41: =IFERROR(VLOOKUP($D41+0,'[2]Vendor Data'!$A$4:$H$1036,2,FALSE),"") -> 5-0029-192-03-24 | G41: =IFERROR(VLOOKUP($D41+0,'[2]Vendor Data'!$A$4:$H$1036,3,FALSE),"") -> 0 | H41: =IFERROR(VLOOKUP($D41+0,'[2]Vendor Data'!$A$4:$H$1036,5,FALSE),"") -> السوهاجي للتجارة والتوزيع | I41: =IFERROR(VLOOKUP($D41+0,'[2]Vendor Data'!$A$4:$H$1036,6,FALSE),"") -> 11ش حلمي عبدالعاطي الحي الثامن مدينة نصر | J41: =IFERROR(VLOOKUP($D41+0,'[2]Vendor Data'!$A$4:$H$1036,7,FALSE),"") -> القاهرة | L41: 1026 | M41: 0.01 | N41: 10.26
A42: الثانية | B42: 1 | C42: 40 | D42: 4 | E42: 2019-05-01 | F42: =IFERROR(VLOOKUP($D42+0,'[2]Vendor Data'!$A$4:$H$1036,2,FALSE),"") -> 001/5/03830/191/00/00 | G42: =IFERROR(VLOOKUP($D42+0,'[2]Vendor Data'!$A$4:$H$1036,3,FALSE),"") -> 261/966/367 | H42: =IFERROR(VLOOKUP($D42+0,'[2]Vendor Data'!$A$4:$H$1036,5,FALSE),"") -> المستقبل هوسبيتاليتى سوليوشنز إف إتش إس | I42: =IFERROR(VLOOKUP($D42+0,'[2]Vendor Data'!$A$4:$H$1036,6,FALSE),"") -> 40 أ شارع ترسا الهرم - الجيزة | J42: =IFERROR(VLOOKUP($D42+0,'[2]Vendor Data'!$A$4:$H$1036,7,FALSE),"") -> 0 | L42: 133.6 | M42: 0.01 | N42: 1.17
A43: الثانية | B43: 1 | C43: 41 | D43: 58 | E43: 2019-05-01 | F43: =IFERROR(VLOOKUP($D43+0,'[2]Vendor Data'!$A$4:$H$1036,2,FALSE),"") -> 0 | G43: =IFERROR(VLOOKUP($D43+0,'[2]Vendor Data'!$A$4:$H$1036,3,FALSE),"") -> 0 | H43: =IFERROR(VLOOKUP($D43+0,'[2]Vendor Data'!$A$4:$H$1036,5,FALSE),"") -> جلوبال للمنظفات | I43: =IFERROR(VLOOKUP($D43+0,'[2]Vendor Data'!$A$4:$H$1036,6,FALSE),"") -> 0 | J43: =IFERROR(VLOOKUP($D43+0,'[2]Vendor Data'!$A$4:$H$1036,7,FALSE),"") -> 0 | L43: 2700 | M43: 0.01 | N43: 27
A44: الثانية | B44: 1 | C44: 42 | D44: 50 | E44: 2019-05-01 | F44: =IFERROR(VLOOKUP($D44+0,'[2]Vendor Data'!$A$4:$H$1036,2,FALSE),"") -> 0 | G44: =IFERROR(VLOOKUP($D44+0,'[2]Vendor Data'!$A$4:$H$1036,3,FALSE),"") -> 318/256/886 | H44: =IFERROR(VLOOKUP($D44+0,'[2]Vendor Data'!$A$4:$H$1036,5,FALSE),"") -> ياسوو | I44: =IFERROR(VLOOKUP($D44+0,'[2]Vendor Data'!$A$4:$H$1036,6,FALSE),"") -> سكة الوايلي - حدائق القبة - القاهرة | J44: =IFERROR(VLOOKUP($D44+0,'[2]Vendor Data'!$A$4:$H$1036,7,FALSE),"") -> 0 | L44: 433 | M44: 0.01 | N44: 4.33
A45: الثانية | B45: 1 | C45: 43 | D45: 43 | E45: 2019-05-01 | F45: =IFERROR(VLOOKUP($D45+0,'[2]Vendor Data'!$A$4:$H$1036,2,FALSE),"") -> 0 | G45: =IFERROR(VLOOKUP($D45+0,'[2]Vendor Data'!$A$4:$H$1036,3,FALSE),"") -> 728-401-169 | H45: =IFERROR(VLOOKUP($D45+0,'[2]Vendor Data'!$A$4:$H$1036,5,FALSE),"") -> هيدروفارمز للحلول الزراعية | I45: =IFERROR(VLOOKUP($D45+0,'[2]Vendor Data'!$A$4:$H$1036,6,FALSE),"") -> 0 | J45: =IFERROR(VLOOKUP($D45+0,'[2]Vendor Data'!$A$4:$H$1036,7,FALSE),"") -> 0 | L45: 280 | M45: 0.01 | N45: 2.8
A46: الثانية | B46: 1 | C46: 44 | D46: 80 | E46: 2019-05-01 | F46: =IFERROR(VLOOKUP($D46+0,'[2]Vendor Data'!$A$4:$H$1036,2,FALSE),"") -> 0 | G46: =IFERROR(VLOOKUP($D46+0,'[2]Vendor Data'!$A$4:$H$1036,3,FALSE),"") -> 0 | H46: =IFERROR(VLOOKUP($D46+0,'[2]Vendor Data'!$A$4:$H$1036,5,FALSE),"") -> الامل لتوريد مستلزمات المطاعم | I46: =IFERROR(VLOOKUP($D46+0,'[2]Vendor Data'!$A$4:$H$1036,6,FALSE),"") -> القاهرة | J46: =IFERROR(VLOOKUP($D46+0,'[2]Vendor Data'!$A$4:$H$1036,7,FALSE),"") -> القاهرة | L46: 1532 | M46: 0.01 | N46: 15.32
A47: الثانية | B47: 1 | C47: 45 | D47: 45 | E47: 2019-05-01 | F47: =IFERROR(VLOOKUP($D47+0,'[2]Vendor Data'!$A$4:$H$1036,2,FALSE),"") -> 0 | G47: =IFERROR(VLOOKUP($D47+0,'[2]Vendor Data'!$A$4:$H$1036,3,FALSE),"") -> 0 | H47: =IFERROR(VLOOKUP($D47+0,'[2]Vendor Data'!$A$4:$H$1036,5,FALSE),"") -> الكسندرينا للتطوير والتجارة | I47: =IFERROR(VLOOKUP($D47+0,'[2]Vendor Data'!$A$4:$H$1036,6,FALSE),"") -> 22ش يحيي مشد - سموحة - الاسكندرية | J47: =IFERROR(VLOOKUP($D47+0,'[2]Vendor Data'!$A$4:$H$1036,7,FALSE),"") -> 0 | L47: 17257.13 | M47: 0.01 | N47: 175.56
A48: الثانية | B48: 1 | C48: 46 | D48: 7 | E48: 2019-05-01 | F48: =IFERROR(VLOOKUP($D48+0,'[2]Vendor Data'!$A$4:$H$1036,2,FALSE),"") -> 5/1707/192/04/07 | G48: =IFERROR(VLOOKUP($D48+0,'[2]Vendor Data'!$A$4:$H$1036,3,FALSE),"") -> 0 | H48: =IFERROR(VLOOKUP($D48+0,'[2]Vendor Data'!$A$4:$H$1036,5,FALSE),"") -> الحلبى جروب للتوريدات و الاستيراد | I48: =IFERROR(VLOOKUP($D48+0,'[2]Vendor Data'!$A$4:$H$1036,6,FALSE),"") -> منيل شيحة - الجيزة - طريق مصر أسيوط | J48: =IFERROR(VLOOKUP($D48+0,'[2]Vendor Data'!$A$4:$H$1036,7,FALSE),"") -> 0 | L48: 1760 | M48: 0.01 | N48: 17.6
A49: الثانية | B49: 1 | C49: 47 | D49: 81 | E49: 2019-05-01 | F49: =IFERROR(VLOOKUP($D49+0,'[2]Vendor Data'!$A$4:$H$1036,2,FALSE),"") -> 0 | G49: =IFERROR(VLOOKUP($D49+0,'[2]Vendor Data'!$A$4:$H$1036,3,FALSE),"") -> 0 | H49: =IFERROR(VLOOKUP($D49+0,'[2]Vendor Data'!$A$4:$H$1036,5,FALSE),"") -> ايدين جرينز ايجيبت | I49: =IFERROR(VLOOKUP($D49+0,'[2]Vendor Data'!$A$4:$H$1036,6,FALSE),"") -> القاهرة | J49: =IFERROR(VLOOKUP($D49+0,'[2]Vendor Data'!$A$4:$H$1036,7,FALSE),"") -> القاهرة | L49: 11000 | M49: 0.01 | N49: 94.6
A50: الثانية | B50: 1 | C50: 48 | D50: 30 | E50: 2019-05-01 | F50: =IFERROR(VLOOKUP($D50+0,'[2]Vendor Data'!$A$4:$H$1036,2,FALSE),"") -> 0 | G50: =IFERROR(VLOOKUP($D50+0,'[2]Vendor Data'!$A$4:$H$1036,3,FALSE),"") -> 11623 | H50: =IFERROR(VLOOKUP($D50+0,'[2]Vendor Data'!$A$4:$H$1036,5,FALSE),"") -> فود استف للتوريدات | I50: =IFERROR(VLOOKUP($D50+0,'[2]Vendor Data'!$A$4:$H$1036,6,FALSE),"") -> ش مصعب بن عمير الاسكندرية | J50: =IFERROR(VLOOKUP($D50+0,'[2]Vendor Data'!$A$4:$H$1036,7,FALSE),"") -> 0 | L50: 330 | M50: 0.01 | N50: 2.89
A51: الثانية | B51: 1 | C51: 49 | D51: 10 | E51: 2019-05-01 | F51: =IFERROR(VLOOKUP($D51+0,'[2]Vendor Data'!$A$4:$H$1036,2,FALSE),"") -> 0 | G51: =IFERROR(VLOOKUP($D51+0,'[2]Vendor Data'!$A$4:$H$1036,3,FALSE),"") -> 0 | H51: =IFERROR(VLOOKUP($D51+0,'[2]Vendor Data'!$A$4:$H$1036,5,FALSE),"") -> تى سى إل تكنيكال كيميكالز لابروتورز | I51: =IFERROR(VLOOKUP($D51+0,'[2]Vendor Data'!$A$4:$H$1036,6,FALSE),"") -> 55 حدائق الاهرام | J51: =IFERROR(VLOOKUP($D51+0,'[2]Vendor Data'!$A$4:$H$1036,7,FALSE),"") -> 0 | L51: 2949.07 | M51: 0.01 | N51: 25.86
A52: الثانية | B52: 1 | C52: 50 | D52: 4 | E52: 2019-05-01 | F52: =IFERROR(VLOOKUP($D52+0,'[2]Vendor Data'!$A$4:$H$1036,2,FALSE),"") -> 001/5/03830/191/00/00 | G52: =IFERROR(VLOOKUP($D52+0,'[2]Vendor Data'!$A$4:$H$1036,3,FALSE),"") -> 261/966/367 | H52: =IFERROR(VLOOKUP($D52+0,'[2]Vendor Data'!$A$4:$H$1036,5,FALSE),"") -> المستقبل هوسبيتاليتى سوليوشنز إف إتش إس | I52: =IFERROR(VLOOKUP($D52+0,'[2]Vendor Data'!$A$4:$H$1036,6,FALSE),"") -> 40 أ شارع ترسا الهرم - الجيزة | J52: =IFERROR(VLOOKUP($D52+0,'[2]Vendor Data'!$A$4:$H$1036,7,FALSE),"") -> 0 | L52: 2652.27 | M52: 0.01 | N52: 24.48
A53: الثانية | B53: 1 | C53: 51 | D53: 61 | E53: 2019-06-01 | F53: =IFERROR(VLOOKUP($D53+0,'[2]Vendor Data'!$A$4:$H$1036,2,FALSE),"") -> 0 | G53: =IFERROR(VLOOKUP($D53+0,'[2]Vendor Data'!$A$4:$H$1036,3,FALSE),"") -> 0 | H53: =IFERROR(VLOOKUP($D53+0,'[2]Vendor Data'!$A$4:$H$1036,5,FALSE),"") -> ايه تو زد | I53: =IFERROR(VLOOKUP($D53+0,'[2]Vendor Data'!$A$4:$H$1036,6,FALSE),"") -> 0 | J53: =IFERROR(VLOOKUP($D53+0,'[2]Vendor Data'!$A$4:$H$1036,7,FALSE),"") -> 0 | L53: 43268.6 | M53: 0.01 | N53: 382.91
A54: الثانية | B54: 1 | C54: 52 | D54: 23 | E54: 2019-06-01 | F54: =IFERROR(VLOOKUP($D54+0,'[2]Vendor Data'!$A$4:$H$1036,2,FALSE),"") -> 0 | G54: =IFERROR(VLOOKUP($D54+0,'[2]Vendor Data'!$A$4:$H$1036,3,FALSE),"") -> 5\07870\191\00\00 | H54: =IFERROR(VLOOKUP($D54+0,'[2]Vendor Data'!$A$4:$H$1036,5,FALSE),"") -> ناف انترناشيونال تريدينج | I54: =IFERROR(VLOOKUP($D54+0,'[2]Vendor Data'!$A$4:$H$1036,6,FALSE),"") -> 55ش مكرم عبيد - سيتي سنتر - مدينة نصر القاهرة | J54: =IFERROR(VLOOKUP($D54+0,'[2]Vendor Data'!$A$4:$H$1036,7,FALSE),"") -> 0 | L54: 47802.25 | M54: 0.01 | N54: 478.02
A55: الثانية | B55: 1 | C55: 53 | D55: 26 | E55: 2019-06-01 | F55: =IFERROR(VLOOKUP($D55+0,'[2]Vendor Data'!$A$4:$H$1036,2,FALSE),"") -> 0 | G55: =IFERROR(VLOOKUP($D55+0,'[2]Vendor Data'!$A$4:$H$1036,3,FALSE),"") -> 0 | H55: =IFERROR(VLOOKUP($D55+0,'[2]Vendor Data'!$A$4:$H$1036,5,FALSE),"") -> منير مقار | I55: =IFERROR(VLOOKUP($D55+0,'[2]Vendor Data'!$A$4:$H$1036,6,FALSE),"") -> عزبة مقار - طريق سقارة السياحي | J55: =IFERROR(VLOOKUP($D55+0,'[2]Vendor Data'!$A$4:$H$1036,7,FALSE),"") -> 0 | L55: 2370 | M55: 0.01 | N55: 23.7
A56: الثانية | B56: 1 | C56: 54 | D56: 39 | E56: 2019-06-01 | F56: =IFERROR(VLOOKUP($D56+0,'[2]Vendor Data'!$A$4:$H$1036,2,FALSE),"") -> 5/2571/192/15 | G56: =IFERROR(VLOOKUP($D56+0,'[2]Vendor Data'!$A$4:$H$1036,3,FALSE),"") -> 413/587/762 | H56: =IFERROR(VLOOKUP($D56+0,'[2]Vendor Data'!$A$4:$H$1036,5,FALSE),"") -> فوود براند | I56: =IFERROR(VLOOKUP($D56+0,'[2]Vendor Data'!$A$4:$H$1036,6,FALSE),"") -> 22ش حسن احمد المحامي - المريوطية | J56: =IFERROR(VLOOKUP($D56+0,'[2]Vendor Data'!$A$4:$H$1036,7,FALSE),"") -> الجيزة | L56: 11211.5 | M56: 0.01 | N56: 112.11
A57: الثانية | B57: 1 | C57: 55 | D57: 22 | E57: 2019-06-01 | F57: =IFERROR(VLOOKUP($D57+0,'[2]Vendor Data'!$A$4:$H$1036,2,FALSE),"") -> 0 | G57: =IFERROR(VLOOKUP($D57+0,'[2]Vendor Data'!$A$4:$H$1036,3,FALSE),"") -> 5/283/192/22 | H57: =IFERROR(VLOOKUP($D57+0,'[2]Vendor Data'!$A$4:$H$1036,5,FALSE),"") -> الجزيرة للتوريدات | I57: =IFERROR(VLOOKUP($D57+0,'[2]Vendor Data'!$A$4:$H$1036,6,FALSE),"") -> حلوان | J57: =IFERROR(VLOOKUP($D57+0,'[2]Vendor Data'!$A$4:$H$1036,7,FALSE),"") -> حلوان | L57: 143415.78 | M57: 0.01 | N57: 1375.72
A58: الثانية | B58: 1 | C58: 56 | D58: 18 | E58: 2019-06-01 | F58: =IFERROR(VLOOKUP($D58+0,'[2]Vendor Data'!$A$4:$H$1036,2,FALSE),"") -> 0 | G58: =IFERROR(VLOOKUP($D58+0,'[2]Vendor Data'!$A$4:$H$1036,3,FALSE),"") -> 0 | H58: =IFERROR(VLOOKUP($D58+0,'[2]Vendor Data'!$A$4:$H$1036,5,FALSE),"") -> شركة سناك لاند | I58: =IFERROR(VLOOKUP($D58+0,'[2]Vendor Data'!$A$4:$H$1036,6,FALSE),"") -> 13 شارع البرجاس - جاردن سيتى | J58: =IFERROR(VLOOKUP($D58+0,'[2]Vendor Data'!$A$4:$H$1036,7,FALSE),"") -> 0 | L58: 159300 | M58: 0.01 | N58: 1593
A59: الثانية | B59: 1 | C59: 57 | D59: 51 | E59: 2019-06-01 | F59: =IFERROR(VLOOKUP($D59+0,'[2]Vendor Data'!$A$4:$H$1036,2,FALSE),"") -> 0 | G59: =IFERROR(VLOOKUP($D59+0,'[2]Vendor Data'!$A$4:$H$1036,3,FALSE),"") -> 437-773-019 | H59: =IFERROR(VLOOKUP($D59+0,'[2]Vendor Data'!$A$4:$H$1036,5,FALSE),"") -> الانصاري للتجارة والمقاولات | I59: =IFERROR(VLOOKUP($D59+0,'[2]Vendor Data'!$A$4:$H$1036,6,FALSE),"") -> 4ش الخليل - ميدان لبنان - المهندسين | J59: =IFERROR(VLOOKUP($D59+0,'[2]Vendor Data'!$A$4:$H$1036,7,FALSE),"") -> 0 | L59: 6967.22 | M59: 0.01 | N59: 61.11
A60: الثانية | B60: 1 | C60: 58 | D60: 50 | E60: 2019-06-01 | F60: =IFERROR(VLOOKUP($D60+0,'[2]Vendor Data'!$A$4:$H$1036,2,FALSE),"") -> 0 | G60: =IFERROR(VLOOKUP($D60+0,'[2]Vendor Data'!$A$4:$H$1036,3,FALSE),"") -> 318/256/886 | H60: =IFERROR(VLOOKUP($D60+0,'[2]Vendor Data'!$A$4:$H$1036,5,FALSE),"") -> ياسوو | I60: =IFERROR(VLOOKUP($D60+0,'[2]Vendor Data'!$A$4:$H$1036,6,FALSE),"") -> سكة الوايلي - حدائق القبة - القاهرة | J60: =IFERROR(VLOOKUP($D60+0,'[2]Vendor Data'!$A$4:$H$1036,7,FALSE),"") -> 0 | L60: 2310 | M60: 0.01 | N60: 29.4
A61: الثانية | B61: 1 | C61: 59 | D61: 7 | E61: 2019-06-01 | F61: =IFERROR(VLOOKUP($D61+0,'[2]Vendor Data'!$A$4:$H$1036,2,FALSE),"") -> 5/1707/192/04/07 | G61: =IFERROR(VLOOKUP($D61+0,'[2]Vendor Data'!$A$4:$H$1036,3,FALSE),"") -> 0 | H61: =IFERROR(VLOOKUP($D61+0,'[2]Vendor Data'!$A$4:$H$1036,5,FALSE),"") -> الحلبى جروب للتوريدات و الاستيراد | I61: =IFERROR(VLOOKUP($D61+0,'[2]Vendor Data'!$A$4:$H$1036,6,FALSE),"") -> منيل شيحة - الجيزة - طريق مصر أسيوط | J61: =IFERROR(VLOOKUP($D61+0,'[2]Vendor Data'!$A$4:$H$1036,7,FALSE),"") -> 0 | L61: 2992 | M61: 0.01 | N61: 29.92
A62: الثانية | B62: 1 | C62: 60 | D62: 21 | E62: 2019-06-01 | F62: =IFERROR(VLOOKUP($D62+0,'[2]Vendor Data'!$A$4:$H$1036,2,FALSE),"") -> 0 | G62: =IFERROR(VLOOKUP($D62+0,'[2]Vendor Data'!$A$4:$H$1036,3,FALSE),"") -> 14868 | H62: =IFERROR(VLOOKUP($D62+0,'[2]Vendor Data'!$A$4:$H$1036,5,FALSE),"") -> إية وان | I62: =IFERROR(VLOOKUP($D62+0,'[2]Vendor Data'!$A$4:$H$1036,6,FALSE),"") -> أول طريق مصر الاسكندرية الزراعى | J62: =IFERROR(VLOOKUP($D62+0,'[2]Vendor Data'!$A$4:$H$1036,7,FALSE),"") -> 0 | L62: 2933 | M62: 0.01 | N62: 29.33
A63: الثانية | B63: 1 | C63: 61 | D63: 45 | E63: 2019-06-01 | F63: =IFERROR(VLOOKUP($D63+0,'[2]Vendor Data'!$A$4:$H$1036,2,FALSE),"") -> 0 | G63: =IFERROR(VLOOKUP($D63+0,'[2]Vendor Data'!$A$4:$H$1036,3,FALSE),"") -> 0 | H63: =IFERROR(VLOOKUP($D63+0,'[2]Vendor Data'!$A$4:$H$1036,5,FALSE),"") -> الكسندرينا للتطوير والتجارة | I63: =IFERROR(VLOOKUP($D63+0,'[2]Vendor Data'!$A$4:$H$1036,6,FALSE),"") -> 22ش يحيي مشد - سموحة - الاسكندرية | J63: =IFERROR(VLOOKUP($D63+0,'[2]Vendor Data'!$A$4:$H$1036,7,FALSE),"") -> 0 | L63: 60592.48 | M63: 0.01 | N63: 582.06
A64: الثانية | B64: 1 | C64: 62 | D64: 82 | E64: 2019-06-01 | F64: =IFERROR(VLOOKUP($D64+0,'[2]Vendor Data'!$A$4:$H$1036,2,FALSE),"") -> 226-03677-192-00-15 | G64: =IFERROR(VLOOKUP($D64+0,'[2]Vendor Data'!$A$4:$H$1036,3,FALSE),"") -> 0 | H64: =IFERROR(VLOOKUP($D64+0,'[2]Vendor Data'!$A$4:$H$1036,5,FALSE),"") -> أتش واي ام للتوريدات العمومية | I64: =IFERROR(VLOOKUP($D64+0,'[2]Vendor Data'!$A$4:$H$1036,6,FALSE),"") -> 33ش مساكن كفر طهرمس فيصل الجيزة | J64: =IFERROR(VLOOKUP($D64+0,'[2]Vendor Data'!$A$4:$H$1036,7,FALSE),"") -> الجيزة | L64: 16000 | M64: 0.01 | N64: 160
A65: الثانية | B65: 1 | C65: 63 | D65: 29 | E65: 2019-06-01 | F65: =IFERROR(VLOOKUP($D65+0,'[2]Vendor Data'!$A$4:$H$1036,2,FALSE),"") -> 0 | G65: =IFERROR(VLOOKUP($D65+0,'[2]Vendor Data'!$A$4:$H$1036,3,FALSE),"") -> 312/986/823 | H65: =IFERROR(VLOOKUP($D65+0,'[2]Vendor Data'!$A$4:$H$1036,5,FALSE),"") -> احمد ابراهيم لتجارة الأسماك | I65: =IFERROR(VLOOKUP($D65+0,'[2]Vendor Data'!$A$4:$H$1036,6,FALSE),"") -> 0 | J65: =IFERROR(VLOOKUP($D65+0,'[2]Vendor Data'!$A$4:$H$1036,7,FALSE),"") -> 0 | L65: 17085 | M65: 0.01 | N65: 170.8
A66: الثانية | B66: 1 | C66: 64 | D66: 44 | E66: 2019-06-01 | F66: =IFERROR(VLOOKUP($D66+0,'[2]Vendor Data'!$A$4:$H$1036,2,FALSE),"") -> 0 | G66: =IFERROR(VLOOKUP($D66+0,'[2]Vendor Data'!$A$4:$H$1036,3,FALSE),"") -> 0 | H66: =IFERROR(VLOOKUP($D66+0,'[2]Vendor Data'!$A$4:$H$1036,5,FALSE),"") -> المصرية للعصائر | I66: =IFERROR(VLOOKUP($D66+0,'[2]Vendor Data'!$A$4:$H$1036,6,FALSE),"") -> 0 | J66: =IFERROR(VLOOKUP($D66+0,'[2]Vendor Data'!$A$4:$H$1036,7,FALSE),"") -> 0 | L66: 2340 | M66: 0.01 | N66: 23.4
A67: الثانية | B67: 1 | C67: 65 | D67: 83 | E67: 2019-06-01 | F67: =IFERROR(VLOOKUP($D67+0,'[2]Vendor Data'!$A$4:$H$1036,2,FALSE),"") -> 0 | G67: =IFERROR(VLOOKUP($D67+0,'[2]Vendor Data'!$A$4:$H$1036,3,FALSE),"") -> 0 | H67: =IFERROR(VLOOKUP($D67+0,'[2]Vendor Data'!$A$4:$H$1036,5,FALSE),"") -> مؤسسة اللوتس لتعبئة وتغليف البيض | I67: =IFERROR(VLOOKUP($D67+0,'[2]Vendor Data'!$A$4:$H$1036,6,FALSE),"") -> العجمي - الهانوفيل - الاسكندرية | J67: =IFERROR(VLOOKUP($D67+0,'[2]Vendor Data'!$A$4:$H$1036,7,FALSE),"") -> الاسكندرية | L67: 3300 | M67: 0.01 | N67: 33
A68: الثانية | B68: 1 | C68: 66 | D68: 84 | E68: 2019-06-01 | F68: =IFERROR(VLOOKUP($D68+0,'[2]Vendor Data'!$A$4:$H$1036,2,FALSE),"") -> 0 | G68: =IFERROR(VLOOKUP($D68+0,'[2]Vendor Data'!$A$4:$H$1036,3,FALSE),"") -> 0 | H68: =IFERROR(VLOOKUP($D68+0,'[2]Vendor Data'!$A$4:$H$1036,5,FALSE),"") -> روتانا للتوريدات | I68: =IFERROR(VLOOKUP($D68+0,'[2]Vendor Data'!$A$4:$H$1036,6,FALSE),"") -> 14ش قوله امتداد محمد محمود - وسط البلد - عابدين - القاهرة | J68: =IFERROR(VLOOKUP($D68+0,'[2]Vendor Data'!$A$4:$H$1036,7,FALSE),"") -> القاهرة | L68: 5253.8 | M68: 0.01 | N68: 82.89
A69: الثانية | B69: 1 | C69: 67 | D69: 27 | E69: 2019-06-01 | F69: =IFERROR(VLOOKUP($D69+0,'[2]Vendor Data'!$A$4:$H$1036,2,FALSE),"") -> 5/17/198 | G69: =IFERROR(VLOOKUP($D69+0,'[2]Vendor Data'!$A$4:$H$1036,3,FALSE),"") -> 204/896/339 | H69: =IFERROR(VLOOKUP($D69+0,'[2]Vendor Data'!$A$4:$H$1036,5,FALSE),"") -> سونا لاستصلاح و إستزراع الاراضى و التصنيع الغذائى | I69: =IFERROR(VLOOKUP($D69+0,'[2]Vendor Data'!$A$4:$H$1036,6,FALSE),"") -> 21ش فهمي - باب اللوق - القاهرة | J69: =IFERROR(VLOOKUP($D69+0,'[2]Vendor Data'!$A$4:$H$1036,7,FALSE),"") -> 0 | L69: 1305 | M69: 0.01 | N69: 130.5
A70: الثانية | B70: 1 | C70: 68 | D70: 85 | E70: 2019-06-01 | F70: =IFERROR(VLOOKUP($D70+0,'[2]Vendor Data'!$A$4:$H$1036,2,FALSE),"") -> 5-269-198-11-3 | G70: =IFERROR(VLOOKUP($D70+0,'[2]Vendor Data'!$A$4:$H$1036,3,FALSE),"") -> 0 | H70: =IFERROR(VLOOKUP($D70+0,'[2]Vendor Data'!$A$4:$H$1036,5,FALSE),"") -> ماى فيرى فروتس | I70: =IFERROR(VLOOKUP($D70+0,'[2]Vendor Data'!$A$4:$H$1036,6,FALSE),"") -> الاسكندرية باب شرق خلف 30ش باتريس لومومبا فيلا | J70: =IFERROR(VLOOKUP($D70+0,'[2]Vendor Data'!$A$4:$H$1036,7,FALSE),"") -> الاسكندرية | L70: 4500 | M70: 0.01 | N70: 45
A71: الثانية | B71: 1 | C71: 69 | D71: 12 | E71: 2019-06-01 | F71: =IFERROR(VLOOKUP($D71+0,'[2]Vendor Data'!$A$4:$H$1036,2,FALSE),"") -> 5/828/192/28 | G71: =IFERROR(VLOOKUP($D71+0,'[2]Vendor Data'!$A$4:$H$1036,3,FALSE),"") -> 0 | H71: =IFERROR(VLOOKUP($D71+0,'[2]Vendor Data'!$A$4:$H$1036,5,FALSE),"") -> هولند كاب | I71: =IFERROR(VLOOKUP($D71+0,'[2]Vendor Data'!$A$4:$H$1036,6,FALSE),"") -> 0 | J71: =IFERROR(VLOOKUP($D71+0,'[2]Vendor Data'!$A$4:$H$1036,7,FALSE),"") -> 0 | L71: 3000 | M71: 0.01 | N71: 30
A72: الثانية | B72: 1 | C72: 70 | D72: 57 | E72: 2019-06-01 | F72: =IFERROR(VLOOKUP($D72+0,'[2]Vendor Data'!$A$4:$H$1036,2,FALSE),"") -> 0 | G72: =IFERROR(VLOOKUP($D72+0,'[2]Vendor Data'!$A$4:$H$1036,3,FALSE),"") -> 494-149-787 | H72: =IFERROR(VLOOKUP($D72+0,'[2]Vendor Data'!$A$4:$H$1036,5,FALSE),"") -> أجري تك للزراعة البيئية | I72: =IFERROR(VLOOKUP($D72+0,'[2]Vendor Data'!$A$4:$H$1036,6,FALSE),"") -> 60ش خالد بن الوليد - العوامية - الاقصر - مصر | J72: =IFERROR(VLOOKUP($D72+0,'[2]Vendor Data'!$A$4:$H$1036,7,FALSE),"") -> 0 | L72: 5460 | M72: 0.01 | N72: 54.6
A73: الثانية | B73: 1 | C73: 71 | D73: 24 | E73: 2019-06-01 | F73: =IFERROR(VLOOKUP($D73+0,'[2]Vendor Data'!$A$4:$H$1036,2,FALSE),"") -> 0 | G73: =IFERROR(VLOOKUP($D73+0,'[2]Vendor Data'!$A$4:$H$1036,3,FALSE),"") -> 0 | H73: =IFERROR(VLOOKUP($D73+0,'[2]Vendor Data'!$A$4:$H$1036,5,FALSE),"") -> أزاهير | I73: =IFERROR(VLOOKUP($D73+0,'[2]Vendor Data'!$A$4:$H$1036,6,FALSE),"") -> 100طريق مصر اسكندرية الصحراوي | J73: =IFERROR(VLOOKUP($D73+0,'[2]Vendor Data'!$A$4:$H$1036,7,FALSE),"") -> 0 | L73: 1970 | M73: 0.01 | N73: 19.7
A74: الثانية | B74: 1 | C74: 72 | D74: 35 | E74: 2019-06-01 | F74: =IFERROR(VLOOKUP($D74+0,'[2]Vendor Data'!$A$4:$H$1036,2,FALSE),"") -> 5/8/217 | G74: =IFERROR(VLOOKUP($D74+0,'[2]Vendor Data'!$A$4:$H$1036,3,FALSE),"") -> 100/123/827 | H74: =IFERROR(VLOOKUP($D74+0,'[2]Vendor Data'!$A$4:$H$1036,5,FALSE),"") -> كوكاكولا مصر | I74: =IFERROR(VLOOKUP($D74+0,'[2]Vendor Data'!$A$4:$H$1036,6,FALSE),"") -> 0 | J74: =IFERROR(VLOOKUP($D74+0,'[2]Vendor Data'!$A$4:$H$1036,7,FALSE),"") -> كبار الممولين | L74: 44872 | M74: 0.01 | N74: 448.72
A75: الثانية | B75: 1 | C75: 73 | D75: 54 | E75: 2019-06-01 | F75: =IFERROR(VLOOKUP($D75+0,'[2]Vendor Data'!$A$4:$H$1036,2,FALSE),"") -> 0 | G75: =IFERROR(VLOOKUP($D75+0,'[2]Vendor Data'!$A$4:$H$1036,3,FALSE),"") -> 0 | H75: =IFERROR(VLOOKUP($D75+0,'[2]Vendor Data'!$A$4:$H$1036,5,FALSE),"") -> فدان | I75: =IFERROR(VLOOKUP($D75+0,'[2]Vendor Data'!$A$4:$H$1036,6,FALSE),"") -> 0 | J75: =IFERROR(VLOOKUP($D75+0,'[2]Vendor Data'!$A$4:$H$1036,7,FALSE),"") -> 0 | L75: 968 | M75: 0.01 | N75: 9.68
A76: الثانية | B76: 1 | C76: 74 | D76: 86 | E76: 2019-06-01 | F76: =IFERROR(VLOOKUP($D76+0,'[2]Vendor Data'!$A$4:$H$1036,2,FALSE),"") -> 0 | G76: =IFERROR(VLOOKUP($D76+0,'[2]Vendor Data'!$A$4:$H$1036,3,FALSE),"") -> 0 | H76: =IFERROR(VLOOKUP($D76+0,'[2]Vendor Data'!$A$4:$H$1036,5,FALSE),"") -> شاديباك للعبوات الدوائية | I76: =IFERROR(VLOOKUP($D76+0,'[2]Vendor Data'!$A$4:$H$1036,6,FALSE),"") -> القاهرة | J76: =IFERROR(VLOOKUP($D76+0,'[2]Vendor Data'!$A$4:$H$1036,7,FALSE),"") -> القاهرة | L76: 10960.87 | M76: 0.01 | N76: 96.14
A77: الثانية | B77: 1 | C77: 75 | D77: 87 | E77: 2019-06-01 | F77: =IFERROR(VLOOKUP($D77+0,'[2]Vendor Data'!$A$4:$H$1036,2,FALSE),"") -> 0 | G77: =IFERROR(VLOOKUP($D77+0,'[2]Vendor Data'!$A$4:$H$1036,3,FALSE),"") -> 0 | H77: =IFERROR(VLOOKUP($D77+0,'[2]Vendor Data'!$A$4:$H$1036,5,FALSE),"") -> فوريني ايس كريم | I77: =IFERROR(VLOOKUP($D77+0,'[2]Vendor Data'!$A$4:$H$1036,6,FALSE),"") -> القاهرة | J77: =IFERROR(VLOOKUP($D77+0,'[2]Vendor Data'!$A$4:$H$1036,7,FALSE),"") -> القاهرة | L77: 3000 | M77: 0.01 | N77: 30
A78: الثانية | B78: 1 | C78: 76 | D78: 72 | E78: 2019-06-01 | F78: =IFERROR(VLOOKUP($D78+0,'[2]Vendor Data'!$A$4:$H$1036,2,FALSE),"") -> 5/00391/192/00/15 | G78: =IFERROR(VLOOKUP($D78+0,'[2]Vendor Data'!$A$4:$H$1036,3,FALSE),"") -> 413/328/376 | H78: =IFERROR(VLOOKUP($D78+0,'[2]Vendor Data'!$A$4:$H$1036,5,FALSE),"") -> شركة أنسى السرورى | I78: =IFERROR(VLOOKUP($D78+0,'[2]Vendor Data'!$A$4:$H$1036,6,FALSE),"") -> 113، 115 شارع محمد على بجوار دار الكتب العتبة | J78: =IFERROR(VLOOKUP($D78+0,'[2]Vendor Data'!$A$4:$H$1036,7,FALSE),"") -> 0 | L78: 23580 | M78: 0.01 | N78: 235.8
A79: الثانية | B79: 1 | C79: 77 | D79: 76 | E79: 2019-06-01 | F79: =IFERROR(VLOOKUP($D79+0,'[2]Vendor Data'!$A$4:$H$1036,2,FALSE),"") -> 5-00227-130 | G79: =IFERROR(VLOOKUP($D79+0,'[2]Vendor Data'!$A$4:$H$1036,3,FALSE),"") -> 0 | H79: =IFERROR(VLOOKUP($D79+0,'[2]Vendor Data'!$A$4:$H$1036,5,FALSE),"") -> شركة ايه ام فودز | I79: =IFERROR(VLOOKUP($D79+0,'[2]Vendor Data'!$A$4:$H$1036,6,FALSE),"") -> ش طه حسين اليمامه سنتر الزمالك3 | J79: =IFERROR(VLOOKUP($D79+0,'[2]Vendor Data'!$A$4:$H$1036,7,FALSE),"") -> القاهرة | L79: 59898.15 | M79: 0.01 | N79: 596.88
A80: الثانية | B80: 1 | C80: 78 | D80: 75 | E80: 2019-06-01 | F80: =IFERROR(VLOOKUP($D80+0,'[2]Vendor Data'!$A$4:$H$1036,2,FALSE),"") -> 3057 | G80: =IFERROR(VLOOKUP($D80+0,'[2]Vendor Data'!$A$4:$H$1036,3,FALSE),"") -> 0 | H80: =IFERROR(VLOOKUP($D80+0,'[2]Vendor Data'!$A$4:$H$1036,5,FALSE),"") -> ريتش للتجارة والتسويق | I80: =IFERROR(VLOOKUP($D80+0,'[2]Vendor Data'!$A$4:$H$1036,6,FALSE),"") -> المنطقة الصناعية أ القطعة 11 بلوك 24 12003العبور | J80: =IFERROR(VLOOKUP($D80+0,'[2]Vendor Data'!$A$4:$H$1036,7,FALSE),"") -> القاهرة | L80: 77192.23 | M80: 0.01 | N80: 683.44
A81: الثانية | B81: 1 | C81: 79 | D81: 53 | E81: 2019-06-01 | F81: =IFERROR(VLOOKUP($D81+0,'[2]Vendor Data'!$A$4:$H$1036,2,FALSE),"") -> 0 | G81: =IFERROR(VLOOKUP($D81+0,'[2]Vendor Data'!$A$4:$H$1036,3,FALSE),"") -> 5/1487/191/00/18 | H81: =IFERROR(VLOOKUP($D81+0,'[2]Vendor Data'!$A$4:$H$1036,5,FALSE),"") -> فوريو للتصدير والتوريدات العمومية | I81: =IFERROR(VLOOKUP($D81+0,'[2]Vendor Data'!$A$4:$H$1036,6,FALSE),"") -> مساكن الاباجية - بلوك 1 - مدخل 1 - شة 1 | J81: =IFERROR(VLOOKUP($D81+0,'[2]Vendor Data'!$A$4:$H$1036,7,FALSE),"") -> 0 | L81: 10026 | M81: 0.01 | N81: 100.26
A82: الثانية | B82: 1 | C82: 80 | D82: 25 | E82: 2019-06-01 | F82: =IFERROR(VLOOKUP($D82+0,'[2]Vendor Data'!$A$4:$H$1036,2,FALSE),"") -> 0 | G82: =IFERROR(VLOOKUP($D82+0,'[2]Vendor Data'!$A$4:$H$1036,3,FALSE),"") -> 0 | H82: =IFERROR(VLOOKUP($D82+0,'[2]Vendor Data'!$A$4:$H$1036,5,FALSE),"") -> جمال جمعة جمعة | I82: =IFERROR(VLOOKUP($D82+0,'[2]Vendor Data'!$A$4:$H$1036,6,FALSE),"") -> 0 | J82: =IFERROR(VLOOKUP($D82+0,'[2]Vendor Data'!$A$4:$H$1036,7,FALSE),"") -> 0 | L82: 870 | M82: 0.01 | N82: 8.7
A83: الثانية | B83: 1 | C83: 81 | D83: 20 | E83: 2019-06-01 | F83: =IFERROR(VLOOKUP($D83+0,'[2]Vendor Data'!$A$4:$H$1036,2,FALSE),"") -> 0 | G83: =IFERROR(VLOOKUP($D83+0,'[2]Vendor Data'!$A$4:$H$1036,3,FALSE),"") -> 0 | H83: =IFERROR(VLOOKUP($D83+0,'[2]Vendor Data'!$A$4:$H$1036,5,FALSE),"") -> كاندل كونيكشن | I83: =IFERROR(VLOOKUP($D83+0,'[2]Vendor Data'!$A$4:$H$1036,6,FALSE),"") -> 0 | J83: =IFERROR(VLOOKUP($D83+0,'[2]Vendor Data'!$A$4:$H$1036,7,FALSE),"") -> 0 | L83: 10465.2 | M83: 0.01 | N83: 82.8
A84: الثانية | B84: 1 | C84: 82 | D84: 11 | E84: 2019-06-01 | F84: =IFERROR(VLOOKUP($D84+0,'[2]Vendor Data'!$A$4:$H$1036,2,FALSE),"") -> 510425/191 | G84: =IFERROR(VLOOKUP($D84+0,'[2]Vendor Data'!$A$4:$H$1036,3,FALSE),"") -> 545/427/934 | H84: =IFERROR(VLOOKUP($D84+0,'[2]Vendor Data'!$A$4:$H$1036,5,FALSE),"") -> سى آر سى للتجارة | I84: =IFERROR(VLOOKUP($D84+0,'[2]Vendor Data'!$A$4:$H$1036,6,FALSE),"") -> 9ش مختار المصري - ارض الجولف - القاهرة | J84: =IFERROR(VLOOKUP($D84+0,'[2]Vendor Data'!$A$4:$H$1036,7,FALSE),"") -> المساهمة | L84: 34629.9 | M84: 0.01 | N84: 310.55
A85: الثانية | B85: 1 | C85: 83 | D85: 40 | E85: 2019-06-01 | F85: =IFERROR(VLOOKUP($D85+0,'[2]Vendor Data'!$A$4:$H$1036,2,FALSE),"") -> 555/5/00016/121/00/00 | G85: =IFERROR(VLOOKUP($D85+0,'[2]Vendor Data'!$A$4:$H$1036,3,FALSE),"") -> 0 | H85: =IFERROR(VLOOKUP($D85+0,'[2]Vendor Data'!$A$4:$H$1036,5,FALSE),"") -> السبيل الجديدة للانتاج الداجني | I85: =IFERROR(VLOOKUP($D85+0,'[2]Vendor Data'!$A$4:$H$1036,6,FALSE),"") -> قطاع المجزر الالي | J85: =IFERROR(VLOOKUP($D85+0,'[2]Vendor Data'!$A$4:$H$1036,7,FALSE),"") -> 0 | L85: 5580 | M85: 0.01 | N85: 55.8
A86: الثانية | B86: 1 | C86: 84 | D86: 9 | E86: 2019-06-01 | F86: =IFERROR(VLOOKUP($D86+0,'[2]Vendor Data'!$A$4:$H$1036,2,FALSE),"") -> 0 | G86: =IFERROR(VLOOKUP($D86+0,'[2]Vendor Data'!$A$4:$H$1036,3,FALSE),"") -> 0 | H86: =IFERROR(VLOOKUP($D86+0,'[2]Vendor Data'!$A$4:$H$1036,5,FALSE),"") -> بريميير للتوريدات و الاستيراد | I86: =IFERROR(VLOOKUP($D86+0,'[2]Vendor Data'!$A$4:$H$1036,6,FALSE),"") -> 13 ط شارع الاديب على أدهم - هليوبوليس | J86: =IFERROR(VLOOKUP($D86+0,'[2]Vendor Data'!$A$4:$H$1036,7,FALSE),"") -> 0 | L86: 120449.48 | M86: 0.01 | N86: 1201.18
A87: الثانية | B87: 1 | C87: 85 | D87: 60 | E87: 2019-06-01 | F87: =IFERROR(VLOOKUP($D87+0,'[2]Vendor Data'!$A$4:$H$1036,2,FALSE),"") -> 0 | G87: =IFERROR(VLOOKUP($D87+0,'[2]Vendor Data'!$A$4:$H$1036,3,FALSE),"") -> 410-917-753 | H87: =IFERROR(VLOOKUP($D87+0,'[2]Vendor Data'!$A$4:$H$1036,5,FALSE),"") -> سامو التجارية | I87: =IFERROR(VLOOKUP($D87+0,'[2]Vendor Data'!$A$4:$H$1036,6,FALSE),"") -> المنطقة الصناعية قطعة رقم 31-33 التجمع الثالث - القاهرة | J87: =IFERROR(VLOOKUP($D87+0,'[2]Vendor Data'!$A$4:$H$1036,7,FALSE),"") -> القاهرة الجديدة | L87: 12432 | M87: 0.01 | N87: 124.32
A88: الثانية | B88: 1 | C88: 86 | D88: 48 | E88: 2019-06-01 | F88: =IFERROR(VLOOKUP($D88+0,'[2]Vendor Data'!$A$4:$H$1036,2,FALSE),"") -> 0 | G88: =IFERROR(VLOOKUP($D88+0,'[2]Vendor Data'!$A$4:$H$1036,3,FALSE),"") -> 20421 | H88: =IFERROR(VLOOKUP($D88+0,'[2]Vendor Data'!$A$4:$H$1036,5,FALSE),"") -> تسويق للتجارة والتوزيع | I88: =IFERROR(VLOOKUP($D88+0,'[2]Vendor Data'!$A$4:$H$1036,6,FALSE),"") -> 0 | J88: =IFERROR(VLOOKUP($D88+0,'[2]Vendor Data'!$A$4:$H$1036,7,FALSE),"") -> 0 | L88: 31731.93 | M88: 0.01 | N88: 278.35
A89: الثانية | B89: 1 | C89: 87 | D89: 88 | E89: 2019-06-01 | F89: =IFERROR(VLOOKUP($D89+0,'[2]Vendor Data'!$A$4:$H$1036,2,FALSE),"") -> 0 | G89: =IFERROR(VLOOKUP($D89+0,'[2]Vendor Data'!$A$4:$H$1036,3,FALSE),"") -> 0 | H89: =IFERROR(VLOOKUP($D89+0,'[2]Vendor Data'!$A$4:$H$1036,5,FALSE),"") -> أسواق الخير للخضار والفاكهة والبيض | I89: =IFERROR(VLOOKUP($D89+0,'[2]Vendor Data'!$A$4:$H$1036,6,FALSE),"") -> القاهرة | J89: =IFERROR(VLOOKUP($D89+0,'[2]Vendor Data'!$A$4:$H$1036,7,FALSE),"") -> القاهرة | L89: 554.04 | M89: 0.01 | N89: 5.54
A90: الثانية | B90: 1 | C90: 88 | D90: 45 | E90: 2019-06-01 | F90: =IFERROR(VLOOKUP($D90+0,'[2]Vendor Data'!$A$4:$H$1036,2,FALSE),"") -> 0 | G90: =IFERROR(VLOOKUP($D90+0,'[2]Vendor Data'!$A$4:$H$1036,3,FALSE),"") -> 0 | H90: =IFERROR(VLOOKUP($D90+0,'[2]Vendor Data'!$A$4:$H$1036,5,FALSE),"") -> الكسندرينا للتطوير والتجارة | I90: =IFERROR(VLOOKUP($D90+0,'[2]Vendor Data'!$A$4:$H$1036,6,FALSE),"") -> 22ش يحيي مشد - سموحة - الاسكندرية | J90: =IFERROR(VLOOKUP($D90+0,'[2]Vendor Data'!$A$4:$H$1036,7,FALSE),"") -> 0 | L90: 37026.4 | M90: 0.01 | N90: 370.26
A91: الثانية | B91: 1 | C91: 89 | D91: 61 | E91: 2019-06-01 | F91: =IFERROR(VLOOKUP($D91+0,'[2]Vendor Data'!$A$4:$H$1036,2,FALSE),"") -> 0 | G91: =IFERROR(VLOOKUP($D91+0,'[2]Vendor Data'!$A$4:$H$1036,3,FALSE),"") -> 0 | H91: =IFERROR(VLOOKUP($D91+0,'[2]Vendor Data'!$A$4:$H$1036,5,FALSE),"") -> ايه تو زد | I91: =IFERROR(VLOOKUP($D91+0,'[2]Vendor Data'!$A$4:$H$1036,6,FALSE),"") -> 0 | J91: =IFERROR(VLOOKUP($D91+0,'[2]Vendor Data'!$A$4:$H$1036,7,FALSE),"") -> 0 | L91: 6200 | M91: 0.01 | N91: 62
A92: الثانية | B92: 1 | C92: 90 | D92: 51 | E92: 2019-06-01 | F92: =IFERROR(VLOOKUP($D92+0,'[2]Vendor Data'!$A$4:$H$1036,2,FALSE),"") -> 0 | G92: =IFERROR(VLOOKUP($D92+0,'[2]Vendor Data'!$A$4:$H$1036,3,FALSE),"") -> 437-773-019 | H92: =IFERROR(VLOOKUP($D92+0,'[2]Vendor Data'!$A$4:$H$1036,5,FALSE),"") -> الانصاري للتجارة والمقاولات | I92: =IFERROR(VLOOKUP($D92+0,'[2]Vendor Data'!$A$4:$H$1036,6,FALSE),"") -> 4ش الخليل - ميدان لبنان - المهندسين | J92: =IFERROR(VLOOKUP($D92+0,'[2]Vendor Data'!$A$4:$H$1036,7,FALSE),"") -> 0 | L92: 12270.11 | M92: 0.01 | N92: 115.73
A93: الثانية | B93: 1 | C93: 91 | D93: 29 | E93: 2019-06-01 | F93: =IFERROR(VLOOKUP($D93+0,'[2]Vendor Data'!$A$4:$H$1036,2,FALSE),"") -> 0 | G93: =IFERROR(VLOOKUP($D93+0,'[2]Vendor Data'!$A$4:$H$1036,3,FALSE),"") -> 312/986/823 | H93: =IFERROR(VLOOKUP($D93+0,'[2]Vendor Data'!$A$4:$H$1036,5,FALSE),"") -> احمد ابراهيم لتجارة الأسماك | I93: =IFERROR(VLOOKUP($D93+0,'[2]Vendor Data'!$A$4:$H$1036,6,FALSE),"") -> 0 | J93: =IFERROR(VLOOKUP($D93+0,'[2]Vendor Data'!$A$4:$H$1036,7,FALSE),"") -> 0 | L93: 14400 | M93: 0.01 | N93: 144
A94: الثانية | B94: 1 | C94: 92 | D94: 44 | E94: 2019-06-01 | F94: =IFERROR(VLOOKUP($D94+0,'[2]Vendor Data'!$A$4:$H$1036,2,FALSE),"") -> 0 | G94: =IFERROR(VLOOKUP($D94+0,'[2]Vendor Data'!$A$4:$H$1036,3,FALSE),"") -> 0 | H94: =IFERROR(VLOOKUP($D94+0,'[2]Vendor Data'!$A$4:$H$1036,5,FALSE),"") -> المصرية للعصائر | I94: =IFERROR(VLOOKUP($D94+0,'[2]Vendor Data'!$A$4:$H$1036,6,FALSE),"") -> 0 | J94: =IFERROR(VLOOKUP($D94+0,'[2]Vendor Data'!$A$4:$H$1036,7,FALSE),"") -> 0 | L94: 4716 | M94: 0.01 | N94: 47.16
A95: الثانية | B95: 1 | C95: 93 | D95: 9 | E95: 2019-06-01 | F95: =IFERROR(VLOOKUP($D95+0,'[2]Vendor Data'!$A$4:$H$1036,2,FALSE),"") -> 0 | G95: =IFERROR(VLOOKUP($D95+0,'[2]Vendor Data'!$A$4:$H$1036,3,FALSE),"") -> 0 | H95: =IFERROR(VLOOKUP($D95+0,'[2]Vendor Data'!$A$4:$H$1036,5,FALSE),"") -> بريميير للتوريدات و الاستيراد | I95: =IFERROR(VLOOKUP($D95+0,'[2]Vendor Data'!$A$4:$H$1036,6,FALSE),"") -> 13 ط شارع الاديب على أدهم - هليوبوليس | J95: =IFERROR(VLOOKUP($D95+0,'[2]Vendor Data'!$A$4:$H$1036,7,FALSE),"") -> 0 | L95: 2232.5 | M95: 0.01 | N95: 22.32
A96: الثانية | B96: 1 | C96: 94 | D96: 26 | E96: 2019-06-01 | F96: =IFERROR(VLOOKUP($D96+0,'[2]Vendor Data'!$A$4:$H$1036,2,FALSE),"") -> 0 | G96: =IFERROR(VLOOKUP($D96+0,'[2]Vendor Data'!$A$4:$H$1036,3,FALSE),"") -> 0 | H96: =IFERROR(VLOOKUP($D96+0,'[2]Vendor Data'!$A$4:$H$1036,5,FALSE),"") -> منير مقار | I96: =IFERROR(VLOOKUP($D96+0,'[2]Vendor Data'!$A$4:$H$1036,6,FALSE),"") -> عزبة مقار - طريق سقارة السياحي | J96: =IFERROR(VLOOKUP($D96+0,'[2]Vendor Data'!$A$4:$H$1036,7,FALSE),"") -> 0 | L96: 300 | M96: 0.01 | N96: 3
A97: الثانية | B97: 1 | C97: 95 | D97: 39 | E97: 2019-06-01 | F97: =IFERROR(VLOOKUP($D97+0,'[2]Vendor Data'!$A$4:$H$1036,2,FALSE),"") -> 5/2571/192/15 | G97: =IFERROR(VLOOKUP($D97+0,'[2]Vendor Data'!$A$4:$H$1036,3,FALSE),"") -> 413/587/762 | H97: =IFERROR(VLOOKUP($D97+0,'[2]Vendor Data'!$A$4:$H$1036,5,FALSE),"") -> فوود براند | I97: =IFERROR(VLOOKUP($D97+0,'[2]Vendor Data'!$A$4:$H$1036,6,FALSE),"") -> 22ش حسن احمد المحامي - المريوطية | J97: =IFERROR(VLOOKUP($D97+0,'[2]Vendor Data'!$A$4:$H$1036,7,FALSE),"") -> الجيزة | L97: 390 | M97: 0.01 | N97: 3.9
A98: الثانية | B98: 1 | C98: 96 | D98: 41 | E98: 2019-06-01 | F98: =IFERROR(VLOOKUP($D98+0,'[2]Vendor Data'!$A$4:$H$1036,2,FALSE),"") -> 0 | G98: =IFERROR(VLOOKUP($D98+0,'[2]Vendor Data'!$A$4:$H$1036,3,FALSE),"") -> 0 | H98: =IFERROR(VLOOKUP($D98+0,'[2]Vendor Data'!$A$4:$H$1036,5,FALSE),"") -> الإيمان لتوريد الأسماك | I98: =IFERROR(VLOOKUP($D98+0,'[2]Vendor Data'!$A$4:$H$1036,6,FALSE),"") -> السادس من أكتوبر - الجيزة | J98: =IFERROR(VLOOKUP($D98+0,'[2]Vendor Data'!$A$4:$H$1036,7,FALSE),"") -> 0 | L98: 9344 | M98: 0.01 | N98: 93.44
A99: الثانية | B99: 1 | C99: 97 | D99: 4 | E99: 2019-06-01 | F99: =IFERROR(VLOOKUP($D99+0,'[2]Vendor Data'!$A$4:$H$1036,2,FALSE),"") -> 001/5/03830/191/00/00 | G99: =IFERROR(VLOOKUP($D99+0,'[2]Vendor Data'!$A$4:$H$1036,3,FALSE),"") -> 261/966/367 | H99: =IFERROR(VLOOKUP($D99+0,'[2]Vendor Data'!$A$4:$H$1036,5,FALSE),"") -> المستقبل هوسبيتاليتى سوليوشنز إف إتش إس | I99: =IFERROR(VLOOKUP($D99+0,'[2]Vendor Data'!$A$4:$H$1036,6,FALSE),"") -> 40 أ شارع ترسا الهرم - الجيزة | J99: =IFERROR(VLOOKUP($D99+0,'[2]Vendor Data'!$A$4:$H$1036,7,FALSE),"") -> 0 | L99: 12891.25 | M99: 0.01 | N99: 212.59
A100: الثانية | B100: 1 | C100: 98 | D100: 52 | E100: 2019-06-01 | F100: =IFERROR(VLOOKUP($D100+0,'[2]Vendor Data'!$A$4:$H$1036,2,FALSE),"") -> 0 | G100: =IFERROR(VLOOKUP($D100+0,'[2]Vendor Data'!$A$4:$H$1036,3,FALSE),"") -> 137/905 | H100: =IFERROR(VLOOKUP($D100+0,'[2]Vendor Data'!$A$4:$H$1036,5,FALSE),"") -> ابو للاستيراد والتصدير | I100: =IFERROR(VLOOKUP($D100+0,'[2]Vendor Data'!$A$4:$H$1036,6,FALSE),"") -> 4ش محمد مظلوم - باب اللوق - القاهرة | J100: =IFERROR(VLOOKUP($D100+0,'[2]Vendor Data'!$A$4:$H$1036,7,FALSE),"") -> 0 | L100: 5864.4 | M100: 0.01 | N100: 58.64
A101: الثانية | B101: 1 | C101: 99 | D101: 43 | E101: 2019-06-01 | F101: =IFERROR(VLOOKUP($D101+0,'[2]Vendor Data'!$A$4:$H$1036,2,FALSE),"") -> 0 | G101: =IFERROR(VLOOKUP($D101+0,'[2]Vendor Data'!$A$4:$H$1036,3,FALSE),"") -> 728-401-169 | H101: =IFERROR(VLOOKUP($D101+0,'[2]Vendor Data'!$A$4:$H$1036,5,FALSE),"") -> هيدروفارمز للحلول الزراعية | I101: =IFERROR(VLOOKUP($D101+0,'[2]Vendor Data'!$A$4:$H$1036,6,FALSE),"") -> 0 | J101: =IFERROR(VLOOKUP($D101+0,'[2]Vendor Data'!$A$4:$H$1036,7,FALSE),"") -> 0 | L101: 980 | M101: 0.01 | N101: 9.8
A102: الثانية | B102: 1 | C102: 100 | D102: 35 | E102: 2019-06-01 | F102: =IFERROR(VLOOKUP($D102+0,'[2]Vendor Data'!$A$4:$H$1036,2,FALSE),"") -> 5/8/217 | G102: =IFERROR(VLOOKUP($D102+0,'[2]Vendor Data'!$A$4:$H$1036,3,FALSE),"") -> 100/123/827 | H102: =IFERROR(VLOOKUP($D102+0,'[2]Vendor Data'!$A$4:$H$1036,5,FALSE),"") -> كوكاكولا مصر | I102: =IFERROR(VLOOKUP($D102+0,'[2]Vendor Data'!$A$4:$H$1036,6,FALSE),"") -> 0 | L102: 7550 | M102: 0.01 | N102: 75.5
A103: الثانية | B103: 1 | C103: 101 | D103: 4 | E103: 2019-06-01 | F103: =IFERROR(VLOOKUP($D103+0,'[2]Vendor Data'!$A$4:$H$1036,2,FALSE),"") -> 001/5/03830/191/00/00 | G103: =IFERROR(VLOOKUP($D103+0,'[2]Vendor Data'!$A$4:$H$1036,3,FALSE),"") -> 261/966/367 | H103: =IFERROR(VLOOKUP($D103+0,'[2]Vendor Data'!$A$4:$H$1036,5,FALSE),"") -> المستقبل هوسبيتاليتى سوليوشنز إف إتش إس | I103: =IFERROR(VLOOKUP($D103+0,'[2]Vendor Data'!$A$4:$H$1036,6,FALSE),"") -> 40 أ شارع ترسا الهرم - الجيزة | J103: =IFERROR(VLOOKUP($D103+0,'[2]Vendor Data'!$A$4:$H$1036,7,FALSE),"") -> 0 | L103: 4959.83 | M103: 0.01 | N103: 43.5
A104: الثانية | B104: 1 | C104: 102 | D104: 41 | E104: 2019-06-01 | F104: =IFERROR(VLOOKUP($D104+0,'[2]Vendor Data'!$A$4:$H$1036,2,FALSE),"") -> 0 | G104: =IFERROR(VLOOKUP($D104+0,'[2]Vendor Data'!$A$4:$H$1036,3,FALSE),"") -> 0 | H104: =IFERROR(VLOOKUP($D104+0,'[2]Vendor Data'!$A$4:$H$1036,5,FALSE),"") -> الإيمان لتوريد الأسماك | I104: =IFERROR(VLOOKUP($D104+0,'[2]Vendor Data'!$A$4:$H$1036,6,FALSE),"") -> السادس من أكتوبر - الجيزة | J104: =IFERROR(VLOOKUP($D104+0,'[2]Vendor Data'!$A$4:$H$1036,7,FALSE),"") -> 0 | L104: 59170 | M104: 0.01 | N104: 591.7
A105: الثانية | B105: 1 | C105: 103 | D105: 30 | E105: 2019-06-01 | F105: =IFERROR(VLOOKUP($D105+0,'[2]Vendor Data'!$A$4:$H$1036,2,FALSE),"") -> 0 | G105: =IFERROR(VLOOKUP($D105+0,'[2]Vendor Data'!$A$4:$H$1036,3,FALSE),"") -> 11623 | H105: =IFERROR(VLOOKUP($D105+0,'[2]Vendor Data'!$A$4:$H$1036,5,FALSE),"") -> فود استف للتوريدات | I105: =IFERROR(VLOOKUP($D105+0,'[2]Vendor Data'!$A$4:$H$1036,6,FALSE),"") -> ش مصعب بن عمير الاسكندرية | J105: =IFERROR(VLOOKUP($D105+0,'[2]Vendor Data'!$A$4:$H$1036,7,FALSE),"") -> 0 | L105: 21697.66 | M105: 0.01 | N105: 823.9
A106: الثانية | B106: 1 | C106: 104 | D106: 4 | E106: 2019-06-01 | F106: =IFERROR(VLOOKUP($D106+0,'[2]Vendor Data'!$A$4:$H$1036,2,FALSE),"") -> 001/5/03830/191/00/00 | G106: =IFERROR(VLOOKUP($D106+0,'[2]Vendor Data'!$A$4:$H$1036,3,FALSE),"") -> 261/966/367 | H106: =IFERROR(VLOOKUP($D106+0,'[2]Vendor Data'!$A$4:$H$1036,5,FALSE),"") -> المستقبل هوسبيتاليتى سوليوشنز إف إتش إس | I106: =IFERROR(VLOOKUP($D106+0,'[2]Vendor Data'!$A$4:$H$1036,6,FALSE),"") -> 40 أ شارع ترسا الهرم - الجيزة | J106: =IFERROR(VLOOKUP($D106+0,'[2]Vendor Data'!$A$4:$H$1036,7,FALSE),"") -> 0 | L106: 21511.25 | M106: 0.01 | N106: 116.13
A107: الثانية | B107: 1 | C107: 105 | D107: 10 | E107: 2019-06-01 | F107: =IFERROR(VLOOKUP($D107+0,'[2]Vendor Data'!$A$4:$H$1036,2,FALSE),"") -> 0 | G107: =IFERROR(VLOOKUP($D107+0,'[2]Vendor Data'!$A$4:$H$1036,3,FALSE),"") -> 0 | H107: =IFERROR(VLOOKUP($D107+0,'[2]Vendor Data'!$A$4:$H$1036,5,FALSE),"") -> تى سى إل تكنيكال كيميكالز لابروتورز | I107: =IFERROR(VLOOKUP($D107+0,'[2]Vendor Data'!$A$4:$H$1036,6,FALSE),"") -> 55 حدائق الاهرام | L107: 27125.4 | M107: 0.01 | N107: 241.8
A108: الثانية | B108: 1 | C108: 106 | D108: 76 | E108: 2019-06-01 | F108: =IFERROR(VLOOKUP($D108+0,'[2]Vendor Data'!$A$4:$H$1036,2,FALSE),"") -> 5-00227-130 | G108: =IFERROR(VLOOKUP($D108+0,'[2]Vendor Data'!$A$4:$H$1036,3,FALSE),"") -> 0 | H108: =IFERROR(VLOOKUP($D108+0,'[2]Vendor Data'!$A$4:$H$1036,5,FALSE),"") -> شركة ايه ام فودز | I108: =IFERROR(VLOOKUP($D108+0,'[2]Vendor Data'!$A$4:$H$1036,6,FALSE),"") -> ش طه حسين اليمامه سنتر الزمالك3 | J108: =IFERROR(VLOOKUP($D108+0,'[2]Vendor Data'!$A$4:$H$1036,7,FALSE),"") -> القاهرة | L108: 25201.15 | M108: 0.01 | N108: 252.01
A109: الثانية | B109: 1 | C109: 107 | D109: 76 | E109: 2019-06-01 | F109: =IFERROR(VLOOKUP($D109+0,'[2]Vendor Data'!$A$4:$H$1036,2,FALSE),"") -> 5-00227-130 | G109: =IFERROR(VLOOKUP($D109+0,'[2]Vendor Data'!$A$4:$H$1036,3,FALSE),"") -> 0 | H109: =IFERROR(VLOOKUP($D109+0,'[2]Vendor Data'!$A$4:$H$1036,5,FALSE),"") -> شركة ايه ام فودز | I109: =IFERROR(VLOOKUP($D109+0,'[2]Vendor Data'!$A$4:$H$1036,6,FALSE),"") -> ش طه حسين اليمامه سنتر الزمالك3 | J109: =IFERROR(VLOOKUP($D109+0,'[2]Vendor Data'!$A$4:$H$1036,7,FALSE),"") -> القاهرة | L109: 24420.25 | M109: 0.01 | N109: 244.2
A110: الثانية | B110: 1 | C110: 108 | D110: 23 | E110: 2019-06-01 | F110: =IFERROR(VLOOKUP($D110+0,'[2]Vendor Data'!$A$4:$H$1036,2,FALSE),"") -> 0 | G110: =IFERROR(VLOOKUP($D110+0,'[2]Vendor Data'!$A$4:$H$1036,3,FALSE),"") -> 5\07870\191\00\00 | H110: =IFERROR(VLOOKUP($D110+0,'[2]Vendor Data'!$A$4:$H$1036,5,FALSE),"") -> ناف انترناشيونال تريدينج | I110: =IFERROR(VLOOKUP($D110+0,'[2]Vendor Data'!$A$4:$H$1036,6,FALSE),"") -> 55ش مكرم عبيد - سيتي سنتر - مدينة نصر القاهرة | J110: =IFERROR(VLOOKUP($D110+0,'[2]Vendor Data'!$A$4:$H$1036,7,FALSE),"") -> 0 | L110: 52350 | M110: 0.01 | N110: 523.5
A111: الثانية | B111: 1 | C111: 109 | D111: 89 | E111: 2019-06-01 | F111: =IFERROR(VLOOKUP($D111+0,'[2]Vendor Data'!$A$4:$H$1036,2,FALSE),"") -> 0 | G111: =IFERROR(VLOOKUP($D111+0,'[2]Vendor Data'!$A$4:$H$1036,3,FALSE),"") -> 0 | H111: =IFERROR(VLOOKUP($D111+0,'[2]Vendor Data'!$A$4:$H$1036,5,FALSE),"") -> فرست كلاس للسياحة | I111: =IFERROR(VLOOKUP($D111+0,'[2]Vendor Data'!$A$4:$H$1036,6,FALSE),"") -> مدينة نصر | J111: =IFERROR(VLOOKUP($D111+0,'[2]Vendor Data'!$A$4:$H$1036,7,FALSE),"") -> القاهرة | L111: 6166.66 | M111: 0.03 | N111: 185
A112: الثانية | B112: 1 | C112: 110 | D112: 26 | E112: 2019-06-01 | F112: =IFERROR(VLOOKUP($D112+0,'[2]Vendor Data'!$A$4:$H$1036,2,FALSE),"") -> 0 | G112: =IFERROR(VLOOKUP($D112+0,'[2]Vendor Data'!$A$4:$H$1036,3,FALSE),"") -> 0 | H112: =IFERROR(VLOOKUP($D112+0,'[2]Vendor Data'!$A$4:$H$1036,5,FALSE),"") -> منير مقار | I112: =IFERROR(VLOOKUP($D112+0,'[2]Vendor Data'!$A$4:$H$1036,6,FALSE),"") -> عزبة مقار - طريق سقارة السياحي | J112: =IFERROR(VLOOKUP($D112+0,'[2]Vendor Data'!$A$4:$H$1036,7,FALSE),"") -> 0 | L112: 1260 | M112: 0.01 | N112: 12.6
A113: الثانية | B113: 1 | C113: 111 | D113: 90 | E113: 2019-06-01 | F113: =IFERROR(VLOOKUP($D113+0,'[2]Vendor Data'!$A$4:$H$1036,2,FALSE),"") -> 0 | G113: =IFERROR(VLOOKUP($D113+0,'[2]Vendor Data'!$A$4:$H$1036,3,FALSE),"") -> 0 | H113: =IFERROR(VLOOKUP($D113+0,'[2]Vendor Data'!$A$4:$H$1036,5,FALSE),"") -> جيسي تريد | I113: =IFERROR(VLOOKUP($D113+0,'[2]Vendor Data'!$A$4:$H$1036,6,FALSE),"") -> القاهرة | J113: =IFERROR(VLOOKUP($D113+0,'[2]Vendor Data'!$A$4:$H$1036,7,FALSE),"") -> القاهرة | L113: 83600 | M113: 0.01 | N113: 836
A114: الثانية | B114: 1 | C114: 112 | D114: 35 | E114: 2019-06-01 | F114: =IFERROR(VLOOKUP($D114+0,'[2]Vendor Data'!$A$4:$H$1036,2,FALSE),"") -> 5/8/217 | G114: =IFERROR(VLOOKUP($D114+0,'[2]Vendor Data'!$A$4:$H$1036,3,FALSE),"") -> 100/123/827 | H114: =IFERROR(VLOOKUP($D114+0,'[2]Vendor Data'!$A$4:$H$1036,5,FALSE),"") -> كوكاكولا مصر | I114: =IFERROR(VLOOKUP($D114+0,'[2]Vendor Data'!$A$4:$H$1036,6,FALSE),"") -> 0 | J114: =IFERROR(VLOOKUP($D114+0,'[2]Vendor Data'!$A$4:$H$1036,7,FALSE),"") -> كبار الممولين | L114: 17668 | M114: 0.01 | N114: 176.68
A115: الثانية | B115: 1 | C115: 113 | D115: 13 | E115: 2019-06-01 | F115: =IFERROR(VLOOKUP($D115+0,'[2]Vendor Data'!$A$4:$H$1036,2,FALSE),"") -> 500135-191-00-00 | G115: =IFERROR(VLOOKUP($D115+0,'[2]Vendor Data'!$A$4:$H$1036,3,FALSE),"") -> 200-079-328 | H115: =IFERROR(VLOOKUP($D115+0,'[2]Vendor Data'!$A$4:$H$1036,5,FALSE),"") -> شركة ميدو للتجارة العالمية | I115: =IFERROR(VLOOKUP($D115+0,'[2]Vendor Data'!$A$4:$H$1036,6,FALSE),"") -> مدينة العبور - المنطقة الصناعية - قطعة 2 بلوك 13018 | J115: =IFERROR(VLOOKUP($D115+0,'[2]Vendor Data'!$A$4:$H$1036,7,FALSE),"") -> مركز كبار الممولين | L115: 45526 | M115: 0.01 | N115: 455.26
A116: الثانية | B116: 1 | C116: 114 | D116: 75 | E116: 2019-06-01 | F116: =IFERROR(VLOOKUP($D116+0,'[2]Vendor Data'!$A$4:$H$1036,2,FALSE),"") -> 3057 | G116: =IFERROR(VLOOKUP($D116+0,'[2]Vendor Data'!$A$4:$H$1036,3,FALSE),"") -> 0 | H116: =IFERROR(VLOOKUP($D116+0,'[2]Vendor Data'!$A$4:$H$1036,5,FALSE),"") -> ريتش للتجارة والتسويق | I116: =IFERROR(VLOOKUP($D116+0,'[2]Vendor Data'!$A$4:$H$1036,6,FALSE),"") -> المنطقة الصناعية أ القطعة 11 بلوك 24 12003العبور | J116: =IFERROR(VLOOKUP($D116+0,'[2]Vendor Data'!$A$4:$H$1036,7,FALSE),"") -> القاهرة | L116: 194518 | M116: 0.01 | N116: 1862.91
A117: الثانية | B117: 1 | C117: 115 | D117: 39 | E117: 2019-06-01 | F117: =IFERROR(VLOOKUP($D117+0,'[2]Vendor Data'!$A$4:$H$1036,2,FALSE),"") -> 5/2571/192/15 | G117: =IFERROR(VLOOKUP($D117+0,'[2]Vendor Data'!$A$4:$H$1036,3,FALSE),"") -> 413/587/762 | H117: =IFERROR(VLOOKUP($D117+0,'[2]Vendor Data'!$A$4:$H$1036,5,FALSE),"") -> فوود براند | I117: =IFERROR(VLOOKUP($D117+0,'[2]Vendor Data'!$A$4:$H$1036,6,FALSE),"") -> 22ش حسن احمد المحامي - المريوطية | J117: =IFERROR(VLOOKUP($D117+0,'[2]Vendor Data'!$A$4:$H$1036,7,FALSE),"") -> الجيزة | L117: 12061 | M117: 0.01 | N117: 120.61
A118: الثانية | B118: 1 | C118: 116 | D118: 15 | E118: 2019-06-01 | F118: =IFERROR(VLOOKUP($D118+0,'[2]Vendor Data'!$A$4:$H$1036,2,FALSE),"") -> 200/178/466 | G118: =IFERROR(VLOOKUP($D118+0,'[2]Vendor Data'!$A$4:$H$1036,3,FALSE),"") -> 1/136 | H118: =IFERROR(VLOOKUP($D118+0,'[2]Vendor Data'!$A$4:$H$1036,5,FALSE),"") -> ذاروكس ايجيبت | I118: =IFERROR(VLOOKUP($D118+0,'[2]Vendor Data'!$A$4:$H$1036,6,FALSE),"") -> مدينة العبور | J118: =IFERROR(VLOOKUP($D118+0,'[2]Vendor Data'!$A$4:$H$1036,7,FALSE),"") -> 0 | L118: 20470.78 | M118: 0.01 | N118: 179.56
A119: الثانية | B119: 1 | C119: 117 | D119: 44 | E119: 2019-06-01 | F119: =IFERROR(VLOOKUP($D119+0,'[2]Vendor Data'!$A$4:$H$1036,2,FALSE),"") -> 0 | G119: =IFERROR(VLOOKUP($D119+0,'[2]Vendor Data'!$A$4:$H$1036,3,FALSE),"") -> 0 | H119: =IFERROR(VLOOKUP($D119+0,'[2]Vendor Data'!$A$4:$H$1036,5,FALSE),"") -> المصرية للعصائر | I119: =IFERROR(VLOOKUP($D119+0,'[2]Vendor Data'!$A$4:$H$1036,6,FALSE),"") -> 0 | J119: =IFERROR(VLOOKUP($D119+0,'[2]Vendor Data'!$A$4:$H$1036,7,FALSE),"") -> 0 | L119: 4480 | M119: 0.01 | N119: 44.8
A120: الثالثة | B120: 1 | C120: 118 | D120: 20 | E120: 2019-06-15 | F120: 0 | G120: 0 | H120: كاندل كونيكشن | I120: 0 | J120: 0 | K120: 19/398 | L120: 8276.4 | M120: 0.01 | N120: 72.6
A121: الثالثة | B121: 1 | C121: 119 | D121: 21 | E121: 2019-09-02 | F121: 0 | G121: 14868 | H121: إية وان | I121: أول طريق مصر الاسكندرية الزراعى | J121: 0 | K121: 222 | L121: 2253 | M121: 0.01 | N121: 22.53
A122: الثالثة | B122: 1 | C122: 120 | D122: 22 | E122: 2019-08-29 | F122: 0 | G122: 5/283/192/22 | H122: الجزيرة للتوريدات | I122: حلوان | J122: حلوان | K122: 381 | L122: 58396.5 | M122: 0.01 | N122: 512.25
A123: الثالثة | B123: 1 | C123: 121 | D123: 23 | E123: 2019-08-29 | F123: 0 | G123: 5\07870\191\00\00 | H123: ناف انترناشيونال تريدينج | I123: 55ش مكرم عبيد - سيتي سنتر - مدينة نصر القاهرة | J123: 0 | K123: 2562 | L123: 30205.7 | M123: 0.01 | N123: 302.057
A124: الثالثة | B124: 1 | C124: 122 | D124: 24 | E124: 2019-09-03 | F124: 0 | G124: 0 | H124: أزاهير | I124: 100طريق مصر اسكندرية الصحراوي | J124: 0 | K124: 1159 | L124: 1510 | M124: 0.01 | N124: 15.1
A125: الثالثة | B125: 1 | C125: 123 | D125: 25 | E125: 2019-09-03 | F125: 0 | G125: 0 | H125: جمال جمعة جمعة | I125: 0 | J125: 0 | K125: 13623 | L125: 1050 | M125: 0.01 | N125: 10.5
A126: الثالثة | B126: 1 | C126: 124 | D126: 26 | E126: 2019-09-08 | F126: 0 | G126: 0 | H126: منير مقار | I126: عزبة مقار - طريق سقارة السياحي | J126: 0 | K126: 33882 | L126: 760 | M126: 0.01 | N126: 7.6
A127: الثالثة | B127: 1 | C127: 125 | D127: 7 | E127: 2019-08-29 | F127: 5/1707/192/04/07 | G127: 0 | H127: الحلبى جروب للتوريدات و الاستيراد | I127: منيل شيحة - الجيزة - طريق مصر أسيوط | J127: 0 | K127: 2444 | L127: 5000 | M127: 0.01 | N127: 50
A128: الثالثة | B128: 1 | C128: 126 | D128: 9 | E128: 2019-09-01 | F128: 0 | G128: 0 | H128: بريميير للتوريدات و الاستيراد | I128: 13 ط شارع الاديب على أدهم - هليوبوليس | J128: 0 | K128: 5818 | L128: 2125 | M128: 0.01 | N128: 21.25
A129: الثالثة | B129: 1 | C129: 127 | D129: 27 | E129: 2019-09-03 | F129: 5/17/198 | G129: 204/896/339 | H129: سونا لاستصلاح و إستزراع الاراضى و التصنيع الغذائى | I129: 21ش فهمي - باب اللوق - القاهرة | J129: 0 | K129: 15202 | L129: 2075 | M129: 0.01 | N129: 20.75
A130: الثالثة | B130: 1 | C130: 128 | D130: 28 | E130: 2019-08-28 | F130: 0 | G130: 310-286-719 | H130: كوانتا للاستيراد والتجارة | I130: 22ش سوريا - المهندسين - الجيزة - مصر | J130: 0 | K130: 120692 | L130: 460 | M130: 0.01 | N130: 4.0351
A131: الثالثة | B131: 1 | C131: 129 | D131: 29 | E131: 2019-08-23 | F131: 0 | G131: 312/986/823 | H131: احمد ابراهيم لتجارة الأسماك | I131: 0 | J131: 0 | K131: 4566 | L131: 1522.5 | M131: 0.01 | N131: 15.225
A132: الثالثة | B132: 1 | C132: 130 | D132: 30 | E132: 2019-08-29 | F132: 0 | G132: 11623 | H132: فود استف للتوريدات | I132: ش مصعب بن عمير الاسكندرية | J132: 0 | K132: 78783 | L132: 1265.95 | M132: 0.01 | N132: 11.1046
A133: الثالثة | B133: 1 | C133: 131 | D133: 31 | E133: 2019-08-31 | F133: 226-5-02613-191-00-15 | G133: 413-733-564 | H133: يور تريد | I133: 1شارع بغداد من شارع جلال اللبينى - فيصل | J133: فيصل | K133: 48 | L133: 1550.4 | M133: 0.01 | N133: 13.6
A134: الثالثة | B134: 1 | C134: 132 | D134: 32 | E134: 2019-08-24 | F134: 5-108-562 | G134: 0 | H134: ذاروكس ايجيبت | I134: المنطقة الصناعية الثالثة - مدينة السادس من أكتوبر | J134: 6 أكتوبر | K134: 133784 | L134: 10376.71 | M134: 0.01 | N134: 91.0238
A135: الثالثة | B135: 1 | C135: 133 | D135: 32 | E135: 2019-08-18 | F135: 5-108-562 | G135: 0 | H135: ذاروكس ايجيبت | I135: المنطقة الصناعية الثالثة - مدينة السادس من أكتوبر | J135: 6 أكتوبر | K135: 133504 | L135: 1254.63 | M135: 0.01 | N135: 11.0055
A136: الثالثة | B136: 1 | C136: 134 | D136: 32 | E136: 2019-08-23 | F136: 5-108-562 | G136: 0 | H136: ذاروكس ايجيبت | I136: المنطقة الصناعية الثالثة - مدينة السادس من أكتوبر | J136: 6 أكتوبر | K136: 133740 | L136: 1906.74 | M136: 0.01 | N136: 16.7258
A137: الثالثة | B137: 1 | C137: 135 | D137: 32 | E137: 2019-08-22 | F137: 5-108-562 | G137: 0 | H137: ذاروكس ايجيبت | I137: المنطقة الصناعية الثالثة - مدينة السادس من أكتوبر | J137: 6 أكتوبر | K137: 133655 | L137: 1152.97 | M137: 0.01 | N137: 10.1138
A138: الثالثة | B138: 1 | C138: 136 | D138: 32 | E138: 2019-08-24 | F138: 5-108-562 | G138: 0 | H138: ذاروكس ايجيبت | I138: المنطقة الصناعية الثالثة - مدينة السادس من أكتوبر | J138: 6 أكتوبر | K138: 133743 | L138: 10376.71 | M138: 0.01 | N138: 91.0238
A139: الثالثة | B139: 1 | C139: 137 | D139: 32 | E139: 2019-08-23 | F139: 5-108-562 | G139: 0 | H139: ذاروكس ايجيبت | I139: المنطقة الصناعية الثالثة - مدينة السادس من أكتوبر | J139: 6 أكتوبر | K139: 133732 | L139: 3393.2 | M139: 0.01 | N139: 29.7649
A140: الثالثة | B140: 1 | C140: 138 | D140: 32 | E140: 2019-08-22 | F140: 5-108-562 | G140: 0 | H140: ذاروكس ايجيبت | I140: المنطقة الصناعية الثالثة - مدينة السادس من أكتوبر | J140: 6 أكتوبر | K140: 133654 | L140: 2429.91 | M140: 0.01 | N140: 21.315
A141: الثالثة | B141: 1 | C141: 139 | D141: 32 | E141: 2019-08-21 | F141: 5-108-562 | G141: 0 | H141: ذاروكس ايجيبت | I141: المنطقة الصناعية الثالثة - مدينة السادس من أكتوبر | J141: 6 أكتوبر | K141: 133608 | L141: 3074.58 | M141: 0.01 | N141: 26.97
A142: الثالثة | B142: 1 | C142: 140 | D142: 32 | E142: 2019-08-21 | F142: 5-108-562 | G142: 0 | H142: ذاروكس ايجيبت | I142: المنطقة الصناعية الثالثة - مدينة السادس من أكتوبر | J142: 6 أكتوبر | K142: 133602 | L142: 2085.26 | M142: 0.01 | N142: 18.2918
A143: الثالثة | B143: 1 | C143: 141 | D143: 32 | E143: 2019-08-17 | F143: 5-108-562 | G143: 0 | H143: ذاروكس ايجيبت | I143: المنطقة الصناعية الثالثة - مدينة السادس من أكتوبر | J143: 6 أكتوبر | K143: 133460 | L143: 1152.97 | M143: 0.01 | N143: 10.1138
A144: الثالثة | B144: 1 | C144: 142 | D144: 32 | E144: 2019-08-24 | F144: 5-108-562 | G144: 0 | H144: ذاروكس ايجيبت | I144: المنطقة الصناعية الثالثة - مدينة السادس من أكتوبر | J144: 6 أكتوبر | K144: 133775 | L144: 1628.04 | M144: 0.01 | N144: 14.2811
A145: الثالثة | B145: 1 | C145: 143 | D145: 32 | E145: 2019-08-23 | F145: 5-108-562 | G145: 0 | H145: ذاروكس ايجيبت | I145: المنطقة الصناعية الثالثة - مدينة السادس من أكتوبر | J145: 6 أكتوبر | K145: 133739 | L145: 3458.9 | M145: 0.01 | N145: 30.3413
A146: الثالثة | B146: 1 | C146: 144 | D146: 32 | E146: 2019-08-21 | F146: 5-108-562 | G146: 0 | H146: ذاروكس ايجيبت | I146: المنطقة الصناعية الثالثة - مدينة السادس من أكتوبر | J146: 6 أكتوبر | K146: 133607 | L146: 1152.97 | M146: 0.01 | N146: 10.1138
A147: الثالثة | B147: 1 | C147: 145 | D147: 32 | E147: 2019-08-20 | F147: 5-108-562 | G147: 0 | H147: ذاروكس ايجيبت | I147: المنطقة الصناعية الثالثة - مدينة السادس من أكتوبر | J147: 6 أكتوبر | K147: 133563 | L147: 1152.97 | M147: 0.01 | N147: 10.1138
A148: الثالثة | B148: 1 | C148: 146 | D148: 32 | E148: 2019-08-19 | F148: 5-108-562 | G148: 0 | H148: ذاروكس ايجيبت | I148: المنطقة الصناعية الثالثة - مدينة السادس من أكتوبر | J148: 6 أكتوبر | K148: 133533 | L148: 1152.97 | M148: 0.01 | N148: 10.1138
A149: الثالثة | B149: 1 | C149: 147 | D149: 32 | E149: 2019-08-08 | F149: 5-108-562 | G149: 0 | H149: ذاروكس ايجيبت | I149: المنطقة الصناعية الثالثة - مدينة السادس من أكتوبر | J149: 6 أكتوبر | K149: 132979 | L149: 1921.61 | M149: 0.01 | N149: 16.8563
A150: الثالثة | B150: 1 | C150: 148 | D150: 32 | E150: 2019-08-07 | F150: 5-108-562 | G150: 0 | H150: ذاروكس ايجيبت | I150: المنطقة الصناعية الثالثة - مدينة السادس من أكتوبر | J150: 6 أكتوبر | K150: 132941 | L150: 1457.95 | M150: 0.01 | N150: 12.789
A151: الثالثة | B151: 1 | C151: 149 | D151: 32 | E151: 2019-08-08 | F151: 5-108-562 | G151: 0 | H151: ذاروكس ايجيبت | I151: المنطقة الصناعية الثالثة - مدينة السادس من أكتوبر | J151: 6 أكتوبر | K151: 132982 | L151: 2305.94 | M151: 0.01 | N151: 20.2275
A152: الثالثة | B152: 1 | C152: 150 | D152: 32 | E152: 2019-08-09 | F152: 5-108-562 | G152: 0 | H152: ذاروكس ايجيبت | I152: المنطقة الصناعية الثالثة - مدينة السادس من أكتوبر | J152: 6 أكتوبر | K152: 133036 | L152: 2305.94 | M152: 0.01 | N152: 20.2275
A153: الثالثة | B153: 1 | C153: 151 | D153: 32 | E153: 2019-08-08 | F153: 5-108-562 | G153: 0 | H153: ذاروكس ايجيبت | I153: المنطقة الصناعية الثالثة - مدينة السادس من أكتوبر | J153: 6 أكتوبر | K153: 132978 | L153: 2882.42 | M153: 0.01 | N153: 25.2844
A154: الثالثة | B154: 1 | C154: 152 | D154: 32 | E154: 2019-08-11 | F154: 5-108-562 | G154: 0 | H154: ذاروكس ايجيبت | I154: المنطقة الصناعية الثالثة - مدينة السادس من أكتوبر | J154: 6 أكتوبر | K154: 133138 | L154: 2305.94 | M154: 0.01 | N154: 20.2275
A155: الثالثة | B155: 1 | C155: 153 | D155: 32 | E155: 2019-08-11 | F155: 5-108-562 | G155: 0 | H155: ذاروكس ايجيبت | I155: المنطقة الصناعية الثالثة - مدينة السادس من أكتوبر | J155: 6 أكتوبر | K155: 133142 | L155: 1538.29 | M155: 0.01 | N155: 13.485
A156: الثالثة | B156: 1 | C156: 154 | D156: 32 | E156: 2019-08-12 | F156: 5-108-562 | G156: 0 | H156: ذاروكس ايجيبت | I156: المنطقة الصناعية الثالثة - مدينة السادس من أكتوبر | J156: 6 أكتوبر | K156: 133176 | L156: 6917.81 | M156: 0.01 | N156: 60.6825
A157: الثالثة | B157: 1 | C157: 155 | D157: 32 | E157: 2019-08-13 | F157: 5-108-562 | G157: 0 | H157: ذاروكس ايجيبت | I157: المنطقة الصناعية الثالثة - مدينة السادس من أكتوبر | J157: 6 أكتوبر | K157: 133240 | L157: 3843.23 | M157: 0.01 | N157: 33.7125
A158: الثالثة | B158: 1 | C158: 156 | D158: 32 | E158: 2019-08-14 | F158: 5-108-562 | G158: 0 | H158: ذاروكس ايجيبت | I158: المنطقة الصناعية الثالثة - مدينة السادس من أكتوبر | J158: 6 أكتوبر | K158: 133290 | L158: 5757.4 | M158: 0.01 | N158: 50.5035
A159: الثالثة | B159: 1 | C159: 157 | D159: 32 | E159: 2019-08-16 | F159: 5-108-562 | G159: 0 | H159: ذاروكس ايجيبت | I159: المنطقة الصناعية الثالثة - مدينة السادس من أكتوبر | J159: 6 أكتوبر | K159: 133411 | L159: 1767.88 | M159: 0.01 | N159: 15.5078
A160: الثالثة | B160: 1 | C160: 158 | D160: 32 | E160: 2019-08-16 | F160: 5-108-562 | G160: 0 | H160: ذاروكس ايجيبت | I160: المنطقة الصناعية الثالثة - مدينة السادس من أكتوبر | J160: 6 أكتوبر | K160: 133422 | L160: 7686.45 | M160: 0.01 | N160: 67.425
A161: الثالثة | B161: 1 | C161: 159 | D161: 32 | E161: 2019-08-15 | F161: 5-108-562 | G161: 0 | H161: ذاروكس ايجيبت | I161: المنطقة الصناعية الثالثة - مدينة السادس من أكتوبر | J161: 6 أكتوبر | K161: 133344 | L161: 2690.26 | M161: 0.01 | N161: 23.5988
A162: الثالثة | B162: 1 | C162: 160 | D162: 32 | E162: 2019-08-07 | F162: 5-108-562 | G162: 0 | H162: ذاروكس ايجيبت | I162: المنطقة الصناعية الثالثة - مدينة السادس من أكتوبر | J162: 6 أكتوبر | K162: 132940 | L162: 1152.97 | M162: 0.01 | N162: 10.1138
A163: الثالثة | B163: 1 | C163: 161 | D163: 32 | E163: 2019-08-17 | F163: 5-108-562 | G163: 0 | H163: ذاروكس ايجيبت | I163: المنطقة الصناعية الثالثة - مدينة السادس من أكتوبر | J163: 6 أكتوبر | K163: 133457 | L163: 1921.61 | M163: 0.01 | N163: 16.8563
A164: الثالثة | B164: 1 | C164: 162 | D164: 32 | E164: 2019-08-11 | F164: 5-108-562 | G164: 0 | H164: ذاروكس ايجيبت | I164: المنطقة الصناعية الثالثة - مدينة السادس من أكتوبر | J164: 6 أكتوبر | K164: 133139 | L164: 1537.29 | M164: 0.01 | N164: 13.485
A165: الثالثة | B165: 1 | C165: 163 | D165: 32 | E165: 2019-08-08 | F165: 5-108-562 | G165: 0 | H165: ذاروكس ايجيبت | I165: المنطقة الصناعية الثالثة - مدينة السادس من أكتوبر | J165: 6 أكتوبر | K165: 132981 | L165: 768.65 | M165: 0.01 | N165: 6.7425
A166: الثالثة | B166: 1 | C166: 164 | D166: 32 | E166: 2019-08-12 | F166: 5-108-562 | G166: 0 | H166: ذاروكس ايجيبت | I166: المنطقة الصناعية الثالثة - مدينة السادس من أكتوبر | J166: 6 أكتوبر | K166: 133177 | L166: 1537.29 | M166: 0.01 | N166: 13.485
A167: الثالثة | B167: 1 | C167: 165 | D167: 32 | E167: 2019-08-13 | F167: 5-108-562 | G167: 0 | H167: ذاروكس ايجيبت | I167: المنطقة الصناعية الثالثة - مدينة السادس من أكتوبر | J167: 6 أكتوبر | K167: 133241 | L167: 1537.29 | M167: 0.01 | N167: 13.485
A168: الثالثة | B168: 1 | C168: 166 | D168: 32 | E168: 2019-08-14 | F168: 5-108-562 | G168: 0 | H168: ذاروكس ايجيبت | I168: المنطقة الصناعية الثالثة - مدينة السادس من أكتوبر | J168: 6 أكتوبر | K168: 133289 | L168: 1537.29 | M168: 0.01 | N168: 13.485
A169: الثالثة | B169: 1 | C169: 167 | D169: 32 | E169: 2019-08-16 | F169: 5-108-562 | G169: 0 | H169: ذاروكس ايجيبت | I169: المنطقة الصناعية الثالثة - مدينة السادس من أكتوبر | J169: 6 أكتوبر | K169: 133427 | L169: 1537.29 | M169: 0.01 | N169: 13.485
A170: الثالثة | B170: 1 | C170: 168 | D170: 32 | E170: 2019-08-15 | F170: 5-108-562 | G170: 0 | H170: ذاروكس ايجيبت | I170: المنطقة الصناعية الثالثة - مدينة السادس من أكتوبر | J170: 6 أكتوبر | K170: 133330 | L170: 1216.19 | M170: 0.01 | N170: 10.6684
A171: الثالثة | B171: 1 | C171: 169 | D171: 32 | E171: 2019-08-15 | F171: 5-108-562 | G171: 0 | H171: ذاروكس ايجيبت | I171: المنطقة الصناعية الثالثة - مدينة السادس من أكتوبر | J171: 6 أكتوبر | K171: 133342 | L171: 1152.97 | M171: 0.01 | N171: 10.1138
A172: الثالثة | B172: 1 | C172: 170 | D172: 32 | E172: 2019-08-17 | F172: 5-108-562 | G172: 0 | H172: ذاروكس ايجيبت | I172: المنطقة الصناعية الثالثة - مدينة السادس من أكتوبر | J172: 6 أكتوبر | K172: 133458 | L172: 1537.29 | M172: 0.01 | N172: 13.485
A173: الثالثة | B173: 1 | C173: 171 | D173: 32 | E173: 2019-08-15 | F173: 5-108-562 | G173: 0 | H173: ذاروكس ايجيبت | I173: المنطقة الصناعية الثالثة - مدينة السادس من أكتوبر | J173: 6 أكتوبر | K173: 133331 | L173: 1971.2 | M173: 0.01 | N173: 17.2913
A174: الثالثة | B174: 1 | C174: 172 | D174: 32 | E174: 2019-08-06 | F174: 5-108-562 | G174: 0 | H174: ذاروكس ايجيبت | I174: المنطقة الصناعية الثالثة - مدينة السادس من أكتوبر | J174: 6 أكتوبر | K174: 132907 | L174: 2690.26 | M174: 0.01 | N174: 23.5988
A175: الثالثة | B175: 1 | C175: 173 | D175: 32 | E175: 2019-08-09 | F175: 5-108-562 | G175: 0 | H175: ذاروكس ايجيبت | I175: المنطقة الصناعية الثالثة - مدينة السادس من أكتوبر | J175: 6 أكتوبر | K175: 133034 | L175: 1537.29 | M175: 0.01 | N175: 13.485
A176: الثالثة | B176: 1 | C176: 174 | D176: 33 | E176: 2019-08-24 | F176: 001-5-01647-420-00-00 | G176: 724-271-813 | H176: فورسيز بلس للأمن والحراسة | I176: 9ش عباس حلمي - العروبة - هليوبوليس - القاهرة - مصر | J176: 0 | K176: 93 | L176: 36480 | M176: 0.03 | N176: 960
A177: الثالثة | B177: 1 | C177: 175 | D177: 33 | E177: 2019-08-24 | F177: 001-5-01647-420-00-00 | G177: 724-271-813 | H177: فورسيز بلس للأمن والحراسة | I177: 9ش عباس حلمي - العروبة - هليوبوليس - القاهرة - مصر | J177: 0 | K177: 94 | L177: 78660 | M177: 0.03 | N177: 2070
A178: الثالثة | B178: 1 | C178: 176 | D178: 33 | E178: 2019-09-22 | F178: 001-5-01647-420-00-00 | G178: 724-271-813 | H178: فورسيز بلس للأمن والحراسة | I178: 9ش عباس حلمي - العروبة - هليوبوليس - القاهرة - مصر | J178: 0 | K178: 129 | L178: 19152 | M178: 0.03 | N178: 504
A179: الثالثة | B179: 1 | C179: 177 | D179: 33 | E179: 2019-09-26 | F179: 001-5-01647-420-00-00 | G179: 724-271-813 | H179: فورسيز بلس للأمن والحراسة | I179: 9ش عباس حلمي - العروبة - هليوبوليس - القاهرة - مصر | J179: 0 | K179: 132 | L179: 83220 | M179: 0.03 | N179: 2190
A180: الثالثة | B180: 1 | C180: 178 | D180: 22 | E180: 2019-09-24 | F180: 0 | G180: 5/283/192/22 | H180: الجزيرة للتوريدات | I180: حلوان | J180: حلوان | K180: 526 | L180: 10610.55 | M180: 0.01 | N180: 93.075
A181: الثالثة | B181: 1 | C181: 179 | D181: 22 | E181: 2019-09-18 | F181: 0 | G181: 5/283/192/22 | H181: الجزيرة للتوريدات | I181: حلوان | J181: حلوان | K181: 500 | L181: 17566.03 | M181: 0.01 | N181: 154.088
A182: الثالثة | B182: 1 | C182: 180 | D182: 6 | E182: 2019-09-21 | F182: 5/00293/192/00/20 | G182: 0 | H182: الرائد لتجارة و توزيع الادوات المكتبية | I182: 0 | J182: مصر القديمة | K182: 5899 | L182: 260.49 | M182: 0.01 | N182: 2.285
A183: الثالثة | B183: 1 | C183: 181 | D183: 34 | E183: 2019-09-14 | F183: 516-333-879 | G183: 52881921925 | H183: تارجت للمواد الغذائية | I183: ش الشباب - الشيخ زايد - الحي الثالث - المجاورة الثالثة100 | J183: 0 | K183: 8048 | L183: 8724.99 | M183: 0.01 | N183: 85.1376
A184: الثالثة | B184: 1 | C184: 182 | D184: 30 | E184: 2019-09-17 | F184: 0 | G184: 11623 | H184: فود استف للتوريدات | I184: ش مصعب بن عمير الاسكندرية | J184: 0 | K184: 79901 | L184: 1739.95 | M184: 0.01 | N184: 15.2628
A185: الثالثة | B185: 1 | C185: 183 | D185: 13 | E185: 2019-08-03 | F185: 500135-191-00-00 | G185: 200-079-328 | H185: شركة ميدو للتجارة العالمية | I185: مدينة العبور - المنطقة الصناعية - قطعة 2 بلوك 13018 | J185: مركز كبار الممولين | K185: 12860 | L185: 2890 | M185: 0.01 | N185: 28.9
A186: الثالثة | B186: 1 | C186: 184 | D186: 30 | E186: 2019-08-03 | F186: 0 | G186: 11623 | H186: فود استف للتوريدات | I186: ش مصعب بن عمير الاسكندرية | J186: 0 | K186: 78375 | L186: 5575.99 | M186: 0.01 | N186: 49.6736
A187: الثالثة | B187: 1 | C187: 185 | D187: 36 | E187: 2019-08-04 | F187: 5-00357-195-00-00 | G187: 235/413/623 | H187: سانيتا للمنتجات الاستهلاكية | I187: امتداد المنطقة الصناعية السادسة - مدينة السادات - المنوفية | J187: 0 | K187: 19013566 | L187: 13019.94 | M187: 0.01 | N187: 114.21
A188: الثالثة | B188: 1 | C188: 186 | D188: 37 | E188: 2019-08-04 | F188: 0 | G188: 421-142-332 | H188: امكاي فودز | I188: بيفرلى هيلز - 31/32 نموذج 1 مبنى 4 ميكس - مدينة الشيخ زايد | J188: 0 | K188: 1798 | L188: 40242 | M188: 0.01 | N188: 402.42
A189: الثالثة | B189: 1 | C189: 187 | D189: 38 | E189: 2019-08-05 | F189: 0 | G189: 0 | H189: الرحاب للتوريدات | I189: سو العبور - محل 357 عنبر 12 خضار | J189: 0 | K189: 90 | L189: 384 | M189: 0.01 | N189: 3.84
A190: الثالثة | B190: 1 | C190: 188 | D190: 38 | E190: 2019-08-05 | F190: 0 | G190: 0 | H190: الرحاب للتوريدات | I190: سو العبور - محل 357 عنبر 12 خضار | J190: 0 | K190: 91 | L190: 512 | M190: 0.01 | N190: 5.12
A191: الثالثة | B191: 1 | C191: 189 | D191: 38 | E191: 2019-08-05 | F191: 0 | G191: 0 | H191: الرحاب للتوريدات | I191: سو العبور - محل 357 عنبر 12 خضار | J191: 0 | K191: 92 | L191: 6133 | M191: 0.01 | N191: 61.33
A192: الثالثة | B192: 1 | C192: 190 | D192: 38 | E192: 2019-08-05 | F192: 0 | G192: 0 | H192: الرحاب للتوريدات | I192: سو العبور - محل 357 عنبر 12 خضار | J192: 0 | K192: 89 | L192: 5339.5 | M192: 0.01 | N192: 53.395
A193: الثالثة | B193: 1 | C193: 191 | D193: 38 | E193: 2019-08-05 | F193: 0 | G193: 0 | H193: الرحاب للتوريدات | I193: سو العبور - محل 357 عنبر 12 خضار | J193: 0 | K193: 86 | L193: 4787.25 | M193: 0.01 | N193: 47.8725
A194: الثالثة | B194: 1 | C194: 192 | D194: 38 | E194: 2019-08-05 | F194: 0 | G194: 0 | H194: الرحاب للتوريدات | I194: سو العبور - محل 357 عنبر 12 خضار | J194: 0 | K194: 87 | L194: 2057 | M194: 0.01 | N194: 20.57
A195: الثالثة | B195: 1 | C195: 193 | D195: 27 | E195: 2019-08-05 | F195: 5/17/198 | G195: 204/896/339 | H195: سونا لاستصلاح و إستزراع الاراضى و التصنيع الغذائى | I195: 21ش فهمي - باب اللوق - القاهرة | J195: 0 | K195: 14650 | L195: 925 | M195: 0.01 | N195: 9.25
A196: الثالثة | B196: 1 | C196: 194 | D196: 23 | E196: 2019-08-04 | F196: 0 | G196: 5\07870\191\00\00 | H196: ناف انترناشيونال تريدينج | I196: 55ش مكرم عبيد - سيتي سنتر - مدينة نصر القاهرة | J196: 0 | K196: 2533 | L196: 12400 | M196: 0.01 | N196: 124
A197: الثالثة | B197: 1 | C197: 195 | D197: 11 | E197: 2019-08-05 | F197: 510425/191 | G197: 545/427/934 | H197: سى آر سى للتجارة | I197: 9ش مختار المصري - ارض الجولف - القاهرة | J197: المساهمة | K197: 6253 | L197: 6846.13 | M197: 0.01 | N197: 60.0538
A198: الثالثة | B198: 1 | C198: 196 | D198: 39 | E198: 2019-08-04 | F198: 5/2571/192/15 | G198: 413/587/762 | H198: فوود براند | I198: 22ش حسن احمد المحامي - المريوطية | J198: الجيزة | K198: 6528 | L198: 3595 | M198: 0.01 | N198: 35.95
A199: الثالثة | B199: 1 | C199: 197 | D199: 15 | E199: 2019-08-06 | F199: 200/178/466 | G199: 1/136 | H199: ريتش للتجارة و التسويق | I199: مدينة العبور | J199: 0 | K199: 1382172184 | L199: 80383.81 | M199: 0.01 | N199: 705.1211
A200: الثالثة | B200: 1 | C200: 198 | D200: 22 | E200: 2019-08-01 | F200: 0 | G200: 5/283/192/22 | H200: الجزيرة للتوريدات | I200: حلوان | J200: حلوان | K200: 196 | L200: 1089.27 | M200: 0.01 | N200: 9.555
... 469 more rows

Sheet Vendor Data (hidden)
G1: توريد و خدمات
G2: توريد
G3: خدمات
A4: كود المورد | B4: رقم الملـــــف | C4: بطاقة ضريبية | D4: رقم التسجيل الضريبى | E4: اسم الممـــــــول | F4: العنـــــــــــــــوان | G4: المأمورية المختصة | H4: طبيعة التعامل كودها
A5: 1 | B5: 5/0177/191/03/24 | C5: 327/964/103 | D5: 327/964/103 | E5: شركة ديكوم تريد | F5: 53 شارع حافظ بدوى - مدينة نصر - القاهرة | H5: توريد و خدمات
A6: 2 | B6: 5/318/280 | D6: 205/155/545 | E6: لايت واى إيجيبت | F6: قطعة أ . ب - بلوك 13025 - المنطقة الصناعية - مدينة العبور | H6: توريد
A7: 3 | B7: 030/5/01717/192/00/26 | C7: 376-459-817 | D7: 367/459/817 | E7: نات ايجيبت | F7: 2 ب مشروع إمتداد الاخاء كورنيش النيل - المعادى | G7: توصية بسيطة | H7: خدمات
A8: 4 | B8: 001/5/03830/191/00/00 | C8: 261/966/367 | E8: المستقبل هوسبيتاليتى سوليوشنز إف إتش إس | F8: 40 أ شارع ترسا الهرم - الجيزة | H8: توريد
A9: 5 | B9: 5/230/110/00/00 | C9: 999/364/295 | E9: أوان الورد | H9: توريد
A10: 6 | B10: 5/00293/192/00/20 | D10: 227/386/523 | E10: الرائد لتجارة و توزيع الادوات المكتبية | G10: مصر القديمة | H10: توريد
A11: 7 | B11: 5/1707/192/04/07 | D11: 239006 | E11: الحلبى جروب للتوريدات و الاستيراد | F11: منيل شيحة - الجيزة - طريق مصر أسيوط | H11: توريد
A12: 8 | C12: 11623 | D12: 513/397/493 | E12: شركة فوود إستف للتوريدات | F12: شارع مصعب بن عمير - الاسكندرية | G12: الاسكندرية | H12: توريد
A13: 9 | D13: 413/542/173 | E13: بريميير للتوريدات و الاستيراد | F13: 13 ط شارع الاديب على أدهم - هليوبوليس | H13: توريد
A14: 10 | D14: 308/643/097 | E14: تى سى إل تكنيكال كيميكالز لابروتورز | F14: 55 حدائق الاهرام | H14: توريد
A15: 11 | B15: 510425/191 | C15: 545/427/934 | E15: سى آر سى للتجارة | F15: 9ش مختار المصري - ارض الجولف - القاهرة | G15: المساهمة | H15: توريد
A16: 12 | B16: 5/828/192/28 | E16: هولند كاب | H16: توريد
A17: 13 | B17: 500135-191-00-00 | C17: 200-079-328 | D17: 200-079-328 | E17: شركة ميدو للتجارة العالمية | F17: مدينة العبور - المنطقة الصناعية - قطعة 2 بلوك 13018 | G17: مركز كبار الممولين | H17: توريد
A18: 14 | C18: 518/767/124 | E18: بصمة | F18: 14 شارع عبد الحى حجازى متفرع من عباس العقاد - مدينة نصر - القاهرة | H18: توريد
A19: 15 | B19: 200/178/466 | C19: 1/136 | D19: 3057 | E19: ريتش للتجارة و التسويق | F19: مدينة العبور | H19: توريد
A20: 16 | B20: 27904161400791 | E20: وائل محمد أنور محمد | F20: 48 شارع محمد عثمان من شارع الفتح - البساتين - القاهرةة | H20: توريد و خدمات
A21: 17 | B21: 156/270 | D21: 200/133/128 | E21: الفيروز للتجارة و الهندسة (ش.م.م) | F21: 33 شارع أحمد أبو العلا - الحى الثامن - مدينة نصر - القاهرة | G21: المساهمة | H21: توريد
A22: 18 | D22: 484/276/964 | E22: شركة سناك لاند | F22: 13 شارع البرجاس - جاردن سيتى | H22: توريد
A23: 19 | C23: 200/114/719 | E23: شركة الدوار للفنادق - الجونة | H23: خدمات
A24: 20 | D24: 5173 | E24: كاندل كونيكشن | H24: توريد
A25: 21 | C25: 14868 | D25: 5638 | E25: إية وان | F25: أول طريق مصر الاسكندرية الزراعى | H25: توريد
A26: 22 | C26: 5/283/192/22 | D26: 7151 | E26: الجزيرة للتوريدات | F26: حلوان | G26: حلوان | H26: توريد
A27: 23 | C27: 5\07870\191\00\00 | D27: 75092 | E27: ناف انترناشيونال تريدينج | F27: 55ش مكرم عبيد - سيتي سنتر - مدينة نصر القاهرة | H27: توريد
A28: 24 | E28: أزاهير | F28: 100طريق مصر اسكندرية الصحراوي | H28: توريد
A29: 25 | E29: جمال جمعة جمعة | H29: توريد
A30: 26 | E30: منير مقار | F30: عزبة مقار - طريق سقارة السياحي | H30: توريد
A31: 27 | B31: 5/17/198 | C31: 204/896/339 | E31: سونا لاستصلاح و إستزراع الاراضى و التصنيع الغذائى | F31: 21ش فهمي - باب اللوق - القاهرة | H31: توريد
A32: 28 | C32: 310-286-719 | D32: 36924 | E32: كوانتا للاستيراد والتجارة | F32: 22ش سوريا - المهندسين - الجيزة - مصر | H32: توريد
A33: 29 | C33: 312/986/823 | D33: 19687 | E33: احمد ابراهيم لتجارة الأسماك | H33: توريد
A34: 30 | C34: 11623 | D34: 513-397-493 | E34: فود استف للتوريدات | F34: ش مصعب بن عمير الاسكندرية | H34: توريد
A35: 31 | B35: 226-5-02613-191-00-15 | C35: 413-733-564 | D35: 413-733-564 | E35: يور تريد | F35: 1شارع بغداد من شارع جلال اللبينى - فيصل | G35: فيصل | H35: توريد
A36: 32 | B36: 5-108-562 | D36: 205-162-827 | E36: ذاروكس ايجيبت | F36: المنطقة الصناعية الثالثة - مدينة السادس من أكتوبر | G36: 6 أكتوبر | H36: توريد
A37: 33 | B37: 001-5-01647-420-00-00 | C37: 724-271-813 | E37: فورسيز بلس للأمن والحراسة | F37: 9ش عباس حلمي - العروبة - هليوبوليس - القاهرة - مصر | H37: خدمات
A38: 34 | B38: 516-333-879 | C38: 52881921925 | D38: 24268 | E38: تارجت للمواد الغذائية | F38: ش الشباب - الشيخ زايد - الحي الثالث - المجاورة الثالثة100 | H38: توريد
A39: 35 | B39: 5/8/217 | C39: 100/123/827 | D39: 317487 | E39: كوكاكولا مصر | G39: كبار الممولين | H39: توريد
A40: 36 | B40: 5-00357-195-00-00 | C40: 235/413/623 | D40: 58288 | E40: سانيتا للمنتجات الاستهلاكية | F40: امتداد المنطقة الصناعية السادسة - مدينة السادات - المنوفية | H40: توريد
A41: 37 | C41: 421-142-332 | D41: 1471 | E41: امكاي فودز | F41: بيفرلى هيلز - 31/32 نموذج 1 مبنى 4 ميكس - مدينة الشيخ زايد | H41: توريد
A42: 38 | E42: الرحاب للتوريدات | F42: سو العبور - محل 357 عنبر 12 خضار | H42: توريد
A43: 39 | B43: 5/2571/192/15 | C43: 413/587/762 | D43: 224725 | E43: فوود براند | F43: 22ش حسن احمد المحامي - المريوطية | G43: الجيزة | H43: توريد
A44: 40 | B44: 555/5/00016/121/00/00 | D44: 215/391/659 | E44: السبيل الجديدة للانتاج الداجني | F44: قطاع المجزر الالي | H44: توريد
A45: 41 | E45: الإيمان لتوريد الأسماك | F45: السادس من أكتوبر - الجيزة | H45: توريد
A46: 42 | C46: 374-403-163 | D46: 69807 | E46: جزارة المنوفية لتوريد اللحوم البلدي | H46: توريد
A47: 43 | C47: 728-401-169 | D47: 005730-10-18 | E47: هيدروفارمز للحلول الزراعية | H47: توريد
A48: 44 | E48: المصرية للعصائر | H48: توريد
A49: 45 | D49: 4099 | E49: الكسندرينا للتطوير والتجارة | F49: 22ش يحيي مشد - سموحة - الاسكندرية | H49: توريد
A50: 46 | C50: 552/750/972 | D50: 45212 | E50: ماس ديستربيوشن للتجارة العامة | H50: توريد
A51: 47 | E51: MY VERY FRUIT | H51: توريد
A52: 48 | C52: 20421 | D52: 215-584-856 | E52: تسويق للتجارة والتوزيع | H52: توريد
A53: 50 | C53: 318/256/886 | E53: ياسوو | F53: سكة الوايلي - حدائق القبة - القاهرة | H53: توريد
A54: 51 | C54: 437-773-019 | E54: الانصاري للتجارة والمقاولات | F54: 4ش الخليل - ميدان لبنان - المهندسين | H54: توريد
A55: 52 | C55: 137/905 | E55: ابو للاستيراد والتصدير | F55: 4ش محمد مظلوم - باب اللوق - القاهرة | H55: توريد
A56: 53 | C56: 5/1487/191/00/18 | E56: فوريو للتصدير والتوريدات العمومية | F56: مساكن الاباجية - بلوك 1 - مدخل 1 - شة 1 | H56: توريد
A57: 54 | E57: فدان | H57: توريد
A58: 55 | C58: 729-056-628 | E58: نادو جروب ليمتد | F58: 3ش وفي عباس من احمد عصمت - الالف مسكن - القاهرة | H58: توريد
A59: 56 | B59: 5-00233-215-00-00 | D59: 205-046-770 | E59: الشركة المصرية السويسرية لتصنيع الاغذية | F59: المنطقة الصناعية بلوك 167 - بلبيس - الشرقية | H59: توريد
A60: 57 | C60: 494-149-787 | E60: أجري تك للزراعة البيئية | F60: 60ش خالد بن الوليد - العوامية - الاقصر - مصر | H60: توريد
A61: 58 | E61: جلوبال للمنظفات | H61: توريد
A62: 59 | C62: 557-968-062 | E62: توب تاتش للتوريدات العمومية والمستلزمات الطبية | H62: توريد
A63: 60 | C63: 410-917-753 | D63: 39134 | E63: سامو التجارية | F63: المنطقة الصناعية قطعة رقم 31-33 التجمع الثالث - القاهرة | G63: القاهرة الجديدة | H63: توريد
A64: 61 | E64: ايه تو زد | H64: توريد
A65: 62 | C65: 267-075 | E65: الياسمين لاستيراد وتوزيع المواد الغذائية | F65: 6ش البدرية من شارع اليتيم - الجيزة | H65: توريد
A66: 63 | B66: 5/1137/192/15/6 | C66: 556-909-054 | E66: نماء لتوريد المكونات الغذائية | H66: توريد
A67: 64 | C67: 141-02275-192-00-10 | D67: 721356521 | E67: DELIGHT | F67: شارع محيي الدين | H67: توريد
A68: 65 | B68: 5-4120-135 | D68: 473-804-182 | E68: أمنية محمد سانح محمد عبد المنعم - حلوانى فشور | F68: 18 شارع المعتمدية - أرض اللواء - إمبابة | H68: توريد
A69: 66 | B69: 243-5-01793-192-02-24 | C69: 243-5-01793-192-02-24 | D69: 264-428-048 | E69: رويال جروب لتجهيزات الفنادق ليمتد | F69: 39 شارع أسماء فهمى خلف الرقابة الادارية - أرض الجولف - مدينة نصر | G69: مدينة نصر ثان | H69: توريد
A70: 67 | B70: 731/668/782 | C70: 5/1/10906/191 | D70: 731/668/782 | E70: هيدرو تيرف إيجيبت للتجارة و الصناعة | F70: طريق 276 - مبنى 9 - المعادى الجديدة - القاهرة | H70: خدمات
A71: 68 | B71: 001-5-04083-410-00-00 | C71: 494-456-698 | E71: أى إف إس فاسيليتيز سيرفيس مصر | F71: 67 شارع التسعين الجنوبى - القطاع الاول - القاهرة الجديدة | G71: مساهمة | H71: خدمات
A72: 69 | B72: 5/3480/570 | D72: 559/876/165 | E72: ماشين برودكشن | F72: 2 شارع الملك الفاضل - الزمالك - القاهرة | H72: توريد
A73: 70 | C73: 286-187-833 | E73: إتش جى للاستثمار و التجارة | F73: 15 شارع سمير مرسى من مكرم عبيد - مدينة نصر | H73: توريد
A74: 71 | B74: 555-5-00255-191-00-00 | C74: 555-5-00255-191-00-00 | D74: 325-704-260 | E74: الشركة المصرية لتجارة أدوات المائدة | F74: الكيلو 22 طريق مصر الاسكندرية الصحراوى مرتفعات الاهرام مبنى 7 - الدور الثالث | H74: توريد
A75: 72 | B75: 5/00391/192/00/15 | C75: 413/328/376 | E75: شركة أنسى السرورى | F75: 113، 115 شارع محمد على بجوار دار الكتب العتبة | H75: توريد
A76: 73 | B76: 5/1361/192/10 | C76: 584/320/620 | D76: 584/320/620 | E76: شركة النظم المتطورة | F76: 8 شارع الغيث - شقة 11 خلف المركز الثقافى البريطانى - العجوزة | G76: العجوزة و المهندسين | H76: خدمات
A77: 74 | B77: 5-23-210 | C77: 6143 | D77: 836 | E77: بدر فوود | F77: مدينة بدر المنطقة الصناعية الثالثة - قطعة 53 | H77: توريد
A78: 75 | B78: 3057 | D78: 200-178-466 | E78: ريتش للتجارة والتسويق | F78: المنطقة الصناعية أ القطعة 11 بلوك 24 12003العبور | G78: القاهرة | H78: توريد
A79: 76 | B79: 5-00227-130 | D79: 586-468-725 | E79: شركة ايه ام فودز | F79: ش طه حسين اليمامه سنتر الزمالك3 | G79: القاهرة | H79: توريد
A80: 77 | D80: 545-460-816 | E80: كريم للتجارة والتوريدات | F80: سوق العبور عنبر 14 خضار | G80: القاهرة | H80: توريد
A81: 78 | E81: الشهبندر للتجارة | F81: القاهرة | H81: توريد
A82: 79 | B82: 5-0029-192-03-24 | D82: 723-296-553 | E82: السوهاجي للتجارة والتوزيع | F82: 11ش حلمي عبدالعاطي الحي الثامن مدينة نصر | G82: القاهرة | H82: توريد
A83: 80 | D83: 5-20796-1-3 | E83: الامل لتوريد مستلزمات المطاعم | F83: القاهرة | G83: القاهرة | H83: توريد
A84: 81 | E84: ايدين جرينز ايجيبت | F84: القاهرة | G84: القاهرة | H84: توريد
A85: 82 | B85: 226-03677-192-00-15 | D85: 547-608-462 | E85: أتش واي ام للتوريدات العمومية | F85: 33ش مساكن كفر طهرمس فيصل الجيزة | G85: الجيزة | H85: توريد
A86: 83 | E86: مؤسسة اللوتس لتعبئة وتغليف البيض | F86: العجمي - الهانوفيل - الاسكندرية | G86: الاسكندرية | H86: توريد
A87: 84 | D87: 10395 | E87: روتانا للتوريدات | F87: 14ش قوله امتداد محمد محمود - وسط البلد - عابدين - القاهرة | G87: القاهرة | H87: توريد
A88: 85 | B88: 5-269-198-11-3 | E88: ماى فيرى فروتس | F88: الاسكندرية باب شرق خلف 30ش باتريس لومومبا فيلا | G88: الاسكندرية | H88: توريد
A89: 86 | D89: 670-01-316 | E89: شاديباك للعبوات الدوائية | F89: القاهرة | G89: القاهرة | H89: توريد
A90: 87 | D90: 5-00102-215-00-00 | E90: فوريني ايس كريم | F90: القاهرة | G90: القاهرة | H90: توريد
A91: 88 | E91: أسواق الخير للخضار والفاكهة والبيض | F91: القاهرة | G91: القاهرة | H91: توريد
A92: 89 | E92: فرست كلاس للسياحة | F92: مدينة نصر | G92: القاهرة | H92: خدمات
A93: 90 | E93: جيسي تريد | F93: القاهرة | G93: القاهرة | H93: توريد
A94: 91
A95: 92
A96: 93
A97: 94
A98: 95
A99: 96
A100: 97
A101: 98
A102: 99
A103: 100
A104: 101
A105: 102
A106: 103
A107: 104
A108: 105
A109: 106
A110: 107
A111: 108
A112: 109
A113: 110
A114: 111
A115: 112
A116: 113
A117: 114
A118: 115
A119: 116
A120: 117
A121: 118
A122: 119
A123: 120
A124: 121
A125: 122
A126: 123
A127: 124
A128: 125
A129: 126
A130: 127
A131: 128
A132: 129
A133: 130
A134: 131
A135: 132
A136: 133
A137: 134
A138: 135
A139: 136
A140: 137
A141: 138
A142: 139
A143: 140
A144: 141
A145: 142
A146: 143
A147: 144
A148: 145
A149: 146
A150: 147
A151: 148
A152: 149
A153: 150
A154: 151
A155: 152
A156: 153
A157: 154
A158: 155
A159: 156
A160: 157
A161: 158
A162: 159
A163: 160
A164: 161
A165: 162
A166: 163
A167: 164
A168: 165
A169: 166
A170: 167
A171: 168
A172: 169
A173: 170
A174: 171
A175: 172
A176: 173
A177: 174
A178: 175
A179: 176
A180: 177
A181: 178
A182: 179
A183: 180
A184: 181
A185: 182
A186: 183
A187: 184
A188: 185
A189: 186
A190: 187
A191: 188
A192: 189
A193: 190
A194: 191
A195: 192
A196: 193
A197: 194
A198: 195
A199: 196
A200: 197
... 3 more rows

Sheet شهادة
A5: =TODAY() -> 2020-02-04
A6: 10 | B6: رقم التسجيل الضريبى | C6: File No/ رقم الملف | D6: اسم الممول | E6: العنوان | F6: المأمورية المختصة | G6: طبيعة التعامل
B7: =VLOOKUP(A6,'Vendor Data'!$A$4:$H$1000,4,0) -> 308/643/097 | C7: =VLOOKUP($A$6,'Vendor Data'!$A$4:$H$1000,2,0) -> 0 | D7: =VLOOKUP($A$6,'Vendor Data'!$A$4:$H$1000,5,0) -> تى سى إل تكنيكال كيميكالز لابروتورز | E7: =VLOOKUP($A$6,'Vendor Data'!$A$4:$H$1000,6,0) -> 55 حدائق الاهرام | F7: =VLOOKUP($A$6,'Vendor Data'!$A$4:$H$1000,7,0) -> 0 | G7: =VLOOKUP($A$6,'Vendor Data'!$A$4:$H$1000,8,0) -> توريد
A8: فيما يلى بيان بالمبالغ المستقطعة تحت حساب الضريبة و الموردة الى مأمورية ضرائب الخصم و التحصيل تحت حساب الضريبه قيمة توريدات عن الفترة من 2019/01/01 حتى 2019/12/31 :-
A9: م | B9: فترة التعامل | C9: القيمة الاجمالية للتعامل | D9: قيمة الضرائب المستقطعة | E9: رقم الشيك المسدد للمصلحة | F9: قيمة الشيك الاجمالية | G9: البنــــــــــــــــك المسحوب علية
A10: 1 | B10: الاولى | C10: =SUMIFS(مجمع!$L:$L,مجمع!$H:$H,$D$7,مجمع!$A:$A,شهادة!B10) -> 450 | D10: =SUMIFS(مجمع!$N:$N,مجمع!$H:$H,شهادة!$D$7,مجمع!$A:$A,شهادة!B10) -> 4.5
A11: 2 | B11: الثانية | C11: =SUMIFS(مجمع!$L:$L,مجمع!$D:$D,شهادة!$A$6,مجمع!$A:$A,شهادة!B11) -> 72463.57 | D11: =SUMIFS(مجمع!$N:$N,مجمع!$D:$D,شهادة!$A$6,مجمع!$A:$A,شهادة!B11) -> 787.44
A12: 3 | B12: الثالثة | C12: =SUMIFS(مجمع!$L:$L,مجمع!$D:$D,شهادة!$A$6,مجمع!$A:$A,شهادة!B12) -> 65811.97 | D12: =SUMIFS(مجمع!$N:$N,مجمع!$D:$D,شهادة!$A$6,مجمع!$A:$A,شهادة!B12) -> 619.2155
A13: 4 | B13: الرابعة | C13: =SUMIFS(مجمع!$L:$L,مجمع!$D:$D,شهادة!$A$6,مجمع!$A:$A,شهادة!B13) -> 1270.73 | D13: =SUMIFS(مجمع!$N:$N,مجمع!$D:$D,شهادة!$A$6,مجمع!$A:$A,شهادة!B13) -> 11.8
A14: الاجمالـــــــــــــى | C14: =SUM(C10:C13) -> 139996.27 | D14: =SUM(D10:D13) -> 1422.9555
C16: برجاء الاحاطة و تفضلوا بقبول وافر التحية و الاحترام ،،،،،
G17: الادارة المالية
B22: 2008-02-07 | E22: =NOW() -> 43865.71965 | F22: =H49&TEXT(TODAY(),"dddd dd mmmm yyyy") -> الثلاثاء 04 فبراير 2020 | G22: Print Date:
